Workbook

Sheet Tabelas x áreas
C9: TABELA | D9: ÁREA RESPONSÁVEL | E9: Periodicidade
C10: KM1 | D10: Gecap (DLO) | E10: trimestral | F10: OK
C11: OV1 | D11: Gecap (DLO) | E11: trimestral | F11: OK
C12: MR1 | D12: Gecap (DLO) - Gerim Valida | E12: trimestral | F12: OK
C13: CCA | D13: GECAP (CRK) | E13: semestral | F13: OK
C14: CC1 | D14: GECAP (DLO) | E14: semestral | F14: OK
C15: CC2 | D15: GEVIC | E15: semestral | F15: OK
C16: CR1 | D16: GERIC | E16: semestral | F16: OK
C17: CR2 | D17: GERIC | E17: semestral | F17: OK
C18: OVA | D18: GECAP (Pilar III - Rel. Consolidado) | E18: anual | F18: OK
C19: LIQA | D19: GERIM | E19: anual | F19: OK
C20: CRA | D20: GERIC | E20: anual | F20: OK
C21: CRB_a | D21: GERIC | E21: anual | F21: OK
C22: CRB_b | D22: GERIC | E22: anual | F22: OK
C23: CRB_c | D23: GERIC | E23: anual | F23: OK
C24: CRB_d | D24: GERIC | E24: anual | F24: OK
C25: CRB_e | D25: GERIC | E25: anual | F25: OK
C26: CRB_f | D26: GERIC | E26: anual | F26: OK
C27: CRB_g | D27: GERIC | E27: anual | F27: OK
C28: CCRA | D28: GERIC | E28: anual | F28: OK
C29: MRA | D29: GERIM | E29: anual | F29: OK
C30: IRRBBA | D30: GERIM | E30: anual | F30: OK
C31: IRRBB1 | D31: GERIM | E31: anual | F31: OK

Sheet Arquivos
A5: Carga de Dados | C5: Geração de Arquivos CSV
C6: teste
A7: Carregar DLO Xml
A8: Carregar Dados Gerim | C8: Arquivos Trimestrais | E8: Arquivos Semestrais | G8: Arquivos Anuais
A9: Carregar Dados GERIC
A10: Carregar Dados GECAP
A11: Carregar Dados GEVIC
A12: Carregar Dados LFS
A13: data referência | C13: KM1 | E13: KM1 | G13: KM1
A14: 2023-12-01 | C14: OV1 | E14: OV1 | G14: OV1
C15: MR1 | E15: MR1 | G15: MR1
E16: CCA | G16: CCA
E17: CC1 | G17: CC1
E18: CC2 | G18: CC2
E19: CR1 | G19: CR1
E20: CR2 | G20: CR2
G21: OVA
G22: LIQA
G23: CRA
G24: CRB_a
G25: CRB_b
G26: CRB_c
G27: CRB_d
G28: CRB_e
G29: CRB_f
G30: CRB_g
G31: CCRA
G32: MRA
G33: IRRBBA
G34: IRRBB1

Sheet Limites
C5: Data | D5: Fator F | E5: ACP_Conservação | F5: ACP_ContraCiclico | G5: ACP_Sistemico | H5: ACP_Total | I5: Min INI | J5: Min ICP | K5: F+ACP
C6: 2019-12-01 | D6: 0.08 | E6: =K6-D6 -> 0.025 | F6: 0 | G6: 0 | H6: =SUM(E6:G6) -> 0.025 | I6: 0.06 | J6: 0.045 | K6: =8%+2.5% -> 0.105
A7: Carregar DLO Xml | C7: 2020-01-01 | D7: 0.08 | E7: 0.025 | F7: 0 | G7: 0 | H7: =SUM(E7:G7) -> 0.025 | I7: 0.06 | J7: 0.045 | K7: =8%+2.5% -> 0.105
A8: Carregar Dados Gerim | C8: 2020-02-01 | D8: 0.08 | E8: 0.025 | F8: 0 | G8: 0 | H8: 0.025 | I8: 0.06 | J8: 0.045 | K8: =8%+2.5% -> 0.105
A9: Carregar Dados GERIC | C9: 2020-03-01 | D9: 0.08 | E9: 0.025 | F9: 0 | G9: 0 | H9: 0.025 | I9: 0.06 | J9: 0.045 | K9: =8%+2.5% -> 0.105
A10: Carregar Dados GECAP | C10: 2020-04-01 | D10: 0.08 | E10: 0.0125 | F10: 0 | G10: 0 | H10: 0.0125 | I10: 0.06 | J10: 0.045 | K10: =8%+1.25% -> 0.0925
A11: Carregar Dados GEVIC | C11: 2020-05-01 | D11: 0.08 | E11: 0.0125 | F11: 0 | G11: 0 | H11: 0.0125 | I11: 0.06 | J11: 0.045 | K11: =8%+1.25% -> 0.0925
A12: Carregar Dados LFS | C12: 2020-06-01 | D12: 0.08 | E12: 0.0125 | F12: 0 | G12: 0 | H12: 0.0125 | I12: 0.06 | J12: 0.045 | K12: =8%+1.25% -> 0.0925
C13: 2020-07-01 | D13: 0.08 | E13: 0.0125 | F13: 0 | G13: 0 | H13: 0.0125 | I13: 0.06 | J13: 0.045 | K13: =8%+1.25% -> 0.0925
C14: 2020-08-01 | D14: 0.08 | E14: 0.0125 | F14: 0 | G14: 0 | H14: 0.0125 | I14: 0.06 | J14: 0.045 | K14: 0.0925
C15: 2020-09-01 | D15: 0.08 | E15: 0.0125 | F15: 0 | G15: 0 | H15: 0.0125 | I15: 0.06 | J15: 0.045 | K15: 0.0925
C16: 2020-10-01 | D16: 0.08 | E16: 0.0125 | F16: 0 | G16: 0 | H16: 0.0125 | I16: 0.06 | J16: 0.045 | K16: 0.0925
C17: 2020-11-01 | D17: 0.08 | E17: 0.0125 | F17: 0 | G17: 0 | H17: 0.0125 | I17: 0.06 | J17: 0.045 | K17: 0.0925
C18: 2020-12-01 | D18: 0.08 | E18: 0.0125 | F18: 0 | G18: 0 | H18: 0.0125 | I18: 0.06 | J18: 0.045 | K18: 0.0925
C19: 2021-01-01 | D19: 0.08 | E19: 0.0125 | F19: 0 | G19: 0 | H19: 0.0125 | I19: 0.06 | J19: 0.045 | K19: 0.0925
C20: 2021-02-01 | D20: 0.08 | E20: 0.0125 | F20: 0 | G20: 0 | H20: 0.0125 | I20: 0.06 | J20: 0.045 | K20: 0.0925
C21: 2021-03-01 | D21: 0.08 | E21: 0.0125 | F21: 0 | G21: 0 | H21: 0.0125 | I21: 0.06 | J21: 0.045 | K21: 0.0925
C22: 2021-04-01 | D22: 0.08 | E22: 0.01625 | F22: 0 | G22: 0 | H22: 0.01625 | I22: 0.06 | J22: 0.045 | K22: =8%+1.625% -> 0.09625
C23: 2021-05-01 | D23: 0.08 | E23: 0.01625 | F23: 0 | G23: 0 | H23: 0.01625 | I23: 0.06 | J23: 0.045 | K23: 0.09625
C24: 2021-06-01 | D24: 0.08 | E24: 0.01625 | F24: 0 | G24: 0 | H24: 0.01625 | I24: 0.06 | J24: 0.045 | K24: 0.09625
C25: 2021-07-01 | D25: 0.08 | E25: 0.01625 | F25: 0 | G25: 0 | H25: 0.01625 | I25: 0.06 | J25: 0.045 | K25: 0.09625
C26: 2021-08-01 | D26: 0.08 | E26: 0.01625 | F26: 0 | G26: 0 | H26: 0.01625 | I26: 0.06 | J26: 0.045 | K26: 0.09625
C27: 2021-09-01 | D27: 0.08 | E27: 0.01625 | F27: 0 | G27: 0 | H27: 0.01625 | I27: 0.06 | J27: 0.045 | K27: 0.09625
C28: 2021-10-01 | D28: 0.08 | E28: 0.02 | F28: 0 | G28: 0 | H28: 0.02 | I28: 0.06 | J28: 0.045 | K28: =8%+2% -> 0.1
C29: 2021-11-01 | D29: 0.08 | E29: 0.02 | F29: 0 | G29: 0 | H29: 0.02 | I29: 0.06 | J29: 0.045 | K29: 0.1
C30: 2021-12-01 | D30: 0.08 | E30: 0.02 | F30: 0 | G30: 0 | H30: 0.02 | I30: 0.06 | J30: 0.045 | K30: 0.1
C31: 2022-01-01 | D31: 0.08 | E31: 0.02 | F31: 0 | G31: 0 | H31: 0.02 | I31: 0.06 | J31: 0.045 | K31: 0.1
C32: 2022-02-01 | D32: 0.08 | E32: 0.02 | F32: 0 | G32: 0 | H32: 0.02 | I32: 0.06 | J32: 0.045 | K32: 0.1
C33: 2022-03-01 | D33: 0.08 | E33: 0.02 | F33: 0 | G33: 0 | H33: 0.02 | I33: 0.06 | J33: 0.045 | K33: 0.1
C34: 2022-04-01 | D34: 0.08 | E34: 0.025 | F34: 0 | G34: 0 | H34: 0.025 | I34: 0.06 | J34: 0.045 | K34: =8%+2.5% -> 0.105
C35: 2022-05-01 | D35: 0.08 | E35: 0.025 | F35: 0 | G35: 0 | H35: 0.025 | I35: 0.06 | J35: 0.045 | K35: =8%+2.5% -> 0.105
C36: 2022-06-01 | D36: 0.08 | E36: 0.025 | F36: 0 | G36: 0 | H36: 0.025 | I36: 0.06 | J36: 0.045 | K36: 0.105
C37: 2022-07-01 | D37: 0.08 | E37: 0.025 | F37: 0 | G37: 0 | H37: 0.025 | I37: 0.06 | J37: 0.045 | K37: 0.105
C38: 2022-08-01 | D38: 0.08 | E38: =K38-D38 -> 0.025 | F38: 0 | G38: 0 | H38: 0.025 | I38: 0.06 | J38: 0.045 | K38: 0.105
C39: 2022-09-01 | D39: 0.08 | E39: 0.025 | F39: 0 | G39: 0 | H39: 0.025 | I39: 0.06 | J39: 0.045 | K39: 0.105
C40: 2022-10-01 | D40: 0.08 | E40: 0.025 | F40: 0 | G40: 0 | H40: 0.025 | I40: 0.06 | J40: 0.045 | K40: 0.105
C41: 2022-11-01 | D41: 0.08 | E41: 0.025 | F41: 0 | G41: 0 | H41: 0.025 | I41: 0.06 | J41: 0.045 | K41: 0.105
C42: 2022-12-01 | D42: 0.08 | E42: 0.025 | F42: 0 | G42: 0 | H42: 0.025 | I42: 0.06 | J42: 0.045 | K42: 0.105
C43: 2023-01-01 | D43: 0.08 | E43: 0.025 | F43: 0 | G43: 0 | H43: 0.025 | I43: 0.06 | J43: 0.045 | K43: 0.105
C44: 2023-02-01 | D44: 0.08 | E44: 0.025 | F44: 0 | G44: 0 | H44: 0.025 | I44: 0.06 | J44: 0.045 | K44: 0.105
C45: 2023-03-01 | D45: 0.08 | E45: 0.025 | F45: 0 | G45: 0 | H45: 0.025 | I45: 0.06 | J45: 0.045 | K45: 0.105
C46: 2023-04-01 | D46: 0.08 | E46: 0.025 | F46: 0 | G46: 0 | H46: 0.025 | I46: 0.06 | J46: 0.045 | K46: 0.105
C47: 2023-05-01 | D47: 0.08 | E47: 0.025 | F47: 0 | G47: 0 | H47: 0.025 | I47: 0.06 | J47: 0.045 | K47: 0.105
C48: 2023-06-01 | D48: 0.08 | E48: 0.025 | F48: 0 | G48: 0 | H48: 0.025 | I48: 0.06 | J48: 0.045 | K48: 0.105
C49: 2023-07-01 | D49: 0.08 | E49: 0.025 | F49: 0 | G49: 0 | H49: 0.025 | I49: 0.06 | J49: 0.045 | K49: 0.105
C50: 2023-08-01 | D50: 0.08 | E50: 0.025 | F50: 0 | G50: 0 | H50: 0.025 | I50: 0.06 | J50: 0.045 | K50: 0.105
C51: 2023-09-01 | D51: 0.08 | E51: 0.025 | F51: 0 | G51: 0 | H51: 0.025 | I51: 0.06 | J51: 0.045 | K51: 0.105
C52: 2023-10-01 | D52: 0.08 | E52: 0.025 | F52: 0 | G52: 0 | H52: 0.025 | I52: 0.06 | J52: 0.045 | K52: 0.105
C53: 2023-11-01 | D53: 0.08 | E53: 0.025 | F53: 0 | G53: 0 | H53: 0.025 | I53: 0.06 | J53: 0.045 | K53: 0.105
C54: 2023-12-01 | D54: 0.08 | E54: 0.025 | F54: 0 | G54: 0 | H54: 0.025 | I54: 0.06 | J54: 0.045 | K54: 0.105
C55: 2024-01-01 | D55: 0.08 | E55: 0.025 | F55: 0 | G55: 0 | H55: 0.025 | I55: 0.06 | J55: 0.045 | K55: 0.105
C56: 2024-02-01 | D56: 0.08 | E56: 0.025 | F56: 0 | G56: 0 | H56: 0.025 | I56: 0.06 | J56: 0.045 | K56: 0.105
C57: 2024-03-01 | D57: 0.08 | E57: 0.025 | F57: 0 | G57: 0 | H57: 0.025 | I57: 0.06 | J57: 0.045 | K57: 0.105
C58: 2024-04-01 | D58: 0.08 | E58: 0.025 | F58: 0 | G58: 0 | H58: 0.025 | I58: 0.06 | J58: 0.045 | K58: 0.105
C59: 2024-05-01 | D59: 0.08 | E59: 0.025 | F59: 0 | G59: 0 | H59: 0.025 | I59: 0.06 | J59: 0.045 | K59: 0.105
C60: 2024-06-01 | D60: 0.08 | E60: 0.025 | F60: 0 | G60: 0 | H60: 0.025 | I60: 0.06 | J60: 0.045 | K60: 0.105
C61: 2024-07-01 | D61: 0.08 | E61: 0.025 | F61: 0 | G61: 0 | H61: 0.025 | I61: 0.06 | J61: 0.045 | K61: 0.105
C62: 2024-08-01 | D62: 0.08 | E62: 0.025 | F62: 0 | G62: 0 | H62: 0.025 | I62: 0.06 | J62: 0.045 | K62: 0.105
C63: 2024-09-01 | D63: 0.08 | E63: 0.025 | F63: 0 | G63: 0 | H63: 0.025 | I63: 0.06 | J63: 0.045 | K63: 0.105
C64: 2024-10-01 | D64: 0.08 | E64: 0.025 | F64: 0 | G64: 0 | H64: 0.025 | I64: 0.06 | J64: 0.045 | K64: 0.105
C65: 2024-11-01 | D65: 0.08 | E65: 0.025 | F65: 0 | G65: 0 | H65: 0.025 | I65: 0.06 | J65: 0.045 | K65: 0.105
C66: 2024-12-01 | D66: 0.08 | E66: 0.025 | F66: 0 | G66: 0 | H66: 0.025 | I66: 0.06 | J66: 0.045 | K66: 0.105
C67: 2025-01-01 | D67: 0.08 | E67: 0.025 | F67: 0 | G67: 0 | H67: 0.025 | I67: 0.06 | J67: 0.045 | K67: 0.105
C68: 2025-02-01 | D68: 0.08 | E68: 0.025 | F68: 0 | G68: 0 | H68: 0.025 | I68: 0.06 | J68: 0.045 | K68: 0.105
C69: 2025-03-01 | D69: 0.08 | E69: 0.025 | F69: 0 | G69: 0 | H69: 0.025 | I69: 0.06 | J69: 0.045 | K69: 0.105
C70: 2025-04-01 | D70: 0.08 | E70: =K70-D70 -> 0.025 | F70: 0 | G70: 0 | H70: 0.025 | I70: 0.06 | J70: 0.045 | K70: 0.105
C71: 2025-05-01 | D71: 0.08 | E71: 0.025 | F71: 0 | G71: 0 | H71: =SUM(E71:G71) -> 0.025 | I71: 0.06 | J71: 0.045 | K71: 0.105
C72: 2025-06-01 | D72: 0.08 | E72: 0.025 | F72: 0 | G72: 0 | H72: 0.025 | I72: 0.06 | J72: 0.045 | K72: 0.105
C73: 2025-07-01 | D73: 0.08 | E73: 0.025 | F73: 0 | G73: 0 | H73: 0.025 | I73: 0.06 | J73: 0.045 | K73: 0.105
C74: 2025-08-01 | D74: 0.08 | E74: 0.025 | F74: 0 | G74: 0 | H74: 0.025 | I74: 0.06 | J74: 0.045 | K74: 0.105
C75: 2025-09-01 | D75: 0.08 | E75: 0.025 | F75: 0 | G75: 0 | H75: 0.025 | I75: 0.06 | J75: 0.045 | K75: 0.105
C76: 2025-10-01 | D76: 0.08 | E76: 0.025 | F76: 0 | G76: 0 | H76: 0.025 | I76: 0.06 | J76: 0.045 | K76: 0.105
C77: 2025-11-01 | D77: 0.08 | E77: 0.025 | F77: 0 | G77: 0 | H77: 0.025 | I77: 0.06 | J77: 0.045 | K77: 0.105
C78: 2025-12-01 | D78: 0.08 | E78: 0.025 | F78: 0 | G78: 0 | H78: 0.025 | I78: 0.06 | J78: 0.045 | K78: 0.105

Sheet XML_DLO
C5: dataBase | D5: codigoConta | E5: valorConta | F5: valorCosif | G5: codigoCosif | H5: saldoCosif | I5: valorDetalhe | J5: codigoElemento | K5: valorElemento
C6: 2019-12-01 | D6: 100 | E6: 1667529161
A7: Carregar DLO Xml | C7: 2019-12-01 | D7: 101 | E7: 1667529161
A8: Carregar Dados Gerim | C8: 2019-12-01 | D8: 102 | E8: 1667529161
A9: Carregar Dados GERIC | C9: 2019-12-01 | D9: 103 | E9: 1494555431
A10: Carregar Dados GECAP | C10: 2019-12-01 | D10: 104 | E10: 1494555431
A11: Carregar Dados GEVIC | C11: 2019-12-01 | D11: 108 | E11: 1494555431
A12: Carregar Dados LFS | C12: 2019-12-01 | D12: 109 | E12: 1667529161
C13: 2019-12-01 | D13: 110 | E13: 1494555431
C14: 2019-12-01 | D14: 111 | E14: 1494555431
C15: 2019-12-01 | D15: 111.01 | E15: 1063070146 | F15: 1063070146 | G15: 64110008 | H15: 163070146.4
C16: 2019-12-01 | D16: 111.01 | E16: 1063070146 | F16: 1063070146 | G16: 61110135 | H16: 694489135.7
C17: 2019-12-01 | D17: 111.01 | E17: 1063070146 | F17: 1063070146 | G17: 61110166 | H17: 205510864.3
C18: 2019-12-01 | D18: 111.02 | E18: 997617870.4 | F18: 997617870.4 | G18: 61520000 | H18: 791287591.2
C19: 2019-12-01 | D19: 111.02 | E19: 997617870.4 | F19: 997617870.4 | G19: 61510003 | H19: 148015279.1
C20: 2019-12-01 | D20: 111.02 | E20: 997617870.4 | F20: 997617870.4 | G20: 61580208 | H20: 58315000
C21: 2019-12-01 | D21: 111.90 | E21: 0
C22: 2019-12-01 | D22: 111.90.01 | E22: 997617870.4
C23: 2019-12-01 | D23: 111.91 | E23: 160292390.3
C24: 2019-12-01 | D24: 111.91.01 | E24: 160292390.3 | F24: 160292390.3 | G24: 61610202 | H24: -2358.55
C25: 2019-12-01 | D25: 111.91.01 | E25: 160292390.3 | F25: 160292390.3 | G25: 61640007 | H25: 162671991.8
C26: 2019-12-01 | D26: 111.91.01 | E26: 160292390.3 | F26: 160292390.3 | G26: 61610109 | H26: -2377242.94
C27: 2019-12-01 | D27: 111.92 | E27: 305887375
C28: 2019-12-01 | D28: 111.92.01 | E28: 0 | I28: 0 | J28: 2 | K28: 0.00
C29: 2019-12-01 | D29: 111.92.01 | E29: 0 | I29: 0 | J29: 3 | K29: 16
C30: 2019-12-01 | D30: 111.92.02 | E30: 122106960.2 | F30: 122106960.2 | G30: 25198100 | H30: 2830335.43
C31: 2019-12-01 | D31: 111.92.02 | E31: 122106960.2 | F31: 122106960.2 | G31: 25199109 | H31: -2830335.4
C32: 2019-12-01 | D32: 111.92.02 | E32: 122106960.2 | F32: 122106960.2 | G32: 25199202 | H32: -131822556.2
C33: 2019-12-01 | D33: 111.92.02 | E33: 122106960.2 | F33: 122106960.2 | G33: 25198203 | H33: 253929516.3
C34: 2019-12-01 | D34: 111.92.04 | E34: 182590612 | F34: 182590612 | G34: 30973509 | H34: 182590612
C35: 2019-12-01 | D35: 111.92.04 | E35: 182590612 | F35: 182590612 | I35: 182590612 | J35: 2 | K35: 182590612.04
C36: 2019-12-01 | D36: 111.92.04 | E36: 182590612 | F36: 182590612 | I36: 182590612 | J36: 3 | K36: 16
C37: 2019-12-01 | D37: 111.92.06 | E37: 1189802.85
C38: 2019-12-01 | D38: 111.92.06.01.01.01 | E38: 1189802.85 | F38: 1189802.85 | G38: 30984701 | H38: 694465.52
C39: 2019-12-01 | D39: 111.92.06.01.01.01 | E39: 1189802.85 | F39: 1189802.85 | G39: 30984608 | H39: 495337.33
C40: 2019-12-01 | D40: 111.93 | E40: 0 | I40: 0 | J40: 2 | K40: 0.00
C41: 2019-12-01 | D41: 111.93 | E41: 0 | I41: 0 | J41: 3 | K41: 16
C42: 2019-12-01 | D42: 111.93.02 | E42: 159450825.1
C43: 2019-12-01 | D43: 111.93.02.01 | E43: 1594508251
C44: 2019-12-01 | D44: 111.94 | E44: 99952820.22
C45: 2019-12-01 | D45: 111.94.01 | E45: 0 | I45: 0 | J45: 2 | K45: 0.00
C46: 2019-12-01 | D46: 111.94.01 | E46: 0 | I46: 0 | J46: 3 | K46: 16
C47: 2019-12-01 | D47: 111.94.01.02 | E47: 159450825.1
C48: 2019-12-01 | D48: 111.94.01.02.01 | E48: 1594508251
C49: 2019-12-01 | D49: 111.94.02 | E49: 99952820.22 | I49: 99952820.22 | J49: 2 | K49: 99952820.22
C50: 2019-12-01 | D50: 111.94.02 | E50: 99952820.22 | I50: 99952820.22 | J50: 3 | K50: 16
C51: 2019-12-01 | D51: 111.94.02.01 | E51: 259403645.4
C52: 2019-12-01 | D52: 111.94.02.01.01 | E52: 309611121.5 | F52: 309611121.5 | G52: 30984402 | H52: 246638046.3
C53: 2019-12-01 | D53: 111.94.02.01.01 | E53: 309611121.5 | F53: 309611121.5 | G53: 30984309 | H53: 2797876.88
C54: 2019-12-01 | D54: 111.94.02.01.01 | E54: 309611121.5 | F54: 309611121.5 | G54: 30984206 | H54: 60175198.3
C55: 2019-12-01 | D55: 111.94.02.01.90 | E55: 50207476.14
C56: 2019-12-01 | D56: 111.94.02.01.90.01 | E56: 50207476.14 | F56: 50207476.14 | G56: 49430992 | H56: 50207476.14
C57: 2019-12-01 | D57: 111.94.02.02 | E57: 159450825.1
C58: 2019-12-01 | D58: 111.94.03 | E58: 0
C59: 2019-12-01 | D59: 111.94.03.02 | E59: 235606695.2
C60: 2019-12-01 | D60: 111.94.04 | E60: 159450825.1
C61: 2019-12-01 | D61: 111.94.04.01 | E61: 0
C62: 2019-12-01 | D62: 111.94.04.01.01 | E62: 159450825.1
C63: 2019-12-01 | D63: 111.94.04.01.01.02 | E63: 159450825.1
C64: 2019-12-01 | D64: 111.94.04.02 | E64: 159450825.1
C65: 2019-12-01 | D65: 111.94.04.04 | E65: 99952820.22
C66: 2019-12-01 | D66: 111.94.05 | E66: 0
C67: 2019-12-01 | D67: 111.94.05.02 | E67: 159450825.1
C68: 2019-12-01 | D68: 120 | E68: 172973729.6
C69: 2019-12-01 | D69: 120.01 | E69: 172973729.6
C70: 2019-12-01 | D70: 120.01.01 | E70: 172973729.6 | F70: 582520942.2 | G70: 90981012 | H70: 23016450.56
C71: 2019-12-01 | D71: 120.01.01 | E71: 172973729.6 | F71: 582520942.2 | G71: 90981036 | H71: 95140951.69
C72: 2019-12-01 | D72: 120.01.01 | E72: 172973729.6 | F72: 582520942.2 | G72: 90981050 | H72: 464363540
C73: 2019-12-01 | D73: 120.01.01 | E73: 172973729.6 | F73: 582520942.2 | I73: 23016450.56 | J73: 2 | K73: 23016450.56
C74: 2019-12-01 | D74: 120.01.01 | E74: 172973729.6 | F74: 582520942.2 | I74: 23016450.56 | J74: 3 | K74: 96
C75: 2019-12-01 | D75: 120.01.01 | E75: 172973729.6 | F75: 582520942.2 | I75: 57084571.01 | J75: 2 | K75: 95140951.69
C76: 2019-12-01 | D76: 120.01.01 | E76: 172973729.6 | F76: 582520942.2 | I76: 57084571.01 | J76: 3 | K76: 02
C77: 2019-12-01 | D77: 120.01.01 | E77: 172973729.6 | F77: 582520942.2 | I77: 92872708 | J77: 2 | K77: 464363540.00
C78: 2019-12-01 | D78: 120.01.01 | E78: 172973729.6 | F78: 582520942.2 | I78: 92872708 | J78: 3 | K78: 04
C79: 2019-12-01 | D79: 120.01.02 | E79: 0
C80: 2019-12-01 | D80: 120.01.02.02 | E80: 56365502.25 | I80: 56365502.25 | J80: 2 | K80: 187885007.49
C81: 2019-12-01 | D81: 120.01.02.02 | E81: 56365502.25 | I81: 56365502.25 | J81: 3 | K81: 27
C82: 2019-12-01 | D82: 120.92 | E82: 0
C83: 2019-12-01 | D83: 120.92.05 | E83: 0
C84: 2019-12-01 | D84: 120.92.05.01 | E84: 172973729.6
C85: 2019-12-01 | D85: 140 | E85: 8.08
C86: 2019-12-01 | D86: 141 | E86: 1.849135692e+10
C87: 2019-12-01 | D87: 142 | E87: 1.666541826e+10
C88: 2019-12-01 | D88: 142.01 | E88: 140248176.7 | I88: 140248176.7 | J88: 2 | K88: 140248176.68
C89: 2019-12-01 | D89: 142.01 | E89: 140248176.7 | I89: 140248176.7 | J89: 43 | K89: 99
C90: 2019-12-01 | D90: 142.02 | E90: 12465812.43
C91: 2019-12-01 | D91: 142.02.01 | E91: 12465812.43 | I91: 12465812.43 | J91: 2 | K91: 12465812.43
C92: 2019-12-01 | D92: 142.02.01 | E92: 12465812.43 | I92: 12465812.43 | J92: 43 | K92: 99
C93: 2019-12-01 | D93: 142.03 | E93: 3396359286
C94: 2019-12-01 | D94: 142.03.01 | E94: 3295022075 | I94: 3295022075 | J94: 2 | K94: 3295022074.61
C95: 2019-12-01 | D95: 142.03.01 | E95: 3295022075 | I95: 3295022075 | J95: 43 | K95: 99
C96: 2019-12-01 | D96: 142.03.03 | E96: 101337211.1 | I96: 101337211.1 | J96: 2 | K96: 101337211.08
C97: 2019-12-01 | D97: 142.03.03 | E97: 101337211.1 | I97: 101337211.1 | J97: 43 | K97: 99
C98: 2019-12-01 | D98: 142.05 | E98: 614266949.8
C99: 2019-12-01 | D99: 142.05.01 | E99: 614266949.8 | I99: 614266949.8 | J99: 2 | K99: 614266949.83
C100: 2019-12-01 | D100: 142.05.01 | E100: 614266949.8 | I100: 614266949.8 | J100: 43 | K100: 99
C101: 2019-12-01 | D101: 142.06 | E101: 1.000578485e+10
C102: 2019-12-01 | D102: 142.06.01 | E102: 1.000578485e+10 | I102: 1.000578485e+10 | J102: 2 | K102: 10005784853.35
C103: 2019-12-01 | D103: 142.06.01 | E103: 1.000578485e+10 | I103: 1.000578485e+10 | J103: 43 | K103: 99
C104: 2019-12-01 | D104: 142.08 | E104: 2047088237 | I104: 2047088237 | J104: 2 | K104: 2047088236.80
C105: 2019-12-01 | D105: 142.08 | E105: 2047088237 | I105: 2047088237 | J105: 43 | K105: 99
C106: 2019-12-01 | D106: 142.09 | E106: 133352439.4 | I106: 133352439.4 | J106: 2 | K106: 133352439.39
C107: 2019-12-01 | D107: 142.09 | E107: 133352439.4 | I107: 133352439.4 | J107: 43 | K107: 99
C108: 2019-12-01 | D108: 142.10 | E108: 315852509.6 | I108: 315852509.6 | J108: 2 | K108: 315852509.56
C109: 2019-12-01 | D109: 142.10 | E109: 315852509.6 | I109: 315852509.6 | J109: 43 | K109: 99
C110: 2019-12-01 | D110: 143 | E110: 273457059.4 | I110: 273457059.4 | J110: 2 | K110: 273457059.36
C111: 2019-12-01 | D111: 143 | E111: 273457059.4 | I111: 273457059.4 | J111: 43 | K111: 99
C112: 2019-12-01 | D112: 145 | E112: 839971501.2
C113: 2019-12-01 | D113: 145.01 | E113: 419985750.6
C114: 2019-12-01 | D114: 145.01.01 | E114: 419985750.6 | I114: 419985750.6 | J114: 2 | K114: 419985750.58
C115: 2019-12-01 | D115: 145.01.01 | E115: 419985750.6 | I115: 419985750.6 | J115: 43 | K115: 99
C116: 2019-12-01 | D116: 145.02 | E116: 8881423.29
C117: 2019-12-01 | D117: 145.02.01 | E117: 8881423.29 | I117: 8881423.29 | J117: 2 | K117: 8881423.29
C118: 2019-12-01 | D118: 145.02.01 | E118: 8881423.29 | I118: 8881423.29 | J118: 43 | K118: 99
C119: 2019-12-01 | D119: 145.03 | E119: 428867173.9
C120: 2019-12-01 | D120: 145.03.01 | E120: 419985750.6 | I120: 419985750.6 | J120: 2 | K120: 419985750.58
C121: 2019-12-01 | D121: 145.03.01 | E121: 419985750.6 | I121: 419985750.6 | J121: 43 | K121: 99
C122: 2019-12-01 | D122: 145.03.02 | E122: 8881423.29 | I122: 8881423.29 | J122: 2 | K122: 8881423.29
C123: 2019-12-01 | D123: 145.03.02 | E123: 8881423.29 | I123: 8881423.29 | J123: 43 | K123: 99
C124: 2019-12-01 | D124: 145.03.06 | E124: 17576044.05 | I124: 17576044.05 | J124: 2 | K124: 17576044.05
C125: 2019-12-01 | D125: 145.03.06 | E125: 17576044.05 | I125: 17576044.05 | J125: 43 | K125: 99
C126: 2019-12-01 | D126: 146 | E126: 1259424212
C127: 2019-12-01 | D127: 146.01 | E127: 1573773603
C128: 2019-12-01 | D128: 146.01.01 | E128: 1442672947 | I128: 1442672947 | J128: 2 | K128: 1442672946.57
C129: 2019-12-01 | D129: 146.01.01 | E129: 1442672947 | I129: 1442672947 | J129: 43 | K129: 99
C130: 2019-12-01 | D130: 146.01.02 | E130: 128747391.9 | I130: 128747391.9 | J130: 2 | K130: 128747391.94
C131: 2019-12-01 | D131: 146.01.02 | E131: 128747391.9 | I131: 128747391.9 | J131: 43 | K131: 99
C132: 2019-12-01 | D132: 146.01.03 | E132: 2353264.48 | I132: 2353264.48 | J132: 2 | K132: 2353264.48
C133: 2019-12-01 | D133: 146.01.03 | E133: 2353264.48 | I133: 2353264.48 | J133: 43 | K133: 99
C134: 2019-12-01 | D134: 146.02 | E134: -314349391.4
C135: 2019-12-01 | D135: 146.02.01 | E135: -314106327.6 | I135: -78814355.53 | J135: 2 | K135: 98517944.41
C136: 2019-12-01 | D136: 146.02.01 | E136: -314106327.6 | I136: -78814355.53 | J136: 43 | K136: 72
C137: 2019-12-01 | D137: 146.02.01 | E137: -314106327.6 | I137: -235291972.1 | J137: 2 | K137: 470583944.16
C138: 2019-12-01 | D138: 146.02.01 | E138: -314106327.6 | I138: -235291972.1 | J138: 43 | K138: 73
C139: 2019-12-01 | D139: 146.02.02 | E139: 0 | I139: 0 | J139: 2 | K139: 128747391.94
C140: 2019-12-01 | D140: 146.02.02 | E140: 0 | I140: 0 | J140: 43 | K140: 74
C141: 2019-12-01 | D141: 146.02.03 | E141: -243063.8 | I141: -243063.8 | J141: 2 | K141: 486127.60
C142: 2019-12-01 | D142: 146.02.03 | E142: -243063.8 | I142: -243063.8 | J142: 43 | K142: 76
C143: 2019-12-01 | D143: 146.02.03 | E143: -243063.8 | I143: 0 | J143: 2 | K143: 1867136.88
C144: 2019-12-01 | D144: 146.02.03 | E144: -243063.8 | I144: 0 | J144: 43 | K144: 78
C145: 2019-12-01 | D145: 150 | E145: 833764580.4
C146: 2019-12-01 | D146: 160 | E146: 193745549.4
C147: 2019-12-01 | D147: 160.01 | E147: 315852509.6
C148: 2019-12-01 | D148: 160.08 | E148: 122106960.2
C149: 2019-12-01 | D149: 170 | E149: 750388122.3
C150: 2019-12-01 | D150: 171 | E150: 46205445.44
C151: 2019-12-01 | D151: 172 | E151: 46205445.44
C152: 2019-12-01 | D152: 172.01 | E152: 46205445.44 | I152: 46205445.44 | J152: 2 | K152: 46205445.44
C153: 2019-12-01 | D153: 172.01 | E153: 46205445.44 | I153: 46205445.44 | J153: 46 | K153: 0.00
C154: 2019-12-01 | D154: 172.01 | E154: 46205445.44 | I154: 46205445.44 | J154: 61 | K154: 9
C155: 2019-12-01 | D155: 172.01 | E155: 46205445.44 | I155: 46205445.44 | J155: 62 | K155: 1
C156: 2019-12-01 | D156: 190 | E156: 5.002587482e+10
C157: 2019-12-01 | D157: 191 | E157: 8337645804
C158: 2019-12-01 | D158: 192 | E158: 1478403456 | I158: 1478403456 | J158: 76 | K158: 20191204
C159: 2019-12-01 | D159: 192.01 | E159: 1035448073
C160: 2019-12-01 | D160: 192.02 | E160: 442955382.9
C161: 2019-12-01 | D161: 510 | E161: 457058.37
C162: 2019-12-01 | D162: 510.01 | E162: 0 | F162: 137962884.8 | G162: 11110006 | H162: 134177230.2
C163: 2019-12-01 | D163: 510.01 | E163: 0 | F163: 137962884.8 | G163: 11540009 | H163: 3785654.65
C164: 2019-12-01 | D164: 510.01 | E164: 0 | F164: 137962884.8 | I164: 0 | J164: 2 | K164: 3785654.65
C165: 2019-12-01 | D165: 510.01 | E165: 0 | F165: 137962884.8 | I165: 0 | J165: 4 | K165: 11
C166: 2019-12-01 | D166: 510.01 | E166: 0 | F166: 137962884.8 | I166: 0 | J166: 41 | K166: 002
C167: 2019-12-01 | D167: 510.01 | E167: 0 | F167: 137962884.8 | I167: 0 | J167: 42 | K167: 99
C168: 2019-12-01 | D168: 510.01 | E168: 0 | F168: 137962884.8 | I168: 0 | J168: 43 | K168: 99
C169: 2019-12-01 | D169: 510.01 | E169: 0 | F169: 137962884.8 | I169: 0 | J169: 45 | K169: 999
C170: 2019-12-01 | D170: 510.01 | E170: 0 | F170: 137962884.8 | I170: 0 | J170: 2 | K170: 134177230.16
C171: 2019-12-01 | D171: 510.01 | E171: 0 | F171: 137962884.8 | I171: 0 | J171: 4 | K171: 11
C172: 2019-12-01 | D172: 510.01 | E172: 0 | F172: 137962884.8 | I172: 0 | J172: 41 | K172: 001
C173: 2019-12-01 | D173: 510.01 | E173: 0 | F173: 137962884.8 | I173: 0 | J173: 42 | K173: 99
C174: 2019-12-01 | D174: 510.01 | E174: 0 | F174: 137962884.8 | I174: 0 | J174: 43 | K174: 99
C175: 2019-12-01 | D175: 510.01 | E175: 0 | F175: 137962884.8 | I175: 0 | J175: 45 | K175: 999
C176: 2019-12-01 | D176: 510.03 | E176: 457058.37 | F176: 2285291.87 | G176: 11520005 | H176: 2285291.87
C177: 2019-12-01 | D177: 510.03 | E177: 457058.37 | F177: 2285291.87 | I177: 457058.37 | J177: 2 | K177: 2285291.87
C178: 2019-12-01 | D178: 510.03 | E178: 457058.37 | F178: 2285291.87 | I178: 457058.37 | J178: 4 | K178: 11
C179: 2019-12-01 | D179: 510.03 | E179: 457058.37 | F179: 2285291.87 | I179: 457058.37 | J179: 41 | K179: 022
C180: 2019-12-01 | D180: 510.03 | E180: 457058.37 | F180: 2285291.87 | I180: 457058.37 | J180: 42 | K180: 99
C181: 2019-12-01 | D181: 510.03 | E181: 457058.37 | F181: 2285291.87 | I181: 457058.37 | J181: 43 | K181: 99
C182: 2019-12-01 | D182: 510.03 | E182: 457058.37 | F182: 2285291.87 | I182: 457058.37 | J182: 45 | K182: 999
C183: 2019-12-01 | D183: 510.03 | E183: 457058.37 | F183: 2285291.87 | I183: 0 | J183: 2 | K183: 0.00
C184: 2019-12-01 | D184: 510.03 | E184: 457058.37 | F184: 2285291.87 | I184: 0 | J184: 4 | K184: 11
C185: 2019-12-01 | D185: 510.03 | E185: 457058.37 | F185: 2285291.87 | I185: 0 | J185: 41 | K185: 021
C186: 2019-12-01 | D186: 510.03 | E186: 457058.37 | F186: 2285291.87 | I186: 0 | J186: 42 | K186: 99
C187: 2019-12-01 | D187: 510.03 | E187: 457058.37 | F187: 2285291.87 | I187: 0 | J187: 43 | K187: 99
C188: 2019-12-01 | D188: 510.03 | E188: 457058.37 | F188: 2285291.87 | I188: 0 | J188: 45 | K188: 999
C189: 2019-12-01 | D189: 520 | E189: 9027873.16
C190: 2019-12-01 | D190: 520.01 | E190: 0 | F190: 393528283.2 | G190: 12110036 | H190: 94989544.99
C191: 2019-12-01 | D191: 520.01 | E191: 0 | F191: 393528283.2 | G191: 12110074 | H191: 298538738.2
C192: 2019-12-01 | D192: 520.01 | E192: 0 | F192: 393528283.2 | I192: 0 | J192: 2 | K192: 393528283.24
C193: 2019-12-01 | D193: 520.01 | E193: 0 | F193: 393528283.2 | I193: 0 | J193: 4 | K193: 11
C194: 2019-12-01 | D194: 520.01 | E194: 0 | F194: 393528283.2 | I194: 0 | J194: 41 | K194: 033
C195: 2019-12-01 | D195: 520.01 | E195: 0 | F195: 393528283.2 | I195: 0 | J195: 42 | K195: 106
C196: 2019-12-01 | D196: 520.01 | E196: 0 | F196: 393528283.2 | I196: 0 | J196: 43 | K196: 99
C197: 2019-12-01 | D197: 520.01 | E197: 0 | F197: 393528283.2 | I197: 0 | J197: 45 | K197: 020
C198: 2019-12-01 | D198: 520.02 | E198: 0 | F198: 306143816.9 | G198: 13210076 | H198: 201033667.2
C199: 2019-12-01 | D199: 520.02 | E199: 0 | F199: 306143816.9 | G199: 13210038 | H199: 105110149.7
C200: 2019-12-01 | D200: 520.02 | E200: 0 | F200: 306143816.9 | I200: 0 | J200: 2 | K200: 306143816.89
C201: 2019-12-01 | D201: 520.02 | E201: 0 | F201: 306143816.9 | I201: 0 | J201: 4 | K201: 11
C202: 2019-12-01 | D202: 520.02 | E202: 0 | F202: 306143816.9 | I202: 0 | J202: 41 | K202: 004
C203: 2019-12-01 | D203: 520.02 | E203: 0 | F203: 306143816.9 | I203: 0 | J203: 42 | K203: 99
C204: 2019-12-01 | D204: 520.02 | E204: 0 | F204: 306143816.9 | I204: 0 | J204: 43 | K204: 99
... 3058 more rows

Sheet Mapas (hidden)
A1: Tabela KM1 | F1: Tabela CCA
A2: CAMPO | B2: TIPO | C2: TAMANHO | D2: Inf | F2: CAMPO | G2: DESCRIÇÃO | H2: TIPO | I2: TAMANHO | J2: Inf
A3: COD_REFERENCIA | B3: Texto | C3: 6 | D3: Chave única | F3: COD_REFERENCIA | G3: Descrição | H3: Texto | I3: 6
A4: COD_TABELA | B4: Texto | C4: 8 | F4: COD_TABELA | H4: Texto | I4: 8
A5: DT_REFERENCIA_ARQ | B5: Data | C5: dd/mm/aaaa | F5: DT_REFERENCIA_ARQ | H5: Data | I5: dd/mm/aaaa
A6: DT_REFERENCIA_A | B6: Data | C6: dd/mm/aaaa | F6: CAMPO_1 | G6: Emissor | H6: Texto | I6: 4000
A7: DT_REFERENCIA_B | B7: Data | C7: dd/mm/aaaa | F7: CAMPO_2 | G7: Identificador único | H7: Texto | I7: 4000 | J7: Chave única
A8: DT_REFERENCIA_C | B8: Data | C8: dd/mm/aaaa | F8: CAMPO_3 | G8: Lei aplicável ao instrumento | H8: Texto | I8: 4000
A9: DT_REFERENCIA_D | B9: Data | C9: dd/mm/aaaa | F9: CAMPO_4 | G9: Classificação do instrumento como componente do PR durante o tratamento temporário de que trata o art. 28 da Resolução nº 4.192, de 2013. | H9: Texto | I9: 4000
A10: DT_REFERENCIA_E | B10: Data | C10: dd/mm/aaaa | F10: CAMPO_5 | G10: Classificação do instrumento como componente do PR após o tratamento temporário de que trata a linha anterior | H10: Texto | I10: 4000
A11: VL_CAPITAL_PRINCIPAL_A | B11: Número | C11: 12 int 4 dec | F11: CAMPO_6 | G11: Escopo da elegibilidade do instrumento | H11: Texto | I11: 4000
A12: VL_CAPITAL_PRINCIPAL_B | B12: Número | C12: 12 int 4 dec | F12: CAMPO_7 | G12: Tipo de instrumento | H12: Texto | I12: 4000
A13: VL_CAPITAL_PRINCIPAL_C | B13: Número | C13: 12 int 4 dec | F13: CAMPO_8 | G13: Valor reconhecido no PR | H13: Número | I13: 12 int 4 dec
A14: VL_CAPITAL_PRINCIPAL_D | B14: Número | C14: 12 int 4 dec | F14: CAMPO_9 | G14: Valor de face do instrumento | H14: Número | I14: 12 int 4 dec
A15: VL_CAPITAL_PRINCIPAL_E | B15: Número | C15: 12 int 4 dec | F15: CAMPO_10 | G15: Classificação contábil | H15: Texto | I15: 4000
A16: VL_NIVEL1_A | B16: Número | C16: 12 int 4 dec | F16: CAMPO_11 | G16: Data original de emissão | H16: Data | I16: dd/mm/aaaa
A17: VL_NIVEL1_B | B17: Número | C17: 12 int 4 dec | F17: CAMPO_12 | G17: Perpétuo ou com vencimento | H17: Texto | I17: 4000
A18: VL_NIVEL1_C | B18: Número | C18: 12 int 4 dec | F18: CAMPO_13 | G18: Data original de vencimento | H18: Data | I18: dd/mm/aaaa
A19: VL_NIVEL1_D | B19: Número | C19: 12 int 4 dec | F19: CAMPO_14 | G19: Opção de resgate ou recompra | H19: Texto | I19: 4000
A20: VL_NIVEL1_E | B20: Número | C20: 12 int 4 dec | F20: CAMPO_15_1 | G20: Data de resgate ou de recompra | H20: Texto | I20: 4000
A21: VL_PATRIMONIO_REFERENCIA_A | B21: Número | C21: 12 int 4 dec | F21: CAMPO_15_2 | G21: Datas de resgate ou de recompra condicionadas | H21: Texto | I21: 4000
A22: VL_PATRIMONIO_REFERENCIA_B | B22: Número | C22: 12 int 4 dec | F22: CAMPO_15_3 | G22: Valor de resgate ou de recompra | H22: Texto | I22: 4000
A23: VL_PATRIMONIO_REFERENCIA_C | B23: Número | C23: 12 int 4 dec | F23: CAMPO_16 | G23: Datas de resgate ou de recompra subsequentes, se aplicável | H23: Texto | I23: 4000
A24: VL_PATRIMONIO_REFERENCIA_D | B24: Número | C24: 12 int 4 dec | F24: CAMPO_17 | G24: Remuneração ou dividendos fixos ou variáveis | H24: Texto | I24: 4000
A25: VL_PATRIMONIO_REFERENCIA_E | B25: Número | C25: 12 int 4 dec | F25: CAMPO_18 | G25: Taxa de remuneração e índice referenciado | H25: Texto | I25: 4000
A26: VL_EXCESSO_REC_APL_AP_A | B26: Número | C26: 12 int 4 dec | F26: CAMPO_19 | G26: Possibilidade de suspensão de pagamento de dividendos | H26: Texto | I26: 4000
A27: VL_EXCESSO_REC_APL_AP_B | B27: Número | C27: 12 int 4 dec | F27: CAMPO_20 | G27: Completa discricionariedade, discricionariedade parcial ou mandatória | H27: Texto | I27: 4000
A28: VL_EXCESSO_REC_APL_AP_C | B28: Número | C28: 12 int 4 dec | F28: CAMPO_21 | G28: Existência de cláusulas que alterem prazos ou condições de remuneração pactuados ou outro incentivo para resgate | H28: Texto | I28: 4000
A29: VL_EXCESSO_REC_APL_AP_D | B29: Número | C29: 12 int 4 dec | F29: CAMPO_22 | G29: Cumulativo ou não cumulativo | H29: Texto | I29: 4000
A30: VL_EXCESSO_REC_APL_AP_E | B30: Número | C30: 12 int 4 dec | F30: CAMPO_23 | G30: Conversível ou não conversível | H30: Texto | I30: 4000
A31: DESTAQUE_PR_A | B31: Número | C31: 12 int 4 dec | F31: CAMPO_24 | G31: Se conversível, em quais situações | H31: Texto | I31: 4000
A32: DESTAQUE_PR_B | B32: Número | C32: 12 int 4 dec | F32: CAMPO_25 | G32: Se conversível, totalmente ou parcialmente | H32: Texto | I32: 4000
A33: DESTAQUE_PR_C | B33: Número | C33: 12 int 4 dec | F33: CAMPO_26 | G33: Se conversível, taxa de conversão | H33: Texto | I33: 4000
A34: DESTAQUE_PR_D | B34: Número | C34: 12 int 4 dec | F34: CAMPO_27 | G34: Se conversível, conversão obrigatória ou opcional | H34: Texto | I34: 4000
A35: DESTAQUE_PR_E | B35: Número | C35: 12 int 4 dec | F35: CAMPO_28 | G35: Se conversível, especificar para qual tipo de instrumento | H35: Texto | I35: 4000
A36: VL_RWA_TOTAL_A | B36: Número | C36: 12 int 4 dec | F36: CAMPO_29 | G36: Se conversível, especificar o emissor do instrumento para o qual pode ser convertido | H36: Texto | I36: 4000
A37: VL_RWA_TOTAL_B | B37: Número | C37: 12 int 4 dec | F37: CAMPO_30 | G37: Características para a extinção do instrumento | H37: Texto | I37: 4000
A38: VL_RWA_TOTAL_C | B38: Número | C38: 12 int 4 dec | F38: CAMPO_31 | G38: Se extinguível, em quais situações | H38: Texto | I38: 4000
A39: VL_RWA_TOTAL_D | B39: Número | C39: 12 int 4 dec | F39: CAMPO_32 | G39: Se extinguível, totalmente ou parcialmente | H39: Texto | I39: 4000
A40: VL_RWA_TOTAL_E | B40: Número | C40: 12 int 4 dec | F40: CAMPO_33 | G40: Se extinguível, permanentemente ou temporariamente | H40: Texto | I40: 4000
A41: VL_ICP_A | B41: Número | C41: 12 int 4 dec | F41: CAMPO_34a | G41: Tipo de subordinação | H41: Texto | I41: 4000
A42: VL_ICP_B | B42: Número | C42: 12 int 4 dec | F42: CAMPO_35 | G42: Posição na hierarquia de subordinação em caso de liquidação | H42: Texto | I42: 4000
A43: VL_ICP_C | B43: Número | C43: 12 int 4 dec | F43: CAMPO_36 | G43: Possui características que não serão aceitas após o tratamento temporário de que trata o art. 28 da Resolução nº 4.192, de 2013 | H43: Texto | I43: 4000
A44: VL_ICP_D | B44: Número | C44: 12 int 4 dec | F44: CAMPO_37 | G44: Se sim, especificar as características de que trata a linha anterior | H44: Texto | I44: 4000
A45: VL_ICP_E | B45: Número | C45: 12 int 4 dec | F45: CAMPO_37 | G45: Se sim, especificar as características de que trata a linha anterior | H45: Texto | I45: 4000
A46: VL_INDICE_NIVEL1_A | B46: Número | C46: 12 int 4 dec
A47: VL_INDICE_NIVEL1_B | B47: Número | C47: 12 int 4 dec | F47: Tabela CC1
A48: VL_INDICE_NIVEL1_C | B48: Número | C48: 12 int 4 dec | F48: CAMPO | G48: DESCRIÇÃO | H48: TIPO | I48: TAMANHO | J48: Inf
A49: VL_INDICE_NIVEL1_D | B49: Número | C49: 12 int 4 dec | F49: COD_REFERENCIA | H49: Texto | I49: 6
A50: VL_INDICE_NIVEL1_E | B50: Número | C50: 12 int 4 dec | F50: COD_TABELA | H50: Texto | I50: 8
A51: VL_INDICE_BASILEIA_A | B51: Número | C51: 12 int 4 dec | F51: DT_REFERENCIA_ARQ | H51: Data | I51: dd/mm/aaaa
A52: VL_INDICE_BASILEIA_B | B52: Número | C52: 12 int 4 dec | F52: Vl_1 | H52: Número | I52: 12 int 4 dec
A53: VL_INDICE_BASILEIA_C | B53: Número | C53: 12 int 4 dec | F53: Vl_2 | H53: Número | I53: 12 int 4 dec
A54: VL_INDICE_BASILEIA_D | B54: Número | C54: 12 int 4 dec | F54: Vl_3 | H54: Número | I54: 12 int 4 dec
A55: VL_INDICE_BASILEIA_E | B55: Número | C55: 12 int 4 dec | F55: Vl_5 | H55: Número | I55: 12 int 4 dec
A56: VL_ACP_CONSEVACAO_A | B56: Número | C56: 12 int 4 dec | F56: Vl_6 | H56: Número | I56: 12 int 4 dec
A57: VL_ACP_CONSEVACAO_B | B57: Número | C57: 12 int 4 dec | F57: Vl_7 | H57: Número | I57: 12 int 4 dec
A58: VL_ACP_CONSEVACAO_C | B58: Número | C58: 12 int 4 dec | F58: Vl_8 | H58: Número | I58: 12 int 4 dec
A59: VL_ACP_CONSEVACAO_D | B59: Número | C59: 12 int 4 dec | F59: Vl_9 | H59: Número | I59: 12 int 4 dec
A60: VL_ACP_CONSEVACAO_E | B60: Número | C60: 12 int 4 dec | F60: Vl_10 | H60: Número | I60: 12 int 4 dec
A61: VL_ACP_CONTRACICLICO_A | B61: Número | C61: 12 int 4 dec | F61: Vl_11 | H61: Número | I61: 12 int 4 dec
A62: VL_ACP_CONTRACICLICO_B | B62: Número | C62: 12 int 4 dec | F62: Vl_15 | H62: Número | I62: 12 int 4 dec
A63: VL_ACP_CONTRACICLICO_C | B63: Número | C63: 12 int 4 dec | F63: Vl_16 | H63: Número | I63: 12 int 4 dec
A64: VL_ACP_CONTRACICLICO_D | B64: Número | C64: 12 int 4 dec | F64: Vl_17 | H64: Número | I64: 12 int 4 dec
A65: VL_ACP_CONTRACICLICO_E | B65: Número | C65: 12 int 4 dec | F65: Vl_18 | H65: Número | I65: 12 int 4 dec
A66: VL_ACP_SISTEMICO_A | B66: Número | C66: 12 int 4 dec | F66: Vl_19 | H66: Número | I66: 12 int 4 dec
A67: VL_ACP_SISTEMICO_B | B67: Número | C67: 12 int 4 dec | F67: Vl_21 | H67: Número | I67: 12 int 4 dec
A68: VL_ACP_SISTEMICO_C | B68: Número | C68: 12 int 4 dec | F68: Vl_22 | H68: Número | I68: 12 int 4 dec
A69: VL_ACP_SISTEMICO_D | B69: Número | C69: 12 int 4 dec | F69: Vl_23 | H69: Número | I69: 12 int 4 dec
A70: VL_ACP_SISTEMICO_E | B70: Número | C70: 12 int 4 dec | F70: Vl_25 | H70: Número | I70: 12 int 4 dec
A71: VL_ACP_TOTAL_A | B71: Número | C71: 12 int 4 dec | F71: Vl_26 | H71: Número | I71: 12 int 4 dec
A72: VL_ACP_TOTAL_B | B72: Número | C72: 12 int 4 dec | F72: Vl_26a | H72: Número | I72: 12 int 4 dec
A73: VL_ACP_TOTAL_C | B73: Número | C73: 12 int 4 dec | F73: Vl_26b | H73: Número | I73: 12 int 4 dec
A74: VL_ACP_TOTAL_D | B74: Número | C74: 12 int 4 dec | F74: Vl_26d | H74: Número | I74: 12 int 4 dec
A75: VL_ACP_TOTAL_E | B75: Número | C75: 12 int 4 dec | F75: Vl_26e | H75: Número | I75: 12 int 4 dec
A76: VL_MARGEM_EXCEDENTE_CP_A | B76: Número | C76: 12 int 4 dec | F76: Vl_26f | H76: Número | I76: 12 int 4 dec
A77: VL_MARGEM_EXCEDENTE_CP_B | B77: Número | C77: 12 int 4 dec | F77: Vl_26g | H77: Número | I77: 12 int 4 dec
A78: VL_MARGEM_EXCEDENTE_CP_C | B78: Número | C78: 12 int 4 dec | F78: Vl_26h | H78: Número | I78: 12 int 4 dec
A79: VL_MARGEM_EXCEDENTE_CP_D | B79: Número | C79: 12 int 4 dec | F79: Vl_26i | H79: Número | I79: 12 int 4 dec
A80: VL_MARGEM_EXCEDENTE_CP_E | B80: Número | C80: 12 int 4 dec | F80: Vl_26j | H80: Número | I80: 12 int 4 dec
A81: VL_EXPOSICAO_TOTAL_A | B81: Número | C81: 12 int 4 dec | F81: Vl_27 | H81: Número | I81: 12 int 4 dec
A82: VL_EXPOSICAO_TOTAL_B | B82: Número | C82: 12 int 4 dec | F82: Vl_28 | H82: Número | I82: 12 int 4 dec
A83: VL_EXPOSICAO_TOTAL_C | B83: Número | C83: 12 int 4 dec | F83: Vl_29 | H83: Número | I83: 12 int 4 dec
A84: VL_EXPOSICAO_TOTAL_D | B84: Número | C84: 12 int 4 dec | F84: Vl_30 | H84: Número | I84: 12 int 4 dec
A85: VL_EXPOSICAO_TOTAL_E | B85: Número | C85: 12 int 4 dec | F85: Vl_31 | H85: Número | I85: 12 int 4 dec
A86: VL_RA_A | B86: Número | C86: 12 int 4 dec | F86: Vl_32 | H86: Número | I86: 12 int 4 dec
A87: VL_RA_B | B87: Número | C87: 12 int 4 dec | F87: Vl_33 | H87: Número | I87: 12 int 4 dec
A88: VL_RA_C | B88: Número | C88: 12 int 4 dec | F88: Vl_34 | H88: Número | I88: 12 int 4 dec
A89: VL_RA_D | B89: Número | C89: 12 int 4 dec | F89: Vl_35 | H89: Número | I89: 12 int 4 dec
A90: VL_RA_E | B90: Número | C90: 12 int 4 dec | F90: Vl_36 | H90: Número | I90: 12 int 4 dec
A91: VL_HQLA_A | B91: Número | C91: 12 int 4 dec | F91: Vl_37 | H91: Número | I91: 12 int 4 dec
A92: VL_HQLA_B | B92: Número | C92: 12 int 4 dec | F92: Vl_38 | H92: Número | I92: 12 int 4 dec
A93: VL_HQLA_C | B93: Número | C93: 12 int 4 dec | F93: Vl_39 | H93: Número | I93: 12 int 4 dec
A94: VL_HQLA_D | B94: Número | C94: 12 int 4 dec | F94: Vl_40 | H94: Número | I94: 12 int 4 dec
A95: VL_HQLA_E | B95: Número | C95: 12 int 4 dec | F95: Vl_41 | H95: Número | I95: 12 int 4 dec
A96: VL_TOTAL_SAIDAS_LIQ_CAIXA_A | B96: Número | C96: 12 int 4 dec | F96: Vl_41b | H96: Número | I96: 12 int 4 dec
A97: VL_TOTAL_SAIDAS_LIQ_CAIXA_B | B97: Número | C97: 12 int 4 dec | F97: Vl_41c | H97: Número | I97: 12 int 4 dec
A98: VL_TOTAL_SAIDAS_LIQ_CAIXA_C | B98: Número | C98: 12 int 4 dec | F98: Vl_42 | H98: Número | I98: 12 int 4 dec
A99: VL_TOTAL_SAIDAS_LIQ_CAIXA_D | B99: Número | C99: 12 int 4 dec | F99: Vl_43 | H99: Número | I99: 12 int 4 dec
A100: VL_TOTAL_SAIDAS_LIQ_CAIXA_E | B100: Número | C100: 12 int 4 dec | F100: Vl_44 | H100: Número | I100: 12 int 4 dec
A101: VL_LCR_A | B101: Número | C101: 12 int 4 dec | F101: Vl_45 | H101: Número | I101: 12 int 4 dec
A102: VL_LCR_B | B102: Número | C102: 12 int 4 dec | F102: Vl_46 | H102: Número | I102: 12 int 4 dec
A103: VL_LCR_C | B103: Número | C103: 12 int 4 dec | F103: Vl_47 | H103: Número | I103: 12 int 4 dec
A104: VL_LCR_D | B104: Número | C104: 12 int 4 dec | F104: Vl_48 | H104: Número | I104: 12 int 4 dec
A105: VL_LCR_E | B105: Número | C105: 12 int 4 dec | F105: Vl_49 | H105: Número | I105: 12 int 4 dec
A106: VL_ASF_A | B106: Número | C106: 12 int 4 dec | F106: Vl_51 | H106: Número | I106: 12 int 4 dec
A107: VL_ASF_B | B107: Número | C107: 12 int 4 dec | F107: Vl_52 | H107: Número | I107: 12 int 4 dec
A108: VL_ASF_C | B108: Número | C108: 12 int 4 dec | F108: Vl_53 | H108: Número | I108: 12 int 4 dec
A109: VL_ASF_D | B109: Número | C109: 12 int 4 dec | F109: Vl_54 | H109: Número | I109: 12 int 4 dec
A110: VL_ASF_E | B110: Número | C110: 12 int 4 dec | F110: Vl_55 | H110: Número | I110: 12 int 4 dec
A111: VL_RSF_A | B111: Número | C111: 12 int 4 dec | F111: Vl_56 | H111: Número | I111: 12 int 4 dec
A112: VL_RSF_B | B112: Número | C112: 12 int 4 dec | F112: Vl_56b | H112: Número | I112: 12 int 4 dec
A113: VL_RSF_C | B113: Número | C113: 12 int 4 dec | F113: Vl_56c | H113: Número | I113: 12 int 4 dec
A114: VL_RSF_D | B114: Número | C114: 12 int 4 dec | F114: Vl_57 | H114: Número | I114: 12 int 4 dec
A115: VL_RSF_E | B115: Número | C115: 12 int 4 dec | F115: Vl_58 | H115: Número | I115: 12 int 4 dec
A116: VL_NSFR_A | B116: Número | C116: 12 int 4 dec | F116: Vl_59 | H116: Número | I116: 12 int 4 dec
A117: VL_NSFR_B | B117: Número | C117: 12 int 4 dec | F117: Vl_60 | H117: Número | I117: 12 int 4 dec
A118: VL_NSFR_C | B118: Número | C118: 12 int 4 dec | F118: Vl_61 | H118: Número | I118: 12 int 4 dec
A119: VL_NSFR_D | B119: Número | C119: 12 int 4 dec | F119: Vl_62 | H119: Número | I119: 12 int 4 dec
A120: VL_NSFR_E | B120: Número | C120: 12 int 4 dec | F120: Vl_63 | H120: Número | I120: 12 int 4 dec
A121: DS_COMENTÁRIO | B121: texto | C121: 4000 | F121: Vl_64 | H121: Número | I121: 12 int 4 dec
F122: Vl_65 | H122: Número | I122: 12 int 4 dec
A123: Tabela OV1 | F123: Vl_66 | H123: Número | I123: 12 int 4 dec
A124: CAMPO | B124: TIPO | C124: TAMANHO | D124: Inf | F124: Vl_67 | H124: Número | I124: 12 int 4 dec
A125: COD_REFERENCIA | B125: Texto | C125: 6 | D125: Chave única | F125: Vl_68 | H125: Número | I125: 12 int 4 dec
A126: COD_TABELA | B126: Texto | C126: 8 | F126: Vl_72 | H126: Número | I126: 12 int 4 dec
A127: DT_REFERENCIA_ARQ | B127: Data | C127: dd/mm/aaaa | F127: Vl_73 | H127: Número | I127: 12 int 4 dec
A128: VL_RISCO_CRED_RWA | B128: Número | C128: 12 int 4 dec | F128: Vl_75 | H128: Número | I128: 12 int 4 dec
A129: VL_RISCO_CRED_RWA_ANTERIOR | B129: Número | C129: 12 int 4 dec | F129: Vl_82 | H129: Número | I129: 12 int 4 dec
A130: VL_RISCO_CRED_PR | B130: Número | C130: 12 int 4 dec | F130: Vl_83 | H130: Número | I130: 12 int 4 dec
A131: VL_RISCO_CRED_ESTRITO_RWA | B131: Número | C131: 12 int 4 dec | F131: Vl_84 | H131: Número | I131: 12 int 4 dec
A132: VL_RISCO_CRED_ESTRITO_RWA_ANT | B132: Número | C132: 12 int 4 dec | F132: Vl_85 | H132: Número | I132: 12 int 4 dec
A133: VL_RISCO_CRED_ESTRITO_PR | B133: Número | C133: 12 int 4 dec | F133: Ref_Balanco_1 | H133: Texto | I133: 4000
A134: VL_CCR_RWA | B134: Número | C134: 12 int 4 dec | F134: Ref_Balanco_2 | H134: Texto | I134: 4000
A135: VL_CCR_RWA_ANT | B135: Número | C135: 12 int 4 dec | F135: Ref_Balanco_3 | H135: Texto | I135: 4000
A136: VL_CCR_PR | B136: Número | C136: 12 int 4 dec | F136: Ref_Balanco_5 | H136: Texto | I136: 4000
A137: VL_SA_CCR_RWA | B137: Número | C137: 12 int 4 dec | F137: Ref_Balanco_6 | H137: Texto | I137: 4000
A138: VL_SA_CCR_RWA_ANT | B138: Número | C138: 12 int 4 dec | F138: Ref_Balanco_7 | H138: Texto | I138: 4000
A139: VL_SA_CCR_PR | B139: Número | C139: 12 int 4 dec | F139: Ref_Balanco_8 | H139: Texto | I139: 4000
A140: VL_CEM_RWA | B140: Número | C140: 12 int 4 dec | F140: Ref_Balanco_9 | H140: Texto | I140: 4000
A141: VL_CEM_RWA_ANT | B141: Número | C141: 12 int 4 dec | F141: Ref_Balanco_10 | H141: Texto | I141: 4000
A142: VL_CEM_PR | B142: Número | C142: 12 int 4 dec | F142: Ref_Balanco_11 | H142: Texto | I142: 4000
A143: VL_OUTROS_RWA | B143: Número | C143: 12 int 4 dec | F143: Ref_Balanco_15 | H143: Texto | I143: 4000
A144: VL_OUTROS_RWA_ANT | B144: Número | C144: 12 int 4 dec | F144: Ref_Balanco_16 | H144: Texto | I144: 4000
A145: VL_OUTROS_PR | B145: Número | C145: 12 int 4 dec | F145: Ref_Balanco_17 | H145: Texto | I145: 4000
A146: VL_CVA_RWA | B146: Número | C146: 12 int 4 dec | F146: Ref_Balanco_18 | H146: Texto | I146: 4000
A147: VL_CVA_RWA_ANT | B147: Número | C147: 12 int 4 dec | F147: Ref_Balanco_19 | H147: Texto | I147: 4000
A148: VL_CVA_PR | B148: Número | C148: 12 int 4 dec | F148: Ref_Balanco_21 | H148: Texto | I148: 4000
A149: VL_CFNCASID_RWA | B149: Número | C149: 12 int 4 dec | F149: Ref_Balanco_22 | H149: Texto | I149: 4000
A150: VL_CFNCASID_RWA_ANT | B150: Número | C150: 12 int 4 dec | F150: Ref_Balanco_23 | H150: Texto | I150: 4000
A151: VL_CFNCASID_PR | B151: Número | C151: 12 int 4 dec | F151: Ref_Balanco_25 | H151: Texto | I151: 4000
A152: VL_CFNCASIN_RWA | B152: Número | C152: 12 int 4 dec | F152: Ref_Balanco_26 | H152: Texto | I152: 4000
A153: VL_CFNCASIN_RWA_ANT | B153: Número | C153: 12 int 4 dec | F153: Ref_Balanco_26a | H153: Texto | I153: 4000
A154: VL_CFNCASIN_PR | B154: Número | C154: 12 int 4 dec | F154: Ref_Balanco_26b | H154: Texto | I154: 4000
A155: VL_CFNCASNID_RWA | B155: Número | C155: 12 int 4 dec | F155: Ref_Balanco_26d | H155: Texto | I155: 4000
A156: VL_CFNCASNID_RWA_ANT | B156: Número | C156: 12 int 4 dec | F156: Ref_Balanco_26e | H156: Texto | I156: 4000
A157: VL_CFNCASNID_PR | B157: Número | C157: 12 int 4 dec | F157: Ref_Balanco_26f | H157: Texto | I157: 4000
A158: VL_EXP_SEC_AP_RWA | B158: Número | C158: 12 int 4 dec | F158: Ref_Balanco_26g | H158: Texto | I158: 4000
A159: VL_EXP_SEC_AP_RWA_ANT | B159: Número | C159: 12 int 4 dec | F159: Ref_Balanco_26h | H159: Texto | I159: 4000
A160: VL_EXP_SEC_AP_PR | B160: Número | C160: 12 int 4 dec | F160: Ref_Balanco_26i | H160: Texto | I160: 4000
A161: VL_EXP_NDED_PR_RWA | B161: Número | C161: 12 int 4 dec | F161: Ref_Balanco_26j | H161: Texto | I161: 4000
A162: VL_EXP_NDED_PR_RWA_ANT | B162: Número | C162: 12 int 4 dec | F162: Ref_Balanco_27 | H162: Texto | I162: 4000
A163: VL_EXP_NDED_PR_PR | B163: Número | C163: 12 int 4 dec | F163: Ref_Balanco_28 | H163: Texto | I163: 4000
A164: VL_RISCO_MERCADO_RWA | B164: Número | C164: 12 int 4 dec | F164: Ref_Balanco_29 | H164: Texto | I164: 4000
A165: VL_RISCO_MERCADO_RWA_ANT | B165: Número | C165: 12 int 4 dec | F165: Ref_Balanco_30 | H165: Texto | I165: 4000
A166: VL_RISCO_MERCADO_PR | B166: Número | C166: 12 int 4 dec | F166: Ref_Balanco_31 | H166: Texto | I166: 4000
A167: VL_RWAMPAD_RWA | B167: Número | C167: 12 int 4 dec | F167: Ref_Balanco_32 | H167: Texto | I167: 4000
A168: VL_RWAMPAD_RWA_ANT | B168: Número | C168: 12 int 4 dec | F168: Ref_Balanco_33 | H168: Texto | I168: 4000
A169: VL_RWAMPAD_PR | B169: Número | C169: 12 int 4 dec | F169: Ref_Balanco_34 | H169: Texto | I169: 4000
A170: VL_RWAMINT_RWA | B170: Número | C170: 12 int 4 dec | F170: Ref_Balanco_35 | H170: Texto | I170: 4000
A171: VL_RWAMINT_RWA_ANT | B171: Número | C171: 12 int 4 dec | F171: Ref_Balanco_36 | H171: Texto | I171: 4000
A172: VL_RWAMINT_PR | B172: Número | C172: 12 int 4 dec | F172: Ref_Balanco_37 | H172: Texto | I172: 4000
A173: VL_RISCO_OPERACIONAL_RWA | B173: Número | C173: 12 int 4 dec | F173: Ref_Balanco_38 | H173: Texto | I173: 4000
A174: VL_RISCO_OPERACIONAL_RWA_ANT | B174: Número | C174: 12 int 4 dec | F174: Ref_Balanco_39 | H174: Texto | I174: 4000
A175: VL_RISCO_OPERACIONAL_PR | B175: Número | C175: 12 int 4 dec | F175: Ref_Balanco_40 | H175: Texto | I175: 4000
A176: VL_TOTAL_RWA | B176: Número | C176: 12 int 4 dec | F176: Ref_Balanco_41 | H176: Texto | I176: 4000
A177: VL_TOTAL_RWA_ANT | B177: Número | C177: 12 int 4 dec | F177: Ref_Balanco_41b | H177: Texto | I177: 4000
A178: VL_TOTAL_PR | B178: Número | C178: 12 int 4 dec | F178: Ref_Balanco_41c | H178: Texto | I178: 4000
A179: DS_COMENTARIO_TABELA | B179: Texto | C179: 4000 | F179: Ref_Balanco_42 | H179: Texto | I179: 4000
F180: Ref_Balanco_43 | H180: Texto | I180: 4000
A181: Tabela OVA | F181: Ref_Balanco_44 | H181: Texto | I181: 4000
A182: CAMPO | B182: TIPO | C182: TAMANHO | D182: Inf | F182: Ref_Balanco_45 | H182: Texto | I182: 4000
A183: COD_REFERENCIA | B183: Texto | C183: 6 | D183: Chave única | F183: Ref_Balanco_46 | H183: Texto | I183: 4000
A184: COD_TABELA | B184: Texto | C184: 8 | F184: Ref_Balanco_47 | H184: Texto | I184: 4000
A185: DT_REFERENCIA_ARQ | B185: Data | C185: dd/mm/aaaa | F185: Ref_Balanco_48 | H185: Texto | I185: 4000
A186: CAMPO_A | B186: Texto | C186: 4000 | F186: Ref_Balanco_49 | H186: Texto | I186: 4000
A187: CAMPO_B | B187: Texto | C187: 4000 | F187: Ref_Balanco_51 | H187: Texto | I187: 4000
A188: CAMPO_C | B188: Texto | C188: 4000 | F188: Ref_Balanco_52 | H188: Texto | I188: 4000
A189: CAMPO_D | B189: Texto | C189: 4000 | F189: Ref_Balanco_53 | H189: Texto | I189: 4000
A190: CAMPO_E | B190: Texto | C190: 4000 | F190: Ref_Balanco_54 | H190: Texto | I190: 4000
A191: CAMPO_F | B191: Texto | C191: 4000 | F191: Ref_Balanco_55 | H191: Texto | I191: 4000
A192: CAMPO_G | B192: Texto | C192: 4000 | F192: Ref_Balanco_56 | H192: Texto | I192: 4000
A193: CAMPO_H | B193: Texto | C193: 4000 | F193: Ref_Balanco_56b | H193: Texto | I193: 4000
A194: DS_COMENTÁRIO | B194: Texto | C194: 4000 | F194: Ref_Balanco_56c | H194: Texto | I194: 4000
F195: Ref_Balanco_57 | H195: Texto | I195: 4000
F196: Ref_Balanco_58 | H196: Texto | I196: 4000
A197: Tabela MR1 | F197: Ref_Balanco_59 | H197: Texto | I197: 4000
A198: CAMPO | B198: TIPO | C198: TAMANHO | D198: Inf | F198: Ref_Balanco_60 | H198: Texto | I198: 4000
A199: COD_REFERENCIA | B199: Texto | C199: 6 | D199: Chave única | F199: Ref_Balanco_61 | H199: Texto | I199: 4000
A200: COD_TABELA | B200: Texto | C200: 8 | F200: Ref_Balanco_62 | H200: Texto | I200: 4000
... 28 more rows

Sheet KM1
C5: Informações Quantitativas sobre os Requerimentos Prudenciais - (KM1)
E6: a | F6: b | G6: c | H6: d | I6: e
C7: Em R$ milhões | E7: =Arquivos!A14 -> 2023-12-01 | F7: =EDATE(E7,-3) -> 2023-09-01 | G7: =EDATE(F7,-3) -> 2023-06-01 | H7: =EDATE(G7,-3) -> 2023-03-01 | I7: =EDATE(H7,-3) -> 2022-12-01
D8: Capital Regulamentar – valores
C9: 1 | D9: Capital Principal | E9: =(SUMIFS(Tb_DLO[valorConta],Tb_DLO[dataBase],E$7,Tb_DLO[codigoConta],111)/10^6) -> 2184.024913 | F9: =(SUMIFS(Tb_DLO[valorConta],Tb_DLO[dataBase],F$7,Tb_DLO[codigoConta],111)/10^6) -> 2036.791477 | G9: =(SUMIFS(Tb_DLO[valorConta],Tb_DLO[dataBase],G$7,Tb_DLO[codigoConta],111)/10^6) -> 2061.138592 | H9: =(SUMIFS(Tb_DLO[valorConta],Tb_DLO[dataBase],H$7,Tb_DLO[codigoConta],111)/10^6) -> 1738.745463 | I9: =(SUMIFS(Tb_DLO[valorConta],Tb_DLO[dataBase],I$7,Tb_DLO[codigoConta],111)/10^6) -> 1859.490994
C10: 2 | D10: Nível I | E10: =(SUMIFS(Tb_DLO[valorConta],Tb_DLO[dataBase],E$7,Tb_DLO[codigoConta],110)/10^6) -> 2627.724458 | F10: =(SUMIFS(Tb_DLO[valorConta],Tb_DLO[dataBase],F$7,Tb_DLO[codigoConta],110)/10^6) -> 2464.86274 | G10: =(SUMIFS(Tb_DLO[valorConta],Tb_DLO[dataBase],G$7,Tb_DLO[codigoConta],110)/10^6) -> 2474.200371 | H10: =(SUMIFS(Tb_DLO[valorConta],Tb_DLO[dataBase],H$7,Tb_DLO[codigoConta],110)/10^6) -> 2134.976378 | I10: =(SUMIFS(Tb_DLO[valorConta],Tb_DLO[dataBase],I$7,Tb_DLO[codigoConta],110)/10^6) -> 2169.554846
C11: 3 | D11: Patrimônio de Referência (PR) | E11: =(SUMIFS(Tb_DLO[valorConta],Tb_DLO[dataBase],E$7,Tb_DLO[codigoConta],100)/10^6) -> 4070.995614 | F11: =(SUMIFS(Tb_DLO[valorConta],Tb_DLO[dataBase],F$7,Tb_DLO[codigoConta],100)/10^6) -> 3900.89453 | G11: =(SUMIFS(Tb_DLO[valorConta],Tb_DLO[dataBase],G$7,Tb_DLO[codigoConta],100)/10^6) -> 3887.890887 | H11: =(SUMIFS(Tb_DLO[valorConta],Tb_DLO[dataBase],H$7,Tb_DLO[codigoConta],100)/10^6) -> 3571.019595 | I11: =(SUMIFS(Tb_DLO[valorConta],Tb_DLO[dataBase],I$7,Tb_DLO[codigoConta],100)/10^6) -> 3522.435138
C12: 3b | D12: Excesso dos recursos aplicados no ativo permanente | E12: 0 | F12: 0 | G12: 0 | H12: 0 | I12: 0
C13: 3c | D13: Destaque do PR | E13: 0 | F13: 0 | G13: 0 | H13: 0 | I13: 0
D14: Ativos ponderados pelo risco (RWA) – valores
C15: 4 | D15: RWA total | E15: =(SUMIFS(Tb_DLO[valorConta],Tb_DLO[dataBase],E$7,Tb_DLO[codigoConta],900)/10^6) -> 27735.00648 | F15: =ROUND(SUMIFS(Tb_DLO[valorConta],Tb_DLO[dataBase],F$7,Tb_DLO[codigoConta],900)/10^6,4) -> 26850.8774 | G15: =ROUND(SUMIFS(Tb_DLO[valorConta],Tb_DLO[dataBase],G$7,Tb_DLO[codigoConta],900)/10^6,4) -> 26003.9361 | H15: =ROUND(SUMIFS(Tb_DLO[valorConta],Tb_DLO[dataBase],H$7,Tb_DLO[codigoConta],900)/10^6,4) -> 24820.9458 | I15: =ROUND(SUMIFS(Tb_DLO[valorConta],Tb_DLO[dataBase],I$7,Tb_DLO[codigoConta],900)/10^6,4) -> 23818.5177
D16: Capital regulamentar como proporção do RWA
C17: 5 | D17: Índice de Capital Principal (ICP) | E17: =E9/E15 -> 0.07874614757 | F17: =F9/F15 -> 0.07585567678 | G17: =G9/G15 -> 0.0792625618 | H17: =H9/H15 -> 0.07005153942 | I17: =I9/I15 -> 0.07806913166
C18: 6 | D18: Índice de Nível I (%) | E18: =E10/E15 -> 0.09474396407 | F18: =F10/F15 -> 0.0917982196 | G18: =G10/G15 -> 0.09514714854 | H18: =H10/H15 -> 0.08601510979 | I18: =I10/I15 -> 0.09108689605
C19: 7 | D19: Índice de Basileia | E19: =E11/E15 -> 0.1467818519 | F19: =F11/F15 -> 0.145279965 | G19: =G11/G15 -> 0.1495116306 | H19: =H11/H15 -> 0.1438712136 | I19: =I11/I15 -> 0.1478864127
D20: Adicional de Capital Principal (ACP) como proporção do RWA
C21: 8 | D21: Adicional de Conservação de Capital Principal - ACPConservação (%) | E21: =SUMIFS(ACP_Conserv,ACP_DT_REF,E$7) -> 0.025 | F21: =SUMIFS(ACP_Conserv,ACP_DT_REF,F$7) -> 0.025 | G21: =SUMIFS(ACP_Conserv,ACP_DT_REF,G$7) -> 0.025 | H21: =SUMIFS(ACP_Conserv,ACP_DT_REF,H$7) -> 0.025 | I21: =SUMIFS(ACP_Conserv,ACP_DT_REF,I$7) -> 0.025
C22: 9 | D22: Adicional Contracíclico de Capital Principal - ACPContracíclico (%) | E22: =SUMIFS(ACP_CONTRAC,ACP_DT_REF,E$7) -> 0 | F22: =SUMIFS(ACP_CONTRAC,ACP_DT_REF,F$7) -> 0 | G22: =SUMIFS(ACP_CONTRAC,ACP_DT_REF,G$7) -> 0 | H22: =SUMIFS(ACP_CONTRAC,ACP_DT_REF,H$7) -> 0 | I22: =SUMIFS(ACP_CONTRAC,ACP_DT_REF,I$7) -> 0
C23: 10 | D23: Adicional de Importância Sistêmica de Capital Principal - ACPSistêmico (%) | E23: =SUMIFS(ACP_SISTEM,ACP_DT_REF,E$7) -> 0 | F23: =SUMIFS(ACP_SISTEM,ACP_DT_REF,F$7) -> 0 | G23: =SUMIFS(ACP_SISTEM,ACP_DT_REF,G$7) -> 0 | H23: =SUMIFS(ACP_SISTEM,ACP_DT_REF,H$7) -> 0 | I23: =SUMIFS(ACP_SISTEM,ACP_DT_REF,I$7) -> 0
C24: 11 | D24: ACP total (%) | E24: =SUM(E21:E23) -> 0.025 | F24: =SUM(F21:F23) -> 0.025 | G24: =SUM(G21:G23) -> 0.025 | H24: =SUM(H21:H23) -> 0.025 | I24: =SUM(I21:I23) -> 0.025
C25: 12 | D25: Margem excedente de Capital Principal (%) | E25: =E17-E24-SUMIFS(ICP_min,ACP_DT_REF,E$7) -> 0.008746147571 | F25: =F17-F24-SUMIFS(ICP_min,ACP_DT_REF,F$7) -> 0.005855676778 | G25: =G17-G24-SUMIFS(ICP_min,ACP_DT_REF,G$7) -> 0.009262561799 | H25: =H17-H24-SUMIFS(ICP_min,ACP_DT_REF,H$7) -> 5.153942442e-05 | I25: =I17-I24-SUMIFS(ICP_min,ACP_DT_REF,I$7) -> 0.008069131659
D26: Razão de Alavancagem (RA)
C27: 13 | D27: Exposição total | E27: =(SUMIFS(Tb_DLO[valorConta],Tb_DLO[dataBase],E$7,Tb_DLO[codigoConta],141)/10^6) -> 52047.07357 | F27: =(SUMIFS(Tb_DLO[valorConta],Tb_DLO[dataBase],F$7,Tb_DLO[codigoConta],141)/10^6) -> 50256.61471 | G27: =(SUMIFS(Tb_DLO[valorConta],Tb_DLO[dataBase],G$7,Tb_DLO[codigoConta],141)/10^6) -> 48136.642 | H27: =(SUMIFS(Tb_DLO[valorConta],Tb_DLO[dataBase],H$7,Tb_DLO[codigoConta],141)/10^6) -> 44253.52246 | I27: =(SUMIFS(Tb_DLO[valorConta],Tb_DLO[dataBase],I$7,Tb_DLO[codigoConta],141)/10^6) -> 42964.91463
C28: 14 | D28: RA (%) | E28: =(SUMIFS(Tb_DLO[valorConta],Tb_DLO[dataBase],E$7,Tb_DLO[codigoConta],108)/10^6)/E27 -> 0.05048745832 | F28: =(SUMIFS(Tb_DLO[valorConta],Tb_DLO[dataBase],F$7,Tb_DLO[codigoConta],108)/10^6)/F27 -> 0.04904553866 | G28: =(SUMIFS(Tb_DLO[valorConta],Tb_DLO[dataBase],G$7,Tb_DLO[codigoConta],108)/10^6)/G27 -> 0.05139952161 | H28: =(SUMIFS(Tb_DLO[valorConta],Tb_DLO[dataBase],H$7,Tb_DLO[codigoConta],108)/10^6)/H27 -> 0.04824421332 | I28: =(SUMIFS(Tb_DLO[valorConta],Tb_DLO[dataBase],I$7,Tb_DLO[codigoConta],108)/10^6)/I27 -> 0.05049596547
D29: Indicador Liquidez de Curto Prazo (LCR)
C30: 15 | D30: Total de Ativos de Alta Liquidez (HQLA) | E30: NA | F30: NA | G30: NA | H30: NA | I30: NA
C31: 16 | D31: Total de saídas líquidas de caixa | E31: NA | F31: NA | G31: NA | H31: NA | I31: NA
C32: 17 | D32: LCR (%) | E32: NA | F32: NA | G32: NA | H32: NA | I32: NA
D33: Indicador de Liquidez de Longo Prazo (NSFR)
C34: 18 | D34: Recursos estáveis disponíveis (ASF) | E34: NA | F34: NA | G34: NA | H34: NA | I34: NA
C35: 19 | D35: Recursos estáveis requeridos (RSF) | E35: NA | F35: NA | G35: NA | H35: NA | I35: NA
C36: 20 | D36: NSFR (%) | E36: NA | F36: NA | G36: NA | H36: NA | I36: NA
C37: NA: não aplicável para instituições não sujeitas a esse cálculo ou requerimento.
D38: sem comentários
D54: Ref
D55: Tabela
D56: Dt_Ref_a
D57: Dt_Ref_b
D58: Dt_Ref_c
D59: Dt_Ref_d
D60: Dt_Ref_e
D61: Capital_Principal_a
D62: Capital_Principal_b
D63: Capital_Principal_c
D64: Capital_Principal_d
D65: Capital_Principal_e
D66: Nível_I_a
D67: Nível_I_b
D68: Nível_I_c
D69: Nível_I_d
D70: Nível_I_e
D71: Patrimônio de Referência (PR)_a
D72: Patrimônio de Referência (PR)_b
D73: Patrimônio de Referência (PR)_c
D74: Patrimônio de Referência (PR)_d
D75: Patrimônio de Referência (PR)_e
D76: Excesso dos recursos aplicados no ativo permanente_a
D77: Excesso dos recursos aplicados no ativo permanente_b
D78: Excesso dos recursos aplicados no ativo permanente_c
D79: Excesso dos recursos aplicados no ativo permanente_d
D80: Excesso dos recursos aplicados no ativo permanente_e
D81: Destaque do PR_a
D82: Destaque do PR_b
D83: Destaque do PR_c
D84: Destaque do PR_d
D85: Destaque do PR_e
D86: RWA total_a
D87: RWA total_b
D88: RWA total_c
D89: RWA total_d
D90: RWA total_e
D91: Índice de Capital Principal (ICP)_a
D92: Índice de Capital Principal (ICP)_b
D93: Índice de Capital Principal (ICP)_c
D94: Índice de Capital Principal (ICP)_d
D95: Índice de Capital Principal (ICP)_e
D96: Índice de Nível 1 (%)_a
D97: Índice de Nível 1 (%)_b
D98: Índice de Nível 1 (%)_c
D99: Índice de Nível 1 (%)_d
D100: Índice de Nível 1 (%)_e
D101: Índice de Basileia_a
D102: Índice de Basileia_b
D103: Índice de Basileia_c
D104: Índice de Basileia_d
D105: Índice de Basileia_e
D106: Adicional de Conservação de Capital Principal - ACPConservação (%)_a
D107: Adicional de Conservação de Capital Principal - ACPConservação (%)_b
D108: Adicional de Conservação de Capital Principal - ACPConservação (%)_c
D109: Adicional de Conservação de Capital Principal - ACPConservação (%)_d
D110: Adicional de Conservação de Capital Principal - ACPConservação (%)_e
D111: Adicional Contracíclico de Capital Principal - ACPContracíclico (%)_a
D112: Adicional Contracíclico de Capital Principal - ACPContracíclico (%)_b
D113: Adicional Contracíclico de Capital Principal - ACPContracíclico (%)_c
D114: Adicional Contracíclico de Capital Principal - ACPContracíclico (%)_d
D115: Adicional Contracíclico de Capital Principal - ACPContracíclico (%)_e
D116: Adicional de Importância Sistêmica de Capital Principal - ACPSistêmico (%)_a
D117: Adicional de Importância Sistêmica de Capital Principal - ACPSistêmico (%)_b
D118: Adicional de Importância Sistêmica de Capital Principal - ACPSistêmico (%)_c
D119: Adicional de Importância Sistêmica de Capital Principal - ACPSistêmico (%)_d
D120: Adicional de Importância Sistêmica de Capital Principal - ACPSistêmico (%)_e
D121: ACP total (%)_a
D122: ACP total (%)_b
D123: ACP total (%)_c
D124: ACP total (%)_d
D125: ACP total (%)_e
D126: Margem excedente de Capital Principal (%)_a
D127: Margem excedente de Capital Principal (%)_b
D128: Margem excedente de Capital Principal (%)_c
D129: Margem excedente de Capital Principal (%)_d
D130: Margem excedente de Capital Principal (%)_e
D131: Exposição total_a
D132: Exposição total_b
D133: Exposição total_c
D134: Exposição total_d
D135: Exposição total_e
D136: RA (%)_a
D137: RA (%)_b
D138: RA (%)_c
D139: RA (%)_d
D140: RA (%)_a
D141: Total de Ativos de Alta Liquidez (HQLA)_a
D142: Total de Ativos de Alta Liquidez (HQLA)_b
D143: Total de Ativos de Alta Liquidez (HQLA)_c
D144: Total de Ativos de Alta Liquidez (HQLA)_d
D145: Total de Ativos de Alta Liquidez (HQLA)_e
D146: Total de saídas líquidas de caixa_a
D147: Total de saídas líquidas de caixa_b
D148: Total de saídas líquidas de caixa_c
D149: Total de saídas líquidas de caixa_d
D150: Total de saídas líquidas de caixa_e
D151: LCR (%)_a
D152: LCR (%)_b
D153: LCR (%)_c
D154: LCR (%)_d
D155: LCR (%)_e
D156: Recursos estáveis disponíveis (ASF)_a
D157: Recursos estáveis disponíveis (ASF)_b
D158: Recursos estáveis disponíveis (ASF)_c
D159: Recursos estáveis disponíveis (ASF)_d
D160: Recursos estáveis disponíveis (ASF)_e
D161: Recursos estáveis requeridos (RSF)_a
D162: Recursos estáveis requeridos (RSF)_b
D163: Recursos estáveis requeridos (RSF)_c
D164: Recursos estáveis requeridos (RSF)_d
D165: Recursos estáveis requeridos (RSF)_e
D166: NSFR (%)_a
D167: NSFR (%)_b
D168: NSFR (%)_c
D169: NSFR (%)_d
D170: NSFR (%)_e
D171: Comentários

Sheet csv_KM1
A1: COD_TABELA | B1: COD_REFERENCIA | C1: DT_REFERENCIA_ARQ | D1: DT_REFERENCIA_A | E1: DT_REFERENCIA_B | F1: DT_REFERENCIA_C | G1: DT_REFERENCIA_D | H1: DT_REFERENCIA_E | I1: VL_CAPITAL_PRINCIPAL_A | J1: VL_CAPITAL_PRINCIPAL_B | K1: VL_CAPITAL_PRINCIPAL_C | L1: VL_CAPITAL_PRINCIPAL_D | M1: VL_CAPITAL_PRINCIPAL_E | N1: VL_NIVEL1_A | O1: VL_NIVEL1_B | P1: VL_NIVEL1_C | Q1: VL_NIVEL1_D | R1: VL_NIVEL1_E | S1: VL_PATRIMONIO_REFERENCIA_A | T1: VL_PATRIMONIO_REFERENCIA_B | U1: VL_PATRIMONIO_REFERENCIA_C | V1: VL_PATRIMONIO_REFERENCIA_D | W1: VL_PATRIMONIO_REFERENCIA_E | X1: VL_EXCESSO_REC_APL_AP_A | Y1: VL_EXCESSO_REC_APL_AP_B | Z1: VL_EXCESSO_REC_APL_AP_C | AA1: VL_EXCESSO_REC_APL_AP_D | AB1: VL_EXCESSO_REC_APL_AP_E | AC1: DESTAQUE_PR_A | AD1: DESTAQUE_PR_B | AE1: DESTAQUE_PR_C | AF1: DESTAQUE_PR_D | AG1: DESTAQUE_PR_E | AH1: VL_RWA_TOTAL_A | AI1: VL_RWA_TOTAL_B | AJ1: VL_RWA_TOTAL_C | AK1: VL_RWA_TOTAL_D | AL1: VL_RWA_TOTAL_E | AM1: VL_ICP_A | AN1: VL_ICP_B | AO1: VL_ICP_C | AP1: VL_ICP_D | AQ1: VL_ICP_E | AR1: VL_INDICE_NIVEL1_A | AS1: VL_INDICE_NIVEL1_B | AT1: VL_INDICE_NIVEL1_C | AU1: VL_INDICE_NIVEL1_D | AV1: VL_INDICE_NIVEL1_E | AW1: VL_INDICE_BASILEIA_A | AX1: VL_INDICE_BASILEIA_B | AY1: VL_INDICE_BASILEIA_C | AZ1: VL_INDICE_BASILEIA_D | BA1: VL_INDICE_BASILEIA_E | BB1: VL_ACP_CONSEVACAO_A | BC1: VL_ACP_CONSEVACAO_B | BD1: VL_ACP_CONSEVACAO_C | BE1: VL_ACP_CONSEVACAO_D | BF1: VL_ACP_CONSEVACAO_E | BG1: VL_ACP_CONTRACICLICO_A | BH1: VL_ACP_CONTRACICLICO_B | BI1: VL_ACP_CONTRACICLICO_C | BJ1: VL_ACP_CONTRACICLICO_D | BK1: VL_ACP_CONTRACICLICO_E | BL1: VL_ACP_SISTEMICO_A | BM1: VL_ACP_SISTEMICO_B | BN1: VL_ACP_SISTEMICO_C | BO1: VL_ACP_SISTEMICO_D | BP1: VL_ACP_SISTEMICO_E | BQ1: VL_ACP_TOTAL_A | BR1: VL_ACP_TOTAL_B | BS1: VL_ACP_TOTAL_C | BT1: VL_ACP_TOTAL_D | BU1: VL_ACP_TOTAL_E | BV1: VL_MARGEM_EXCEDENTE_CP_A | BW1: VL_MARGEM_EXCEDENTE_CP_B | BX1: VL_MARGEM_EXCEDENTE_CP_C | BY1: VL_MARGEM_EXCEDENTE_CP_D | BZ1: VL_MARGEM_EXCEDENTE_CP_E | CA1: VL_EXPOSICAO_TOTAL_A | CB1: VL_EXPOSICAO_TOTAL_B | CC1: VL_EXPOSICAO_TOTAL_C | CD1: VL_EXPOSICAO_TOTAL_D | CE1: VL_EXPOSICAO_TOTAL_E | CF1: VL_RA_A | CG1: VL_RA_B | CH1: VL_RA_C | CI1: VL_RA_D | CJ1: VL_RA_E | CK1: VL_HQLA_A | CL1: VL_HQLA_B | CM1: VL_HQLA_C | CN1: VL_HQLA_D | CO1: VL_HQLA_E | CP1: VL_TOTAL_SAIDAS_LIQ_CAIXA_A | CQ1: VL_TOTAL_SAIDAS_LIQ_CAIXA_B | CR1: VL_TOTAL_SAIDAS_LIQ_CAIXA_C | CS1: VL_TOTAL_SAIDAS_LIQ_CAIXA_D | CT1: VL_TOTAL_SAIDAS_LIQ_CAIXA_E | CU1: VL_LCR_A | CV1: VL_LCR_B | CW1: VL_LCR_C | CX1: VL_LCR_D | CY1: VL_LCR_E | CZ1: VL_ASF_A | DA1: VL_ASF_B | DB1: VL_ASF_C | DC1: VL_ASF_D | DD1: VL_ASF_E | DE1: VL_RSF_A | DF1: VL_RSF_B | DG1: VL_RSF_C | DH1: VL_RSF_D | DI1: VL_RSF_E | DJ1: VL_NSFR_A | DK1: VL_NSFR_B | DL1: VL_NSFR_C | DM1: VL_NSFR_D | DN1: VL_NSFR_E | DO1: DS_COMENTÁRIO_TABELA
A2: KM1 | B2: =YEAR(C2)&IF(MONTH(C2)>9,4,IF(MONTH(C2)>6,3,IF(MONTH(C2)>3,2,1)))&"T" -> 20234T | C2: =EOMONTH('KM1'!E7,0) -> 2023-12-31 | D2: =EOMONTH('KM1'!E7,0) -> 2023-12-31 | E2: =EOMONTH('KM1'!F7,0) -> 2023-09-30 | F2: =EOMONTH('KM1'!G7,0) -> 2023-06-30 | G2: =EOMONTH('KM1'!H7,0) -> 2023-03-31 | H2: =EOMONTH('KM1'!I7,0) -> 2022-12-31 | I2: ='KM1'!E9*10^6 -> 2184024913 | J2: ='KM1'!F9*10^6 -> 2036791477 | K2: ='KM1'!G9*10^6 -> 2061138592 | L2: ='KM1'!H9*10^6 -> 1738745463 | M2: ='KM1'!I9*10^6 -> 1859490994 | N2: ='KM1'!E10*10^6 -> 2627724458 | O2: ='KM1'!F10*10^6 -> 2464862740 | P2: ='KM1'!G10*10^6 -> 2474200371 | Q2: ='KM1'!H10*10^6 -> 2134976378 | R2: ='KM1'!I10*10^6 -> 2169554846 | S2: ='KM1'!E11*10^6 -> 4070995614 | T2: ='KM1'!F11*10^6 -> 3900894530 | U2: ='KM1'!G11*10^6 -> 3887890887 | V2: ='KM1'!H11*10^6 -> 3571019595 | W2: ='KM1'!I11*10^6 -> 3522435138 | X2: ='KM1'!E12*10^6 -> 0 | Y2: ='KM1'!F12*10^6 -> 0 | Z2: ='KM1'!G12*10^6 -> 0 | AA2: ='KM1'!H12*10^6 -> 0 | AB2: ='KM1'!I12*10^6 -> 0 | AC2: ='KM1'!E13*10^6 -> 0 | AD2: ='KM1'!F13*10^6 -> 0 | AE2: ='KM1'!G13*10^6 -> 0 | AF2: ='KM1'!H13*10^6 -> 0 | AG2: ='KM1'!I13*10^6 -> 0 | AH2: ='KM1'!E15*10^6 -> 2.773500648e+10 | AI2: ='KM1'!F15*10^6 -> 26850877400 | AJ2: ='KM1'!G15*10^6 -> 26003936100 | AK2: ='KM1'!H15*10^6 -> 24820945800 | AL2: ='KM1'!I15*10^6 -> 23818517700 | AM2: ='KM1'!E17 -> 0.07874614757 | AN2: ='KM1'!F17 -> 0.07585567678 | AO2: ='KM1'!G17 -> 0.0792625618 | AP2: ='KM1'!H17 -> 0.07005153942 | AQ2: ='KM1'!I17 -> 0.07806913166 | AR2: ='KM1'!E18 -> 0.09474396407 | AS2: ='KM1'!F18 -> 0.0917982196 | AT2: ='KM1'!G18 -> 0.09514714854 | AU2: ='KM1'!H18 -> 0.08601510979 | AV2: ='KM1'!I18 -> 0.09108689605 | AW2: ='KM1'!E19 -> 0.1467818519 | AX2: ='KM1'!F19 -> 0.145279965 | AY2: ='KM1'!G19 -> 0.1495116306 | AZ2: ='KM1'!H19 -> 0.1438712136 | BA2: ='KM1'!I19 -> 0.1478864127 | BB2: ='KM1'!E21 -> 0.025 | BC2: ='KM1'!F21 -> 0.025 | BD2: ='KM1'!G21 -> 0.025 | BE2: ='KM1'!H21 -> 0.025 | BF2: ='KM1'!I21 -> 0.025 | BG2: ='KM1'!E22 -> 0 | BH2: ='KM1'!F22 -> 0 | BI2: ='KM1'!G22 -> 0 | BJ2: ='KM1'!H22 -> 0 | BK2: ='KM1'!I22 -> 0 | BL2: ='KM1'!E23 -> 0 | BM2: ='KM1'!F23 -> 0 | BN2: ='KM1'!G23 -> 0 | BO2: ='KM1'!H23 -> 0 | BP2: ='KM1'!I23 -> 0 | BQ2: ='KM1'!E24 -> 0.025 | BR2: ='KM1'!F24 -> 0.025 | BS2: ='KM1'!G24 -> 0.025 | BT2: ='KM1'!H24 -> 0.025 | BU2: ='KM1'!I24 -> 0.025 | BV2: ='KM1'!E25 -> 0.008746147571 | BW2: ='KM1'!F25 -> 0.005855676778 | BX2: ='KM1'!G25 -> 0.009262561799 | BY2: ='KM1'!H25 -> 5.153942442e-05 | BZ2: ='KM1'!I25 -> 0.008069131659 | CA2: ='KM1'!E27*10^6 -> 5.204707357e+10 | CB2: ='KM1'!F27*10^6 -> 5.025661471e+10 | CC2: ='KM1'!G27*10^6 -> 4.8136642e+10 | CD2: ='KM1'!H27*10^6 -> 4.425352246e+10 | CE2: ='KM1'!I27*10^6 -> 4.296491463e+10 | CF2: ='KM1'!E28 -> 0.05048745832 | CG2: ='KM1'!F28 -> 0.04904553866 | CH2: ='KM1'!G28 -> 0.05139952161 | CI2: ='KM1'!H28 -> 0.04824421332 | CJ2: ='KM1'!I28 -> 0.05049596547 | CK2: ='KM1'!E30 -> NA | CL2: ='KM1'!F30 -> NA | CM2: ='KM1'!G30 -> NA | CN2: ='KM1'!H30 -> NA | CO2: ='KM1'!I30 -> NA | CP2: ='KM1'!E31 -> NA | CQ2: ='KM1'!F31 -> NA | CR2: ='KM1'!G31 -> NA | CS2: ='KM1'!H31 -> NA | CT2: ='KM1'!I31 -> NA | CU2: ='KM1'!E32 -> NA | CV2: ='KM1'!F32 -> NA | CW2: ='KM1'!G32 -> NA | CX2: ='KM1'!H32 -> NA | CY2: ='KM1'!I32 -> NA | CZ2: ='KM1'!E34 -> NA | DA2: ='KM1'!F34 -> NA | DB2: ='KM1'!G34 -> NA | DC2: ='KM1'!H34 -> NA | DD2: ='KM1'!I34 -> NA | DE2: ='KM1'!E35 -> NA | DF2: ='KM1'!F35 -> NA | DG2: ='KM1'!G35 -> NA | DH2: ='KM1'!H35 -> NA | DI2: ='KM1'!I35 -> NA | DJ2: ='KM1'!E36 -> NA | DK2: ='KM1'!F36 -> NA | DL2: ='KM1'!G36 -> NA | DM2: ='KM1'!H36 -> NA | DN2: ='KM1'!I36 -> NA | DO2: ='KM1'!D38 -> sem comentários
A4: DIV | B4: DIV | C4: DIV | D4: DIV | E4: DIV | F4: DIV | G4: DIV | H4: DIV | I4: NUM | J4: NUM | K4: NUM | L4: NUM | M4: NUM | N4: NUM | O4: NUM | P4: NUM | Q4: NUM | R4: NUM | S4: NUM | T4: NUM | U4: NUM | V4: NUM | W4: NUM | X4: NUM | Y4: NUM | Z4: NUM | AA4: NUM | AB4: NUM | AC4: NUM | AD4: NUM | AE4: NUM | AF4: NUM | AG4: NUM | AH4: NUM | AI4: NUM | AJ4: NUM | AK4: NUM | AL4: NUM | AM4: NUM | AN4: NUM | AO4: NUM | AP4: NUM | AQ4: NUM | AR4: NUM | AS4: NUM | AT4: NUM | AU4: NUM | AV4: NUM | AW4: NUM | AX4: NUM | AY4: NUM | AZ4: NUM | BA4: NUM | BB4: NUM | BC4: NUM | BD4: NUM | BE4: NUM | BF4: NUM | BG4: NUM | BH4: NUM | BI4: NUM | BJ4: NUM | BK4: NUM | BL4: NUM | BM4: NUM | BN4: NUM | BO4: NUM | BP4: NUM | BQ4: NUM | BR4: NUM | BS4: NUM | BT4: NUM | BU4: NUM | BV4: NUM | BW4: NUM | BX4: NUM | BY4: NUM | BZ4: NUM | CA4: NUM | CB4: NUM | CC4: NUM | CD4: NUM | CE4: NUM | CF4: NUM | CG4: NUM | CH4: NUM | CI4: NUM | CJ4: NUM | CK4: NUM | CL4: NUM | CM4: NUM | CN4: NUM | CO4: NUM | CP4: NUM | CQ4: NUM | CR4: NUM | CS4: NUM | CT4: NUM | CU4: NUM | CV4: NUM | CW4: NUM | CX4: NUM | CY4: NUM | CZ4: NUM | DA4: NUM | DB4: NUM | DC4: NUM | DD4: NUM | DE4: NUM | DF4: NUM | DG4: NUM | DH4: NUM | DI4: NUM | DJ4: NUM | DK4: NUM | DL4: NUM | DM4: NUM | DN4: NUM | DO4: TXT

Sheet OV1
C5: Visão geral dos ativos ponderados pelo risco RWA - (OV1)
E6: RWA | G6: Requerimento
G7: mínimo de PR
E8: a | F8: b | G8: c
C9: Em R$ milhões | E9: =Arquivos!A14 -> 2023-12-01 | F9: =EDATE(E9,-3) -> 2023-09-01 | G9: =E9 -> 2023-12-01
C10: 0 | D10: Risco de Crédito - tratamento mediante abordagem padronizada | E10: =SUMIFS(Tb_DLO[valorConta],Tb_DLO[dataBase],E$9,Tb_DLO[codigoConta],700)/10^6 -> 25872.2113 | F10: =SUMIFS(Tb_DLO[valorConta],Tb_DLO[dataBase],F$9,Tb_DLO[codigoConta],700)/10^6 -> 25013.99987 | G10: =IFERROR(E10*SUMIFS(Fator_F,ACP_DT_REF,G$9),0) -> 2069.776904
C11: 2 | D11: Risco de crédito em sentido estrito | E11: =E10-SUM(E12,E16,E17,E18,E19,E20,E21) -> 25501.20321 | F11: =F10-SUM(F12,F16,F17,F18,F19,F20,F21) -> 24523.88135 | G11: 2040.096257
C12: 6 | D12: Risco de crédito de contraparte (CCR) | E12: =SUM(E13:E15) -> 1.69651907 | F12: =SUM(F13:F15) -> 0.89302404 | G12: 0.1357215256
C13: 7 | D13: Do qual: mediante abordagem padronizada para risco de crédito de contraparte (SA-CCR) | E13: 0 | F13: 0 | G13: 0
C14: 7a | D14: Do qual: mediante uso da abordagem CEM | E14: 0 | F14: 0 | G14: 0
C15: 9 | D15: Do qual: mediante demais abordagens | E15: =(SUMIFS(Tb_DLO[valorDetalhe],Tb_DLO[dataBase],E$9,Tb_DLO[codigoConta],"520.03",Tb_DLO[codigoElemento],2)/10^6)+ (SUMIFS(Tb_DLO[valorDetalhe],Tb_DLO[dataBase],E$9,Tb_DLO[codigoConta],"520.02",Tb_DLO[codigoElemento],2)/10^6) -> 1.69651907 | F15: =(SUMIFS(Tb_DLO[valorDetalhe],Tb_DLO[dataBase],F$9,Tb_DLO[codigoConta],"520.03",Tb_DLO[codigoElemento],2)/10^6)+ (SUMIFS(Tb_DLO[valorDetalhe],Tb_DLO[dataBase],F$9,Tb_DLO[codigoConta],"520.02",Tb_DLO[codigoElemento],2)/10^6) -> 0.89302404 | G15: 0.1357215256
C16: 10 | D16: Acréscimo relativo ao ajuste associado à variação do valor dos derivativos em decorrência de variação da qualidade creditícia da contraparte (CVA) | E16: =SUMIFS(Tb_DLO[valorConta],Tb_DLO[dataBase],E$9,Tb_DLO[codigoConta],695)/10^6 -> 0 | F16: =SUMIFS(Tb_DLO[valorConta],Tb_DLO[dataBase],F$9,Tb_DLO[codigoConta],695)/10^6 -> 0 | G16: 0
C17: 12 | D17: Cotas de fundos não consolidados - ativos subjacentes identificados | E17: =(SUMIFS(Tb_DLO[valorDetalhe],Tb_DLO[codigoElemento],41,Tb_DLO[valorElemento],102,Tb_DLO[dataBase],E$9,Tb_DLO[codigoConta],"530.13")/10^6) -> 0 | F17: =(SUMIFS(Tb_DLO[valorDetalhe],Tb_DLO[codigoElemento],41,Tb_DLO[valorElemento],102,Tb_DLO[dataBase],F$9,Tb_DLO[codigoConta],"530.13")/10^6) -> 0 | G17: 0
C18: 13 | D18: Cotas de fundos não consolidados - ativos subjacentes inferidos conforme regulamento do fundo | E18: 0 | F18: 0 | G18: 0
C19: 14 | D19: Cotas de fundos não consolidados - ativos subjacentes não identificados | E19: =(SUMIFS(Tb_DLO[valorDetalhe],Tb_DLO[codigoElemento],41,Tb_DLO[valorElemento],73001250,Tb_DLO[dataBase],E$9,Tb_DLO[codigoConta],"530.50")/10^6) -> 3.86718138 | F19: =(SUMIFS(Tb_DLO[valorDetalhe],Tb_DLO[codigoElemento],41,Tb_DLO[valorElemento],73001250,Tb_DLO[dataBase],F$9,Tb_DLO[codigoConta],"530.50")/10^6) -> 27.41884825 | G19: 0.3093745104
C20: 16 | D20: Exposições de securitização - requerimento calculado mediante abordagem padronizada | E20: 0 | F20: 0 | G20: 0
C21: 25 | D21: Valores referentes às exposições não deduzidas no cálculo do PR | E21: =(SUMIFS(Tb_DLO[valorConta],Tb_DLO[dataBase],E$9,Tb_DLO[codigoConta],"111.94.08.03")/10^6)*2.5 -> 365.444384 | F21: =(SUMIFS(Tb_DLO[valorConta],Tb_DLO[dataBase],F$9,Tb_DLO[codigoConta],"111.94.08.03")/10^6)*2.5 -> 461.8066476 | G21: 29.23555072
C22: 20 | D22: Risco de Mercado | E22: =SUM(E23:E24) -> 51.83968243 | F22: =SUM(F23:F24) -> 25.92201999 | G22: 4.147174594
C23: 21 | D23: Do qual: requerimento calculado mediante abordagem padronizada (RWAMPAD) | E23: =(SUMIFS(Tb_DLO[valorConta],Tb_DLO[dataBase],E$9,Tb_DLO[codigoConta],770)/10^6) -> 51.83968243 | F23: =(SUMIFS(Tb_DLO[valorConta],Tb_DLO[dataBase],F$9,Tb_DLO[codigoConta],770)/10^6) -> 25.92201999 | G23: 4.147174594
C24: 22 | D24: Do qual: requerimento calculado mediante modelo interno (RWAMINT) | E24: =(SUMIFS(Tb_DLO[valorConta],Tb_DLO[dataBase],E$9,Tb_DLO[codigoConta],865)/10^6) -> 0 | F24: =(SUMIFS(Tb_DLO[valorConta],Tb_DLO[dataBase],F$9,Tb_DLO[codigoConta],865)/10^6) -> 0 | G24: 0
C25: 24 | D25: Risco Operacional | E25: =(SUMIFS(Tb_DLO[valorConta],Tb_DLO[dataBase],E$9,Tb_DLO[codigoConta],870)/10^6) -> 1810.955502 | F25: =(SUMIFS(Tb_DLO[valorConta],Tb_DLO[dataBase],F$9,Tb_DLO[codigoConta],870)/10^6) -> 1810.955502 | G25: 144.8764401
C26: 27 | D26: Total (2+6+10+12+13+14+16+25+20+24) | E26: =SUM(E25,E22,E10) -> 27735.00648 | F26: =SUM(F25,F22,F10) -> 26850.87739 | G26: 2218.800518
D28: Validação | E28: =SUMIFS(Tb_DLO[valorConta],Tb_DLO[dataBase],E$9,Tb_DLO[codigoConta],900)/10^6 -> 27735.00648 | F28: =(SUMIFS(Tb_DLO[valorConta],Tb_DLO[dataBase],F$9,Tb_DLO[codigoConta],900)/10^6) -> 26850.87739 | G28: =IFERROR(E28*SUMIFS(Fator_F,ACP_DT_REF,G$9),0) -> 2218.800518
E29: =E26-E28 -> 0 | F29: =F26-F28 -> 0 | G29: =G26-G28 -> 0
D30: sem comentários

Sheet csv_OV1
A1: COD_TABELA | B1: COD_REFERENCIA | C1: DT_REFERENCIA_ARQ | D1: Dt_Ref_a | E1: Dt_Ref_b | F1: Dt_Ref_c | G1: VL_RISCO_CRED_RWA_a | H1: VL_RISCO_CRED_RWA_b | I1: VL_RISCO_CRED_PR_c | J1: VL_RISCO_CRED_ESTRITO_RWA_a | K1: VL_RISCO_CRED_ESTRITO_RWA_b | L1: VL_RISCO_CRED_ESTRITO_PR_c | M1: VL_CCR_RWA_a | N1: VL_CCR_RWA_b | O1: VL_CCR_PR_c | P1: VL_SA_CCR_RWA_a | Q1: VL_SA_CCR_RWA_b | R1: VL_SA_CCR_PR_c | S1: VL_CEM_RWA_a | T1: VL_CEM_RWA_b | U1: VL_CEM_PR_c | V1: VL_OUTROS_RWA_a | W1: VL_OUTROS_RWA_b | X1: VL_OUTROS_PR_c | Y1: VL_CVA_RWA_a | Z1: VL_CVA_RWA_b | AA1: VL_CVA_PR_c | AB1: VL_CFNCASID_RWA_a | AC1: VL_CFNCASID_RWA_b | AD1: VL_CFNCASID_PR_c | AE1: VL_CFNCASIN_RWA_a | AF1: VL_CFNCASIN_RWA_b | AG1: VL_CFNCASIN_PR_c | AH1: VL_CFNCASNID_RWA_a | AI1: VL_CFNCASNID_RWA_b | AJ1: VL_CFNCASNID_PR_c | AK1: VL_EXP_SEC_AP_RWA_a | AL1: VL_EXP_SEC_AP_RWA_b | AM1: VL_EXP_SEC_AP_PR_c | AN1: VL_EXP_NDED_PR_RWA_a | AO1: VL_EXP_NDED_PR_RWA_b | AP1: VL_EXP_NDED_PR_c | AQ1: VL_RISCO_MERCADO_RWA_a | AR1: VL_RISCO_MERCADO_RWA_b | AS1: VL_RISCO_MERCADO_PR_c | AT1: VL_RWAMPAD_RWA_a | AU1: VL_RWAMPAD_RWA_b | AV1: VL_RWAMPAD_PR_c | AW1: VL_RWAMINT_RWA_a | AX1: VL_RWAMINT_RWA_b | AY1: VL_RWAMINT_PR_c | AZ1: VL_RISCO_OPERACIONAL_RWA_a | BA1: VL_RISCO_OPERACIONAL_RWA_b | BB1: VL_RISCO_OPERACIONAL_PR_c | BC1: VL_TOTAL_RWA_a | BD1: VL_TOTAL_RWA_b | BE1: VL_TOTAL_PR_c | BF1: DS_COMENTÁRIO_TABELA
A2: OV1 | B2: =YEAR(C2)&IF(MONTH(C2)>9,4,IF(MONTH(C2)>6,3,IF(MONTH(C2)>3,2,1)))&"T" -> 20234T | C2: =EOMONTH('OV1'!E9,0) -> 2023-12-31 | D2: =EOMONTH('OV1'!E9,0) -> 2023-12-31 | E2: =EOMONTH('OV1'!F9,0) -> 2023-09-30 | F2: =EOMONTH('OV1'!G9,0) -> 2023-12-31 | G2: ='OV1'!E10*10^6 -> 2.58722113e+10 | H2: ='OV1'!F10*10^6 -> 2.501399987e+10 | I2: ='OV1'!G10*10^6 -> 2069776904 | J2: ='OV1'!E11*10^6 -> 2.550120321e+10 | K2: ='OV1'!F11*10^6 -> 2.452388135e+10 | L2: ='OV1'!G11*10^6 -> 2040096257 | M2: ='OV1'!E12*10^6 -> 1696519.07 | N2: ='OV1'!F12*10^6 -> 893024.04 | O2: ='OV1'!G12*10^6 -> 135721.5256 | P2: ='OV1'!E13*10^6 -> 0 | Q2: ='OV1'!F13*10^6 -> 0 | R2: ='OV1'!G13*10^6 -> 0 | S2: ='OV1'!E14*10^6 -> 0 | T2: ='OV1'!F14*10^6 -> 0 | U2: ='OV1'!G14*10^6 -> 0 | V2: ='OV1'!E15*10^6 -> 1696519.07 | W2: ='OV1'!F15*10^6 -> 893024.04 | X2: ='OV1'!G15*10^6 -> 135721.5256 | Y2: ='OV1'!E16*10^6 -> 0 | Z2: ='OV1'!F16*10^6 -> 0 | AA2: ='OV1'!G16*10^6 -> 0 | AB2: ='OV1'!E17*10^6 -> 0 | AC2: ='OV1'!F17*10^6 -> 0 | AD2: ='OV1'!G17*10^6 -> 0 | AE2: ='OV1'!E18*10^6 -> 0 | AF2: ='OV1'!F18*10^6 -> 0 | AG2: ='OV1'!G18*10^6 -> 0 | AH2: ='OV1'!E19*10^6 -> 3867181.38 | AI2: ='OV1'!F19*10^6 -> 27418848.25 | AJ2: ='OV1'!G19*10^6 -> 309374.5104 | AK2: ='OV1'!E20*10^6 -> 0 | AL2: ='OV1'!F20*10^6 -> 0 | AM2: ='OV1'!G20*10^6 -> 0 | AN2: ='OV1'!E21*10^6 -> 365444384 | AO2: ='OV1'!F21*10^6 -> 461806647.6 | AP2: ='OV1'!G21*10^6 -> 29235550.72 | AQ2: ='OV1'!E22*10^6 -> 51839682.43 | AR2: ='OV1'!F22*10^6 -> 25922019.99 | AS2: ='OV1'!G22*10^6 -> 4147174.594 | AT2: ='OV1'!E23*10^6 -> 51839682.43 | AU2: ='OV1'!F23*10^6 -> 25922019.99 | AV2: ='OV1'!G23*10^6 -> 4147174.594 | AW2: ='OV1'!E24*10^6 -> 0 | AX2: ='OV1'!F24*10^6 -> 0 | AY2: ='OV1'!G24*10^6 -> 0 | AZ2: ='OV1'!E25*10^6 -> 1810955502 | BA2: ='OV1'!F25*10^6 -> 1810955502 | BB2: ='OV1'!G25*10^6 -> 144876440.1 | BC2: ='OV1'!E26*10^6 -> 2.773500648e+10 | BD2: ='OV1'!F26*10^6 -> 2.685087739e+10 | BE2: ='OV1'!G26*10^6 -> 2218800518 | BF2: ='OV1'!D30 -> sem comentários
A4: TXT | B4: TXT | C4: TXT | D4: TXT | E4: TXT | F4: TXT | G4: NUM | H4: NUM | I4: NUM | J4: NUM | K4: NUM | L4: NUM | M4: NUM | N4: NUM | O4: NUM | P4: NUM | Q4: NUM | R4: NUM | S4: NUM | T4: NUM | U4: NUM | V4: NUM | W4: NUM | X4: NUM | Y4: NUM | Z4: NUM | AA4: NUM | AB4: NUM | AC4: NUM | AD4: NUM | AE4: NUM | AF4: NUM | AG4: NUM | AH4: NUM | AI4: NUM | AJ4: NUM | AK4: NUM | AL4: NUM | AM4: NUM | AN4: NUM | AO4: NUM | AP4: NUM | AQ4: NUM | AR4: NUM | AS4: NUM | AT4: NUM | AU4: NUM | AV4: NUM | AW4: NUM | AX4: NUM | AY4: NUM | AZ4: NUM | BA4: NUM | BB4: NUM | BC4: NUM | BD4: NUM | BE4: NUM | BF4: TXT

Sheet MR1
C6: Abordagem padronizada - fatores de risco associados ao risco de mercado - (MR1)
E7: a
C8: em milhões | E8: =Arquivos!A14 -> 2023-12-01
D9: Fatores de Risco | E9: RWAMPAD
C10: 1 | D10: Taxas de juros | E10: 0
C11: 1a | D11: Taxas de juros prefixada denominadas em Real (RWAJUR1) | E11: 0
C12: 1b | D12: Taxas dos cupons de moeda estrangeira (RWAJUR2) | E12: 0
C13: 1c | D13: Taxas dos cupons de índices de preço (RWAJUR3) | E13: 0
C14: 1d | D14: Taxas dos cupons de taxas de juros (RWAJUR4) | E14: 0
C15: 2 | D15: Preços de ações (RWAACS) | E15: =SUMIFS(Tb_DLO[valorConta],Tb_DLO[dataBase],E$8,Tb_DLO[codigoConta],860)/10^6 -> 0
C16: 3 | D16: Taxas de câmbio (RWACAM) | E16: =SUMIFS(Tb_DLO[valorConta],Tb_DLO[dataBase],E$8,Tb_DLO[codigoConta],800)/10^6 -> 51.83968243
C17: 4 | D17: Preços de mercadorias (commodities) (RWACOM) | E17: =SUMIFS(Tb_DLO[valorConta],Tb_DLO[dataBase],E$8,Tb_DLO[codigoConta],850)/10^6 -> 0
C18: 9 | D18: Total | E18: =SUM(E10,E15,E16,E17) -> 51.83968243

Sheet csv_MR1
A1: COD_TABELA | B1: COD_REFERENCIA | C1: DT_REFERENCIA_ARQ | D1: Dt_Ref_campo_a | E1: VL_TX_JUROS | F1: PC_TX_JUROS_PREFIXADA | G1: VL_TX_CUPON_MOEDA | H1: VL_TX_INDICE_PRECO | I1: VL_TX_CUPON_JURO | J1: VL_ACOES | K1: VL_TX_CAMBIO | L1: VL_MERCADORIA | M1: VL_TOTAL | N1: DS_COMENTÁRIO_TABELA
A2: MR1 | B2: =YEAR(C2)&IF(MONTH(C2)>9,4,IF(MONTH(C2)>6,3,IF(MONTH(C2)>3,2,1)))&"T" -> 20234T | C2: =EOMONTH('MR1'!E8,0) -> 2023-12-31 | D2: =EOMONTH('MR1'!E8,0) -> 2023-12-31 | E2: ='MR1'!$E10*10^6 -> 0 | F2: ='MR1'!$E11*10^6 -> 0 | G2: ='MR1'!$E12*10^6 -> 0 | H2: ='MR1'!$E13*10^6 -> 0 | I2: ='MR1'!$E14*10^6 -> 0 | J2: ='MR1'!$E15*10^6 -> 0 | K2: ='MR1'!$E16*10^6 -> 51839682.43 | L2: ='MR1'!$E17*10^6 -> 0 | M2: ='MR1'!$E18*10^6 -> 51839682.43 | N2: ='MR1'!C19:E19 -> 0 | O2: 0 | P2: 0
A4: TXT | B4: TXT | C4: TXT | D4: TXT | E4: NUM | F4: NUM | G4: NUM | H4: NUM | I4: NUM | J4: NUM | K4: NUM | L4: NUM | M4: NUM | N4: TXT

Sheet CCA
C4: =Arquivos!A14 -> 2023-12-01
C5: ANEXO - I
C6: Principais características dos instrumentos que Compõem o Patrimônio de Referência - (CCA)
C7: Em R$ milhões
C8: 1 | D8: 2 | E8: 3 | F8: 4 | G8: 5 | H8: 6 | I8: 7 | J8: 8 | K8: 9 | L8: 10 | M8: 11 | N8: 12 | O8: 13 | P8: 14 | Q8: 15 (1) | R8: 15 (2) | S8: 15 (3) | T8: 16 | U8: 17 | V8: 18 | W8: 19 | X8: 20 | Y8: 21 | Z8: 22 | AA8: 23 | AB8: 24 | AC8: 25 | AD8: 26 | AE8: 27 | AF8: 28 | AG8: 29 | AH8: 30 | AI8: 31 | AJ8: 32 | AK8: 33 | AL8: 34a | AM8: 35 | AN8: 36 | AO8: 37
C9: Emissor | D9: Identificador único | E9: Lei aplicável ao instrumento | F9: Classificação do instrumento como componente do PR durante o tratamento temporário de que trata o art. 28 da Resolução nº 4.192, de 2013. | G9: Classificação do instrumento como componente do PR após o tratamento temporário de que trata a linha anterior | H9: Escopo da elegibilidade do instrumento | I9: Tipo de instrumento | J9: Valor reconhecido no PR | K9: Valor de face do instrumento | L9: Classificação contábil | M9: Data original de emissão | N9: Perpétuo ou com vencimento | O9: Data original de vencimento | P9: Opção de resgate ou recompra | Q9: Data de resgate ou de recompra | R9: Datas de resgate ou de recompra condicionadas | S9: Valor de resgate ou de recompra | T9: Datas de resgate ou de recompra subsequentes, se aplicável | U9: Remuneração ou dividendos fixos ou variáveis | V9: Taxa de remuneração e índice referenciado | W9: Possibilidade de suspensão de pagamento de dividendos | X9: Completa discricionariedade, discricionariedade parcial ou mandatória | Y9: Existência de cláusulas que alterem prazos ou condições de remuneração pactuados ou outro incentivo para resgate | Z9: Cumulativo ou não cumulativo | AA9: Conversível ou não conversível | AB9: Se conversível, em quais situações | AC9: Se conversível, totalmente ou parcialmente | AD9: Se conversível, taxa de conversão | AE9: Se conversível, conversão obrigatória ou opcional | AF9: Se conversível, especificar para qual tipo de instrumento | AG9: Se conversível, especificar o emissor do instrumento para o qual pode ser convertido | AH9: Características para a extinção do instrumento | AI9: Se extinguível, em quais situações | AJ9: Se extinguível, totalmente ou parcialmente | AK9: Se extinguível, permanentemente ou temporariamente | AL9: Tipo de subordinação | AM9: Posição na hierarquia de subordinação em caso de liquidação | AN9: Possui características que não serão aceitas após o tratamento temporário de que trata o art. 28 da Resolução nº 4.192, de 2013 | AO9: Se sim, especificar as características de que trata a linha anterior
B10: 1 | C10: BRB - BANCO DE BRASILIA S/A | D10: LFSN2200A16 | E10: Lei 12.249/2010 - Resolução 4.955/2021 do CMN | F10: Nível II | G10: Nível II | H10: Conglomerado | I10: Letra financeira | J10: 25374129.54 | K10: 20100000 | L10: passivo - custo amortizado | M10: 2022-08-10 | N10: Com vencimento | O10: 2029-08-10 | P10: Não | Q10: (1) Não há uma data específica, apenas quando for solicitado ao Bacen | R10: (2) Não há vinculação regulatória ou fiscal para resgate ou recompra | S10: (3) O valor pode ser parcial ou total, conforme autorização do Bacen | T10: Não se aplica | U10: Fixo | V10: 135% CDI | W10: Não | X10: Mandatório | Y10: Não | Z10: Cumulativo | AA10: Não conversível | AB10: Não se aplica | AC10: Não se aplica | AD10: Não se aplica | AE10: Não se aplica | AF10: Não se aplica | AG10: Não se aplica | AH10: Sim | AI10: Os títulos serão extintos, permanente e em valor no mínimo correspondente ao saldo computado no Nível II do Patrimônio de Referência do BRB – Banco de Brasília S.A nas seguintes condições: 1. seja verificada a divulgação pelo BRB – Banco de Brasília S.A. de que seu Capital Principal está em patamar inferior a 4,5% (quatro inteiros e cinco décimos por cento) do montante RWA, estabelecida pela regulamentação vigente; ou 2. seja verificada, em lei específica, a assinatura de compromisso de aporte para o BRB – Banco de Brasília S.A.; 3. seja decretado pelo BACEN o regime de administração especial temporária ou intervenção do BRB – Banco de Brasília S.A.; ou 4. seja determinado pelo BACEN, segundo critérios estabelecidos em regulamento específico editado pelo Conselho Monetário Nacional,a extinção do instrumento. | AJ10: Totalmente | AK10: Permanente | AL10: Contratual | AM10: Não | AN10: Não | AO10: Não se aplica
B11: 2 | C11: BRB - BANCO DE BRASILIA S/A | D11: LFSN2200DFD | E11: Lei 12.249/2010 - Resolução 4.955/2021 do CMN | F11: Nível II | G11: Nível II | H11: Conglomerado | I11: Letra financeira | J11: 11221012.24 | K11: 9300000 | L11: passivo - custo amortizado | M11: 2022-11-16 | N11: Com vencimento | O11: 2029-11-16 | P11: Não | Q11: (1) Não há uma data específica, apenas quando for solicitado ao Bacen | R11: (2) Não há vinculação regulatória ou fiscal para resgate ou recompra | S11: (3) O valor pode ser parcial ou total, conforme autorização do Bacen | T11: Não se aplica | U11: Fixo | V11: 135% CDI | W11: Não | X11: Mandatório | Y11: Não | Z11: Cumulativo | AA11: Não conversível | AB11: Não se aplica | AC11: Não se aplica | AD11: Não se aplica | AE11: Não se aplica | AF11: Não se aplica | AG11: Não se aplica | AH11: Sim | AI11: Os títulos serão extintos, permanente e em valor no mínimo correspondente ao saldo computado no Nível II do Patrimônio de Referência do BRB – Banco de Brasília S.A nas seguintes condições: 1. seja verificada a divulgação pelo BRB – Banco de Brasília S.A. de que seu Capital Principal está em patamar inferior a 4,5% (quatro inteiros e cinco décimos por cento) do montante RWA, estabelecida pela regulamentação vigente; ou 2. seja verificada, em lei específica, a assinatura de compromisso de aporte para o BRB – Banco de Brasília S.A.; 3. seja decretado pelo BACEN o regime de administração especial temporária ou intervenção do BRB – Banco de Brasília S.A.; ou 4. seja determinado pelo BACEN, segundo critérios estabelecidos em regulamento específico editado pelo Conselho Monetário Nacional,a extinção do instrumento. | AJ11: Totalmente | AK11: Permanente | AL11: Contratual | AM11: Não | AN11: Não | AO11: Não se aplica
B12: 3 | C12: BRB - BANCO DE BRASILIA S/A | D12: LFSN2200DFU | E12: Lei 12.249/2010 - Resolução 4.955/2021 do CMN | F12: Nível II | G12: Nível II | H12: Conglomerado | I12: Letra financeira | J12: 12651530.08 | K12: 10500000 | L12: passivo - custo amortizado | M12: 2022-11-18 | N12: Com vencimento | O12: 2029-11-19 | P12: Não | Q12: (1) Não há uma data específica, apenas quando for solicitado ao Bacen | R12: (2) Não há vinculação regulatória ou fiscal para resgate ou recompra | S12: (3) O valor pode ser parcial ou total, conforme autorização do Bacen | T12: Não se aplica | U12: Fixo | V12: 135% CDI | W12: Não | X12: Mandatório | Y12: Não | Z12: Cumulativo | AA12: Não conversível | AB12: Não se aplica | AC12: Não se aplica | AD12: Não se aplica | AE12: Não se aplica | AF12: Não se aplica | AG12: Não se aplica | AH12: Sim | AI12: Os títulos serão extintos, permanente e em valor no mínimo correspondente ao saldo computado no Nível II do Patrimônio de Referência do BRB – Banco de Brasília S.A nas seguintes condições: 1. seja verificada a divulgação pelo BRB – Banco de Brasília S.A. de que seu Capital Principal está em patamar inferior a 4,5% (quatro inteiros e cinco décimos por cento) do montante RWA, estabelecida pela regulamentação vigente; ou 2. seja verificada, em lei específica, a assinatura de compromisso de aporte para o BRB – Banco de Brasília S.A.; 3. seja decretado pelo BACEN o regime de administração especial temporária ou intervenção do BRB – Banco de Brasília S.A.; ou 4. seja determinado pelo BACEN, segundo critérios estabelecidos em regulamento específico editado pelo Conselho Monetário Nacional,a extinção do instrumento. | AJ12: Totalmente | AK12: Permanente | AL12: Contratual | AM12: Não | AN12: Não | AO12: Não se aplica
B13: 4 | C13: BRB - BANCO DE BRASILIA S/A | D13: LFSN2200BF5 | E13: Lei 12.249/2010 - Resolução 4.955/2021 do CMN | F13: Nível II | G13: Nível II | H13: Conglomerado | I13: Letra financeira | J13: 2428982.24 | K13: 2000000 | L13: passivo - custo amortizado | M13: 2022-10-21 | N13: Com vencimento | O13: 2029-10-22 | P13: Não | Q13: (1) Não há uma data específica, apenas quando for solicitado ao Bacen | R13: (2) Não há vinculação regulatória ou fiscal para resgate ou recompra | S13: (3) O valor pode ser parcial ou total, conforme autorização do Bacen | T13: Não se aplica | U13: Fixo | V13: 132% CDI | W13: Não | X13: Mandatório | Y13: Não | Z13: Cumulativo | AA13: Não conversível | AB13: Não se aplica | AC13: Não se aplica | AD13: Não se aplica | AE13: Não se aplica | AF13: Não se aplica | AG13: Não se aplica | AH13: Sim | AI13: Os títulos serão extintos, permanente e em valor no mínimo correspondente ao saldo computado no Nível II do Patrimônio de Referência do BRB – Banco de Brasília S.A nas seguintes condições: 1. seja verificada a divulgação pelo BRB – Banco de Brasília S.A. de que seu Capital Principal está em patamar inferior a 4,5% (quatro inteiros e cinco décimos por cento) do montante RWA, estabelecida pela regulamentação vigente; ou 2. seja verificada, em lei específica, a assinatura de compromisso de aporte para o BRB – Banco de Brasília S.A.; 3. seja decretado pelo BACEN o regime de administração especial temporária ou intervenção do BRB – Banco de Brasília S.A.; ou 4. seja determinado pelo BACEN, segundo critérios estabelecidos em regulamento específico editado pelo Conselho Monetário Nacional,a extinção do instrumento. | AJ13: Totalmente | AK13: Permanente | AL13: Contratual | AM13: Não | AN13: Não | AO13: Não se aplica
B14: 5 | C14: BRB - BANCO DE BRASILIA S/A | D14: LFSN23006SJ | E14: Lei 12.249/2010 - Resolução 4.955/2021 do CMN | F14: Nível II | G14: Nível II | H14: Conglomerado | I14: Letra financeira | J14: 688759.08 | K14: 600000 | L14: passivo - custo amortizado | M14: 2023-02-08 | N14: Com vencimento | O14: 2029-02-08 | P14: Não | Q14: (1) Não há uma data específica, apenas quando for solicitado ao Bacen | R14: (2) Não há vinculação regulatória ou fiscal para resgate ou recompra | S14: (3) O valor pode ser parcial ou total, conforme autorização do Bacen | T14: Não se aplica | U14: Fixo | V14: 127% CDI | W14: Não | X14: Mandatório | Y14: Não | Z14: Cumulativo | AA14: Não conversível | AB14: Não se aplica | AC14: Não se aplica | AD14: Não se aplica | AE14: Não se aplica | AF14: Não se aplica | AG14: Não se aplica | AH14: Sim | AI14: Os títulos serão extintos, permanente e em valor no mínimo correspondente ao saldo computado no Nível II do Patrimônio de Referência do BRB – Banco de Brasília S.A nas seguintes condições: 1. seja verificada a divulgação pelo BRB – Banco de Brasília S.A. de que seu Capital Principal está em patamar inferior a 4,5% (quatro inteiros e cinco décimos por cento) do montante RWA, estabelecida pela regulamentação vigente; ou 2. seja verificada, em lei específica, a assinatura de compromisso de aporte para o BRB – Banco de Brasília S.A.; 3. seja decretado pelo BACEN o regime de administração especial temporária ou intervenção do BRB – Banco de Brasília S.A.; ou 4. seja determinado pelo BACEN, segundo critérios estabelecidos em regulamento específico editado pelo Conselho Monetário Nacional,a extinção do instrumento. | AJ14: Totalmente | AK14: Permanente | AL14: Contratual | AM14: Não | AN14: Não | AO14: Não se aplica
B15: 6 | C15: BRB - BANCO DE BRASILIA S/A | D15: LFSN2200D4A | E15: Lei 12.249/2010 - Resolução 4.955/2021 do CMN | F15: Nível II | G15: Nível II | H15: Conglomerado | I15: Letra financeira | J15: 22472809.27 | K15: 18600000 | L15: passivo - custo amortizado | M15: 2022-11-11 | N15: Com vencimento | O15: 2029-11-12 | P15: Não | Q15: (1) Não há uma data específica, apenas quando for solicitado ao Bacen | R15: (2) Não há vinculação regulatória ou fiscal para resgate ou recompra | S15: (3) O valor pode ser parcial ou total, conforme autorização do Bacen | T15: Não se aplica | U15: Fixo | V15: 135% CDI | W15: Não | X15: Mandatório | Y15: Não | Z15: Cumulativo | AA15: Não conversível | AB15: Não se aplica | AC15: Não se aplica | AD15: Não se aplica | AE15: Não se aplica | AF15: Não se aplica | AG15: Não se aplica | AH15: Sim | AI15: Os títulos serão extintos, permanente e em valor no mínimo correspondente ao saldo computado no Nível II do Patrimônio de Referência do BRB – Banco de Brasília S.A nas seguintes condições: 1. seja verificada a divulgação pelo BRB – Banco de Brasília S.A. de que seu Capital Principal está em patamar inferior a 4,5% (quatro inteiros e cinco décimos por cento) do montante RWA, estabelecida pela regulamentação vigente; ou 2. seja verificada, em lei específica, a assinatura de compromisso de aporte para o BRB – Banco de Brasília S.A.; 3. seja decretado pelo BACEN o regime de administração especial temporária ou intervenção do BRB – Banco de Brasília S.A.; ou 4. seja determinado pelo BACEN, segundo critérios estabelecidos em regulamento específico editado pelo Conselho Monetário Nacional,a extinção do instrumento. | AJ15: Totalmente | AK15: Permanente | AL15: Contratual | AM15: Não | AN15: Não | AO15: Não se aplica
B16: 7 | C16: BRB - BANCO DE BRASILIA S/A | D16: LFSN2200ENT | E16: Lei 12.249/2010 - Resolução 4.955/2021 do CMN | F16: Nível II | G16: Nível II | H16: Conglomerado | I16: Letra financeira | J16: 6462057.94 | K16: 5400000 | L16: passivo - custo amortizado | M16: 2022-12-02 | N16: Com vencimento | O16: 2029-12-03 | P16: Não | Q16: (1) Não há uma data específica, apenas quando for solicitado ao Bacen | R16: (2) Não há vinculação regulatória ou fiscal para resgate ou recompra | S16: (3) O valor pode ser parcial ou total, conforme autorização do Bacen | T16: Não se aplica | U16: Fixo | V16: 135% CDI | W16: Não | X16: Mandatório | Y16: Não | Z16: Cumulativo | AA16: Não conversível | AB16: Não se aplica | AC16: Não se aplica | AD16: Não se aplica | AE16: Não se aplica | AF16: Não se aplica | AG16: Não se aplica | AH16: Sim | AI16: Os títulos serão extintos, permanente e em valor no mínimo correspondente ao saldo computado no Nível II do Patrimônio de Referência do BRB – Banco de Brasília S.A nas seguintes condições: 1. seja verificada a divulgação pelo BRB – Banco de Brasília S.A. de que seu Capital Principal está em patamar inferior a 4,5% (quatro inteiros e cinco décimos por cento) do montante RWA, estabelecida pela regulamentação vigente; ou 2. seja verificada, em lei específica, a assinatura de compromisso de aporte para o BRB – Banco de Brasília S.A.; 3. seja decretado pelo BACEN o regime de administração especial temporária ou intervenção do BRB – Banco de Brasília S.A.; ou 4. seja determinado pelo BACEN, segundo critérios estabelecidos em regulamento específico editado pelo Conselho Monetário Nacional,a extinção do instrumento. | AJ16: Totalmente | AK16: Permanente | AL16: Contratual | AM16: Não | AN16: Não | AO16: Não se aplica
B17: 8 | C17: BRB - BANCO DE BRASILIA S/A | D17: LFSN2200DW7 | E17: Lei 12.249/2010 - Resolução 4.955/2021 do CMN | F17: Nível II | G17: Nível II | H17: Conglomerado | I17: Letra financeira | J17: 16570839.38 | K17: 13800000 | L17: passivo - custo amortizado | M17: 2022-11-25 | N17: Com vencimento | O17: 2029-11-26 | P17: Não | Q17: (1) Não há uma data específica, apenas quando for solicitado ao Bacen | R17: (2) Não há vinculação regulatória ou fiscal para resgate ou recompra | S17: (3) O valor pode ser parcial ou total, conforme autorização do Bacen | T17: Não se aplica | U17: Fixo | V17: 135% CDI | W17: Não | X17: Mandatório | Y17: Não | Z17: Cumulativo | AA17: Não conversível | AB17: Não se aplica | AC17: Não se aplica | AD17: Não se aplica | AE17: Não se aplica | AF17: Não se aplica | AG17: Não se aplica | AH17: Sim | AI17: Os títulos serão extintos, permanente e em valor no mínimo correspondente ao saldo computado no Nível II do Patrimônio de Referência do BRB – Banco de Brasília S.A nas seguintes condições: 1. seja verificada a divulgação pelo BRB – Banco de Brasília S.A. de que seu Capital Principal está em patamar inferior a 4,5% (quatro inteiros e cinco décimos por cento) do montante RWA, estabelecida pela regulamentação vigente; ou 2. seja verificada, em lei específica, a assinatura de compromisso de aporte para o BRB – Banco de Brasília S.A.; 3. seja decretado pelo BACEN o regime de administração especial temporária ou intervenção do BRB – Banco de Brasília S.A.; ou 4. seja determinado pelo BACEN, segundo critérios estabelecidos em regulamento específico editado pelo Conselho Monetário Nacional,a extinção do instrumento. | AJ17: Totalmente | AK17: Permanente | AL17: Contratual | AM17: Não | AN17: Não | AO17: Não se aplica
B18: 9 | C18: BRB - BANCO DE BRASILIA S/A | D18: LFSN23006BT | E18: Lei 12.249/2010 - Resolução 4.955/2021 do CMN | F18: Nível II | G18: Nível II | H18: Conglomerado | I18: Letra financeira | J18: 10028406.51 | K18: 8700000 | L18: passivo - custo amortizado | M18: 2023-02-03 | N18: Com vencimento | O18: 2030-02-04 | P18: Não | Q18: (1) Não há uma data específica, apenas quando for solicitado ao Bacen | R18: (2) Não há vinculação regulatória ou fiscal para resgate ou recompra | S18: (3) O valor pode ser parcial ou total, conforme autorização do Bacen | T18: Não se aplica | U18: Fixo | V18: 129% CDI | W18: Não | X18: Mandatório | Y18: Não | Z18: Cumulativo | AA18: Não conversível | AB18: Não se aplica | AC18: Não se aplica | AD18: Não se aplica | AE18: Não se aplica | AF18: Não se aplica | AG18: Não se aplica | AH18: Sim | AI18: Os títulos serão extintos, permanente e em valor no mínimo correspondente ao saldo computado no Nível II do Patrimônio de Referência do BRB – Banco de Brasília S.A nas seguintes condições: 1. seja verificada a divulgação pelo BRB – Banco de Brasília S.A. de que seu Capital Principal está em patamar inferior a 4,5% (quatro inteiros e cinco décimos por cento) do montante RWA, estabelecida pela regulamentação vigente; ou 2. seja verificada, em lei específica, a assinatura de compromisso de aporte para o BRB – Banco de Brasília S.A.; 3. seja decretado pelo BACEN o regime de administração especial temporária ou intervenção do BRB – Banco de Brasília S.A.; ou 4. seja determinado pelo BACEN, segundo critérios estabelecidos em regulamento específico editado pelo Conselho Monetário Nacional,a extinção do instrumento. | AJ18: Totalmente | AK18: Permanente | AL18: Contratual | AM18: Não | AN18: Não | AO18: Não se aplica
B19: 10 | C19: BRB - BANCO DE BRASILIA S/A | D19: LFSN23006HE | E19: Lei 12.249/2010 - Resolução 4.955/2021 do CMN | F19: Nível II | G19: Nível II | H19: Conglomerado | I19: Letra financeira | J19: 345807.11 | K19: 300000 | L19: passivo - custo amortizado | M19: 2023-02-03 | N19: Com vencimento | O19: 2030-02-04 | P19: Não | Q19: (1) Não há uma data específica, apenas quando for solicitado ao Bacen | R19: (2) Não há vinculação regulatória ou fiscal para resgate ou recompra | S19: (3) O valor pode ser parcial ou total, conforme autorização do Bacen | T19: Não se aplica | U19: Fixo | V19: 129% CDI | W19: Não | X19: Mandatório | Y19: Não | Z19: Cumulativo | AA19: Não conversível | AB19: Não se aplica | AC19: Não se aplica | AD19: Não se aplica | AE19: Não se aplica | AF19: Não se aplica | AG19: Não se aplica | AH19: Sim | AI19: Os títulos serão extintos, permanente e em valor no mínimo correspondente ao saldo computado no Nível II do Patrimônio de Referência do BRB – Banco de Brasília S.A nas seguintes condições: 1. seja verificada a divulgação pelo BRB – Banco de Brasília S.A. de que seu Capital Principal está em patamar inferior a 4,5% (quatro inteiros e cinco décimos por cento) do montante RWA, estabelecida pela regulamentação vigente; ou 2. seja verificada, em lei específica, a assinatura de compromisso de aporte para o BRB – Banco de Brasília S.A.; 3. seja decretado pelo BACEN o regime de administração especial temporária ou intervenção do BRB – Banco de Brasília S.A.; ou 4. seja determinado pelo BACEN, segundo critérios estabelecidos em regulamento específico editado pelo Conselho Monetário Nacional,a extinção do instrumento. | AJ19: Totalmente | AK19: Permanente | AL19: Contratual | AM19: Não | AN19: Não | AO19: Não se aplica
B20: 11 | C20: BRB - BANCO DE BRASILIA S/A | D20: LFSN2200A15 | E20: Lei 12.249/2010 - Resolução 4.955/2021 do CMN | F20: Nível II | G20: Nível II | H20: Conglomerado | I20: Letra financeira | J20: 4004961.24 | K20: 4000000 | L20: passivo - custo amortizado | M20: 2022-08-10 | N20: Com vencimento | O20: 2028-08-10 | P20: Não | Q20: (1) Não há uma data específica, apenas quando for solicitado ao Bacen | R20: (2) Não há vinculação regulatória ou fiscal para resgate ou recompra | S20: (3) O valor pode ser parcial ou total, conforme autorização do Bacen | T20: Não se aplica | U20: Fixo | V20: 130% CDI | W20: Não | X20: Mandatório | Y20: Não | Z20: Cumulativo | AA20: Não conversível | AB20: Não se aplica | AC20: Não se aplica | AD20: Não se aplica | AE20: Não se aplica | AF20: Não se aplica | AG20: Não se aplica | AH20: Sim | AI20: Os títulos serão extintos, permanente e em valor no mínimo correspondente ao saldo computado no Nível II do Patrimônio de Referência do BRB – Banco de Brasília S.A nas seguintes condições: 1. seja verificada a divulgação pelo BRB – Banco de Brasília S.A. de que seu Capital Principal está em patamar inferior a 4,5% (quatro inteiros e cinco décimos por cento) do montante RWA, estabelecida pela regulamentação vigente; ou 2. seja verificada, em lei específica, a assinatura de compromisso de aporte para o BRB – Banco de Brasília S.A.; 3. seja decretado pelo BACEN o regime de administração especial temporária ou intervenção do BRB – Banco de Brasília S.A.; ou 4. seja determinado pelo BACEN, segundo critérios estabelecidos em regulamento específico editado pelo Conselho Monetário Nacional,a extinção do instrumento. | AJ20: Totalmente | AK20: Permanente | AL20: Contratual | AM20: Não | AN20: Não | AO20: Não se aplica
B21: 12 | C21: BRB - BANCO DE BRASILIA S/A | D21: LFSN22009KR | E21: Lei 12.249/2010 - Resolução 4.955/2021 do CMN | F21: Nível II | G21: Nível II | H21: Conglomerado | I21: Letra financeira | J21: 5758739.416 | K21: 5700000 | L21: passivo - custo amortizado | M21: 2022-07-21 | N21: Com vencimento | O21: 2028-07-21 | P21: Não | Q21: (1) Não há uma data específica, apenas quando for solicitado ao Bacen | R21: (2) Não há vinculação regulatória ou fiscal para resgate ou recompra | S21: (3) O valor pode ser parcial ou total, conforme autorização do Bacen | T21: Não se aplica | U21: Fixo | V21: 130% CDI | W21: Não | X21: Mandatório | Y21: Não | Z21: Cumulativo | AA21: Não conversível | AB21: Não se aplica | AC21: Não se aplica | AD21: Não se aplica | AE21: Não se aplica | AF21: Não se aplica | AG21: Não se aplica | AH21: Sim | AI21: Os títulos serão extintos, permanente e em valor no mínimo correspondente ao saldo computado no Nível II do Patrimônio de Referência do BRB – Banco de Brasília S.A nas seguintes condições: 1. seja verificada a divulgação pelo BRB – Banco de Brasília S.A. de que seu Capital Principal está em patamar inferior a 4,5% (quatro inteiros e cinco décimos por cento) do montante RWA, estabelecida pela regulamentação vigente; ou 2. seja verificada, em lei específica, a assinatura de compromisso de aporte para o BRB – Banco de Brasília S.A.; 3. seja decretado pelo BACEN o regime de administração especial temporária ou intervenção do BRB – Banco de Brasília S.A.; ou 4. seja determinado pelo BACEN, segundo critérios estabelecidos em regulamento específico editado pelo Conselho Monetário Nacional,a extinção do instrumento. | AJ21: Totalmente | AK21: Permanente | AL21: Contratual | AM21: Não | AN21: Não | AO21: Não se aplica
B22: 13 | C22: BRB - BANCO DE BRASILIA S/A | D22: LFSN22009KI | E22: Lei 12.249/2010 - Resolução 4.955/2021 do CMN | F22: Nível II | G22: Nível II | H22: Conglomerado | I22: Letra financeira | J22: 909854.288 | K22: 900000 | L22: passivo - custo amortizado | M22: 2022-07-20 | N22: Com vencimento | O22: 2028-07-20 | P22: Não | Q22: (1) Não há uma data específica, apenas quando for solicitado ao Bacen | R22: (2) Não há vinculação regulatória ou fiscal para resgate ou recompra | S22: (3) O valor pode ser parcial ou total, conforme autorização do Bacen | T22: Não se aplica | U22: Fixo | V22: 130% CDI | W22: Não | X22: Mandatório | Y22: Não | Z22: Cumulativo | AA22: Não conversível | AB22: Não se aplica | AC22: Não se aplica | AD22: Não se aplica | AE22: Não se aplica | AF22: Não se aplica | AG22: Não se aplica | AH22: Sim | AI22: Os títulos serão extintos, permanente e em valor no mínimo correspondente ao saldo computado no Nível II do Patrimônio de Referência do BRB – Banco de Brasília S.A nas seguintes condições: 1. seja verificada a divulgação pelo BRB – Banco de Brasília S.A. de que seu Capital Principal está em patamar inferior a 4,5% (quatro inteiros e cinco décimos por cento) do montante RWA, estabelecida pela regulamentação vigente; ou 2. seja verificada, em lei específica, a assinatura de compromisso de aporte para o BRB – Banco de Brasília S.A.; 3. seja decretado pelo BACEN o regime de administração especial temporária ou intervenção do BRB – Banco de Brasília S.A.; ou 4. seja determinado pelo BACEN, segundo critérios estabelecidos em regulamento específico editado pelo Conselho Monetário Nacional,a extinção do instrumento. | AJ22: Totalmente | AK22: Permanente | AL22: Contratual | AM22: Não | AN22: Não | AO22: Não se aplica
B23: 14 | C23: BRB - BANCO DE BRASILIA S/A | D23: LFSN22008YN | E23: Lei 12.249/2010 - Resolução 4.955/2021 do CMN | F23: Nível II | G23: Nível II | H23: Conglomerado | I23: Letra financeira | J23: 306002.736 | K23: 300000 | L23: passivo - custo amortizado | M23: 2022-06-30 | N23: Com vencimento | O23: 2028-06-30 | P23: Não | Q23: (1) Não há uma data específica, apenas quando for solicitado ao Bacen | R23: (2) Não há vinculação regulatória ou fiscal para resgate ou recompra | S23: (3) O valor pode ser parcial ou total, conforme autorização do Bacen | T23: Não se aplica | U23: Fixo | V23: 130% CDI | W23: Não | X23: Mandatório | Y23: Não | Z23: Cumulativo | AA23: Não conversível | AB23: Não se aplica | AC23: Não se aplica | AD23: Não se aplica | AE23: Não se aplica | AF23: Não se aplica | AG23: Não se aplica | AH23: Sim | AI23: Os títulos serão extintos, permanente e em valor no mínimo correspondente ao saldo computado no Nível II do Patrimônio de Referência do BRB – Banco de Brasília S.A nas seguintes condições: 1. seja verificada a divulgação pelo BRB – Banco de Brasília S.A. de que seu Capital Principal está em patamar inferior a 4,5% (quatro inteiros e cinco décimos por cento) do montante RWA, estabelecida pela regulamentação vigente; ou 2. seja verificada, em lei específica, a assinatura de compromisso de aporte para o BRB – Banco de Brasília S.A.; 3. seja decretado pelo BACEN o regime de administração especial temporária ou intervenção do BRB – Banco de Brasília S.A.; ou 4. seja determinado pelo BACEN, segundo critérios estabelecidos em regulamento específico editado pelo Conselho Monetário Nacional,a extinção do instrumento. | AJ23: Totalmente | AK23: Permanente | AL23: Contratual | AM23: Não | AN23: Não | AO23: Não se aplica
B24: 15 | C24: BRB - BANCO DE BRASILIA S/A | D24: LFSN22008YJ | E24: Lei 12.249/2010 - Resolução 4.955/2021 do CMN | F24: Nível II | G24: Nível II | H24: Conglomerado | I24: Letra financeira | J24: 33069364 | K24: 32400000 | L24: passivo - custo amortizado | M24: 2022-06-29 | N24: Com vencimento | O24: 2028-06-29 | P24: Não | Q24: (1) Não há uma data específica, apenas quando for solicitado ao Bacen | R24: (2) Não há vinculação regulatória ou fiscal para resgate ou recompra | S24: (3) O valor pode ser parcial ou total, conforme autorização do Bacen | T24: Não se aplica | U24: Fixo | V24: 130% CDI | W24: Não | X24: Mandatório | Y24: Não | Z24: Cumulativo | AA24: Não conversível | AB24: Não se aplica | AC24: Não se aplica | AD24: Não se aplica | AE24: Não se aplica | AF24: Não se aplica | AG24: Não se aplica | AH24: Sim | AI24: Os títulos serão extintos, permanente e em valor no mínimo correspondente ao saldo computado no Nível II do Patrimônio de Referência do BRB – Banco de Brasília S.A nas seguintes condições: 1. seja verificada a divulgação pelo BRB – Banco de Brasília S.A. de que seu Capital Principal está em patamar inferior a 4,5% (quatro inteiros e cinco décimos por cento) do montante RWA, estabelecida pela regulamentação vigente; ou 2. seja verificada, em lei específica, a assinatura de compromisso de aporte para o BRB – Banco de Brasília S.A.; 3. seja decretado pelo BACEN o regime de administração especial temporária ou intervenção do BRB – Banco de Brasília S.A.; ou 4. seja determinado pelo BACEN, segundo critérios estabelecidos em regulamento específico editado pelo Conselho Monetário Nacional,a extinção do instrumento. | AJ24: Totalmente | AK24: Permanente | AL24: Contratual | AM24: Não | AN24: Não | AO24: Não se aplica
B25: 16 | C25: BRB - BANCO DE BRASILIA S/A | D25: LFSN1900FDL | E25: Lei 12.249/2010 - Resolução 4.955/2021 do CMN | F25: Nível II | G25: Nível II | H25: Conglomerado | I25: Letra financeira | J25: 2763586.588 | K25: 4687827.93 | L25: passivo - custo amortizado | M25: 2019-09-23 | N25: Com vencimento | O25: 2026-09-23 | P25: Não | Q25: (1) Não há uma data específica, apenas quando for solicitado ao Bacen | R25: (2) Não há vinculação regulatória ou fiscal para resgate ou recompra | S25: (3) O valor pode ser parcial ou total, conforme autorização do Bacen | T25: Não se aplica | U25: Fixo | V25: 120% CDI | W25: Não | X25: Mandatório | Y25: Não | Z25: Cumulativo | AA25: Não conversível | AB25: Não se aplica | AC25: Não se aplica | AD25: Não se aplica | AE25: Não se aplica | AF25: Não se aplica | AG25: Não se aplica | AH25: Sim | AI25: Os títulos serão extintos, permanente e em valor no mínimo correspondente ao saldo computado no Nível II do Patrimônio de Referência do BRB – Banco de Brasília S.A nas seguintes condições: 1. seja verificada a divulgação pelo BRB – Banco de Brasília S.A. de que seu Capital Principal está em patamar inferior a 4,5% (quatro inteiros e cinco décimos por cento) do montante RWA, estabelecida pela regulamentação vigente; ou 2. seja verificada, em lei específica, a assinatura de compromisso de aporte para o BRB – Banco de Brasília S.A.; 3. seja decretado pelo BACEN o regime de administração especial temporária ou intervenção do BRB – Banco de Brasília S.A.; ou 4. seja determinado pelo BACEN, segundo critérios estabelecidos em regulamento específico editado pelo Conselho Monetário Nacional,a extinção do instrumento. | AJ25: Totalmente | AK25: Permanente | AL25: Contratual | AM25: Não | AN25: Não | AO25: Não se aplica
B26: 17 | C26: BRB - BANCO DE BRASILIA S/A | D26: LFSN1800I5C | E26: Lei 12.249/2010 - Resolução 4.955/2021 do CMN | F26: Nível II | G26: Nível II | H26: Conglomerado | I26: Letra financeira | J26: 3187771.82 | K26: 10000000 | L26: passivo - custo amortizado | M26: 2018-11-29 | N26: Com vencimento | O26: 2025-11-28 | P26: Não | Q26: (1) Não há uma data específica, apenas quando for solicitado ao Bacen | R26: (2) Não há vinculação regulatória ou fiscal para resgate ou recompra | S26: (3) O valor pode ser parcial ou total, conforme autorização do Bacen | T26: Não se aplica | U26: Fixo | V26: 125% CDI | W26: Não | X26: Mandatório | Y26: Não | Z26: Cumulativo | AA26: Não conversível | AB26: Não se aplica | AC26: Não se aplica | AD26: Não se aplica | AE26: Não se aplica | AF26: Não se aplica | AG26: Não se aplica | AH26: Sim | AI26: Os títulos serão extintos, permanente e em valor no mínimo correspondente ao saldo computado no Nível II do Patrimônio de Referência do BRB – Banco de Brasília S.A nas seguintes condições: 1. seja verificada a divulgação pelo BRB – Banco de Brasília S.A. de que seu Capital Principal está em patamar inferior a 4,5% (quatro inteiros e cinco décimos por cento) do montante RWA, estabelecida pela regulamentação vigente; ou 2. seja verificada, em lei específica, a assinatura de compromisso de aporte para o BRB – Banco de Brasília S.A.; 3. seja decretado pelo BACEN o regime de administração especial temporária ou intervenção do BRB – Banco de Brasília S.A.; ou 4. seja determinado pelo BACEN, segundo critérios estabelecidos em regulamento específico editado pelo Conselho Monetário Nacional,a extinção do instrumento. | AJ26: Totalmente | AK26: Permanente | AL26: Contratual | AM26: Não | AN26: Não | AO26: Não se aplica
B27: 18 | C27: BRB - BANCO DE BRASILIA S/A | D27: LFSN1900BZ7 | E27: Lei 12.249/2010 - Resolução 4.955/2021 do CMN | F27: Nível II | G27: Nível II | H27: Conglomerado | I27: Letra financeira | J27: 596714.044 | K27: 1000000 | L27: passivo - custo amortizado | M27: 2019-07-23 | N27: Com vencimento | O27: 2026-08-17 | P27: Não | Q27: (1) Não há uma data específica, apenas quando for solicitado ao Bacen | R27: (2) Não há vinculação regulatória ou fiscal para resgate ou recompra | S27: (3) O valor pode ser parcial ou total, conforme autorização do Bacen | T27: Não se aplica | U27: Fixo | V27: 120% CDI | W27: Não | X27: Mandatório | Y27: Não | Z27: Cumulativo | AA27: Não conversível | AB27: Não se aplica | AC27: Não se aplica | AD27: Não se aplica | AE27: Não se aplica | AF27: Não se aplica | AG27: Não se aplica | AH27: Sim | AI27: Os títulos serão extintos, permanente e em valor no mínimo correspondente ao saldo computado no Nível II do Patrimônio de Referência do BRB – Banco de Brasília S.A nas seguintes condições: 1. seja verificada a divulgação pelo BRB – Banco de Brasília S.A. de que seu Capital Principal está em patamar inferior a 4,5% (quatro inteiros e cinco décimos por cento) do montante RWA, estabelecida pela regulamentação vigente; ou 2. seja verificada, em lei específica, a assinatura de compromisso de aporte para o BRB – Banco de Brasília S.A.; 3. seja decretado pelo BACEN o regime de administração especial temporária ou intervenção do BRB – Banco de Brasília S.A.; ou 4. seja determinado pelo BACEN, segundo critérios estabelecidos em regulamento específico editado pelo Conselho Monetário Nacional,a extinção do instrumento. | AJ27: Totalmente | AK27: Permanente | AL27: Contratual | AM27: Não | AN27: Não | AO27: Não se aplica
B28: 19 | C28: BRB - BANCO DE BRASILIA S/A | D28: LFSN1900BZ5 | E28: Lei 12.249/2010 - Resolução 4.955/2021 do CMN | F28: Nível II | G28: Nível II | H28: Conglomerado | I28: Letra financeira | J28: 596714.044 | K28: 1000000 | L28: passivo - custo amortizado | M28: 2019-07-23 | N28: Com vencimento | O28: 2026-08-17 | P28: Não | Q28: (1) Não há uma data específica, apenas quando for solicitado ao Bacen | R28: (2) Não há vinculação regulatória ou fiscal para resgate ou recompra | S28: (3) O valor pode ser parcial ou total, conforme autorização do Bacen | T28: Não se aplica | U28: Fixo | V28: 120% CDI | W28: Não | X28: Mandatório | Y28: Não | Z28: Cumulativo | AA28: Não conversível | AB28: Não se aplica | AC28: Não se aplica | AD28: Não se aplica | AE28: Não se aplica | AF28: Não se aplica | AG28: Não se aplica | AH28: Sim | AI28: Os títulos serão extintos, permanente e em valor no mínimo correspondente ao saldo computado no Nível II do Patrimônio de Referência do BRB – Banco de Brasília S.A nas seguintes condições: 1. seja verificada a divulgação pelo BRB – Banco de Brasília S.A. de que seu Capital Principal está em patamar inferior a 4,5% (quatro inteiros e cinco décimos por cento) do montante RWA, estabelecida pela regulamentação vigente; ou 2. seja verificada, em lei específica, a assinatura de compromisso de aporte para o BRB – Banco de Brasília S.A.; 3. seja decretado pelo BACEN o regime de administração especial temporária ou intervenção do BRB – Banco de Brasília S.A.; ou 4. seja determinado pelo BACEN, segundo critérios estabelecidos em regulamento específico editado pelo Conselho Monetário Nacional,a extinção do instrumento. | AJ28: Totalmente | AK28: Permanente | AL28: Contratual | AM28: Não | AN28: Não | AO28: Não se aplica
B29: 20 | C29: BRB - BANCO DE BRASILIA S/A | D29: LFSN23007K9 | E29: Lei 12.249/2010 - Resolução 4.955/2021 do CMN | F29: Nível II | G29: Nível II | H29: Conglomerado | I29: Letra financeira | J29: 6204177.73 | K29: 5400000 | L29: passivo - custo amortizado | M29: 2023-02-10 | N29: Com vencimento | O29: 2030-02-11 | P29: Não | Q29: (1) Não há uma data específica, apenas quando for solicitado ao Bacen | R29: (2) Não há vinculação regulatória ou fiscal para resgate ou recompra | S29: (3) O valor pode ser parcial ou total, conforme autorização do Bacen | T29: Não se aplica | U29: Fixo | V29: 129% CDI | W29: Não | X29: Mandatório | Y29: Não | Z29: Cumulativo | AA29: Não conversível | AB29: Não se aplica | AC29: Não se aplica | AD29: Não se aplica | AE29: Não se aplica | AF29: Não se aplica | AG29: Não se aplica | AH29: Sim | AI29: Os títulos serão extintos, permanente e em valor no mínimo correspondente ao saldo computado no Nível II do Patrimônio de Referência do BRB – Banco de Brasília S.A nas seguintes condições: 1. seja verificada a divulgação pelo BRB – Banco de Brasília S.A. de que seu Capital Principal está em patamar inferior a 4,5% (quatro inteiros e cinco décimos por cento) do montante RWA, estabelecida pela regulamentação vigente; ou 2. seja verificada, em lei específica, a assinatura de compromisso de aporte para o BRB – Banco de Brasília S.A.; 3. seja decretado pelo BACEN o regime de administração especial temporária ou intervenção do BRB – Banco de Brasília S.A.; ou 4. seja determinado pelo BACEN, segundo critérios estabelecidos em regulamento específico editado pelo Conselho Monetário Nacional,a extinção do instrumento. | AJ29: Totalmente | AK29: Permanente | AL29: Contratual | AM29: Não | AN29: Não | AO29: Não se aplica
B30: 21 | C30: BRB - BANCO DE BRASILIA S/A | D30: LFSN23007KA | E30: Lei 12.249/2010 - Resolução 4.955/2021 do CMN | F30: Nível II | G30: Nível II | H30: Conglomerado | I30: Letra financeira | J30: 687871.43 | K30: 600000 | L30: passivo - custo amortizado | M30: 2023-02-10 | N30: Com vencimento | O30: 2029-02-14 | P30: Não | Q30: (1) Não há uma data específica, apenas quando for solicitado ao Bacen | R30: (2) Não há vinculação regulatória ou fiscal para resgate ou recompra | S30: (3) O valor pode ser parcial ou total, conforme autorização do Bacen | T30: Não se aplica | U30: Fixo | V30: 127% CDI | W30: Não | X30: Mandatório | Y30: Não | Z30: Cumulativo | AA30: Não conversível | AB30: Não se aplica | AC30: Não se aplica | AD30: Não se aplica | AE30: Não se aplica | AF30: Não se aplica | AG30: Não se aplica | AH30: Sim | AI30: Os títulos serão extintos, permanente e em valor no mínimo correspondente ao saldo computado no Nível II do Patrimônio de Referência do BRB – Banco de Brasília S.A nas seguintes condições: 1. seja verificada a divulgação pelo BRB – Banco de Brasília S.A. de que seu Capital Principal está em patamar inferior a 4,5% (quatro inteiros e cinco décimos por cento) do montante RWA, estabelecida pela regulamentação vigente; ou 2. seja verificada, em lei específica, a assinatura de compromisso de aporte para o BRB – Banco de Brasília S.A.; 3. seja decretado pelo BACEN o regime de administração especial temporária ou intervenção do BRB – Banco de Brasília S.A.; ou 4. seja determinado pelo BACEN, segundo critérios estabelecidos em regulamento específico editado pelo Conselho Monetário Nacional,a extinção do instrumento. | AJ30: Totalmente | AK30: Permanente | AL30: Contratual | AM30: Não | AN30: Não | AO30: Não se aplica
B31: 22 | C31: BRB - BANCO DE BRASILIA S/A | D31: LFSN2200ECS | E31: Lei 12.249/2010 - Resolução 4.955/2021 do CMN | F31: Nível II | G31: Nível II | H31: Conglomerado | I31: Letra financeira | J31: 7549409.27 | K31: 6300000 | L31: passivo - custo amortizado | M31: 2022-11-30 | N31: Com vencimento | O31: 2029-11-30 | P31: Não | Q31: (1) Não há uma data específica, apenas quando for solicitado ao Bacen | R31: (2) Não há vinculação regulatória ou fiscal para resgate ou recompra | S31: (3) O valor pode ser parcial ou total, conforme autorização do Bacen | T31: Não se aplica | U31: Fixo | V31: 135% CDI | W31: Não | X31: Mandatório | Y31: Não | Z31: Cumulativo | AA31: Não conversível | AB31: Não se aplica | AC31: Não se aplica | AD31: Não se aplica | AE31: Não se aplica | AF31: Não se aplica | AG31: Não se aplica | AH31: Sim | AI31: Os títulos serão extintos, permanente e em valor no mínimo correspondente ao saldo computado no Nível II do Patrimônio de Referência do BRB – Banco de Brasília S.A nas seguintes condições: 1. seja verificada a divulgação pelo BRB – Banco de Brasília S.A. de que seu Capital Principal está em patamar inferior a 4,5% (quatro inteiros e cinco décimos por cento) do montante RWA, estabelecida pela regulamentação vigente; ou 2. seja verificada, em lei específica, a assinatura de compromisso de aporte para o BRB – Banco de Brasília S.A.; 3. seja decretado pelo BACEN o regime de administração especial temporária ou intervenção do BRB – Banco de Brasília S.A.; ou 4. seja determinado pelo BACEN, segundo critérios estabelecidos em regulamento específico editado pelo Conselho Monetário Nacional,a extinção do instrumento. | AJ31: Totalmente | AK31: Permanente | AL31: Contratual | AM31: Não | AN31: Não | AO31: Não se aplica
B32: 23 | C32: BRB - BANCO DE BRASILIA S/A | D32: LFSN2200AO8 | E32: Lei 12.249/2010 - Resolução 4.955/2021 do CMN | F32: Nível II | G32: Nível II | H32: Conglomerado | I32: Letra financeira | J32: 124002511.1 | K32: 100200000 | L32: passivo - custo amortizado | M32: 2022-09-21 | N32: Com vencimento | O32: 2029-09-21 | P32: Não | Q32: (1) Não há uma data específica, apenas quando for solicitado ao Bacen | R32: (2) Não há vinculação regulatória ou fiscal para resgate ou recompra | S32: (3) O valor pode ser parcial ou total, conforme autorização do Bacen | T32: Não se aplica | U32: Fixo | V32: 135% CDI | W32: Não | X32: Mandatório | Y32: Não | Z32: Cumulativo | AA32: Não conversível | AB32: Não se aplica | AC32: Não se aplica | AD32: Não se aplica | AE32: Não se aplica | AF32: Não se aplica | AG32: Não se aplica | AH32: Sim | AI32: Os títulos serão extintos, permanente e em valor no mínimo correspondente ao saldo computado no Nível II do Patrimônio de Referência do BRB – Banco de Brasília S.A nas seguintes condições: 1. seja verificada a divulgação pelo BRB – Banco de Brasília S.A. de que seu Capital Principal está em patamar inferior a 4,5% (quatro inteiros e cinco décimos por cento) do montante RWA, estabelecida pela regulamentação vigente; ou 2. seja verificada, em lei específica, a assinatura de compromisso de aporte para o BRB – Banco de Brasília S.A.; 3. seja decretado pelo BACEN o regime de administração especial temporária ou intervenção do BRB – Banco de Brasília S.A.; ou 4. seja determinado pelo BACEN, segundo critérios estabelecidos em regulamento específico editado pelo Conselho Monetário Nacional,a extinção do instrumento. | AJ32: Totalmente | AK32: Permanente | AL32: Contratual | AM32: Não | AN32: Não | AO32: Não se aplica
B33: 24 | C33: BRB - BANCO DE BRASILIA S/A | D33: LFSN220093X | E33: Lei 12.249/2010 - Resolução 4.955/2021 do CMN | F33: Nível II | G33: Nível II | H33: Conglomerado | I33: Letra financeira | J33: 10059552.54 | K33: 9900000 | L33: passivo - custo amortizado | M33: 2022-07-08 | N33: Com vencimento | O33: 2028-07-10 | P33: Não | Q33: (1) Não há uma data específica, apenas quando for solicitado ao Bacen | R33: (2) Não há vinculação regulatória ou fiscal para resgate ou recompra | S33: (3) O valor pode ser parcial ou total, conforme autorização do Bacen | T33: Não se aplica | U33: Fixo | V33: 130% CDI | W33: Não | X33: Mandatório | Y33: Não | Z33: Cumulativo | AA33: Não conversível | AB33: Não se aplica | AC33: Não se aplica | AD33: Não se aplica | AE33: Não se aplica | AF33: Não se aplica | AG33: Não se aplica | AH33: Sim | AI33: Os títulos serão extintos, permanente e em valor no mínimo correspondente ao saldo computado no Nível II do Patrimônio de Referência do BRB – Banco de Brasília S.A nas seguintes condições: 1. seja verificada a divulgação pelo BRB – Banco de Brasília S.A. de que seu Capital Principal está em patamar inferior a 4,5% (quatro inteiros e cinco décimos por cento) do montante RWA, estabelecida pela regulamentação vigente; ou 2. seja verificada, em lei específica, a assinatura de compromisso de aporte para o BRB – Banco de Brasília S.A.; 3. seja decretado pelo BACEN o regime de administração especial temporária ou intervenção do BRB – Banco de Brasília S.A.; ou 4. seja determinado pelo BACEN, segundo critérios estabelecidos em regulamento específico editado pelo Conselho Monetário Nacional,a extinção do instrumento. | AJ33: Totalmente | AK33: Permanente | AL33: Contratual | AM33: Não | AN33: Não | AO33: Não se aplica
B34: 25 | C34: BRB - BANCO DE BRASILIA S/A | D34: LFSN2200B4D | E34: Lei 12.249/2010 - Resolução 4.955/2021 do CMN | F34: Nível II | G34: Nível II | H34: Conglomerado | I34: Letra financeira | J34: 19856853.8 | K34: 16200000 | L34: passivo - custo amortizado | M34: 2022-10-11 | N34: Com vencimento | O34: 2029-10-11 | P34: Não | Q34: (1) Não há uma data específica, apenas quando for solicitado ao Bacen | R34: (2) Não há vinculação regulatória ou fiscal para resgate ou recompra | S34: (3) O valor pode ser parcial ou total, conforme autorização do Bacen | T34: Não se aplica | U34: Fixo | V34: 135% CDI | W34: Não | X34: Mandatório | Y34: Não | Z34: Cumulativo | AA34: Não conversível | AB34: Não se aplica | AC34: Não se aplica | AD34: Não se aplica | AE34: Não se aplica | AF34: Não se aplica | AG34: Não se aplica | AH34: Sim | AI34: Os títulos serão extintos, permanente e em valor no mínimo correspondente ao saldo computado no Nível II do Patrimônio de Referência do BRB – Banco de Brasília S.A nas seguintes condições: 1. seja verificada a divulgação pelo BRB – Banco de Brasília S.A. de que seu Capital Principal está em patamar inferior a 4,5% (quatro inteiros e cinco décimos por cento) do montante RWA, estabelecida pela regulamentação vigente; ou 2. seja verificada, em lei específica, a assinatura de compromisso de aporte para o BRB – Banco de Brasília S.A.; 3. seja decretado pelo BACEN o regime de administração especial temporária ou intervenção do BRB – Banco de Brasília S.A.; ou 4. seja determinado pelo BACEN, segundo critérios estabelecidos em regulamento específico editado pelo Conselho Monetário Nacional,a extinção do instrumento. | AJ34: Totalmente | AK34: Permanente | AL34: Contratual | AM34: Não | AN34: Não | AO34: Não se aplica
B35: 26 | C35: BRB - BANCO DE BRASILIA S/A | D35: LFSN2200A1C | E35: Lei 12.249/2010 - Resolução 4.955/2021 do CMN | F35: Nível II | G35: Nível II | H35: Conglomerado | I35: Letra financeira | J35: 37845886.5 | K35: 30000000 | L35: passivo - custo amortizado | M35: 2022-08-11 | N35: Com vencimento | O35: 2029-08-13 | P35: Não | Q35: (1) Não há uma data específica, apenas quando for solicitado ao Bacen | R35: (2) Não há vinculação regulatória ou fiscal para resgate ou recompra | S35: (3) O valor pode ser parcial ou total, conforme autorização do Bacen | T35: Não se aplica | U35: Fixo | V35: 135% CDI | W35: Não | X35: Mandatório | Y35: Não | Z35: Cumulativo | AA35: Não conversível | AB35: Não se aplica | AC35: Não se aplica | AD35: Não se aplica | AE35: Não se aplica | AF35: Não se aplica | AG35: Não se aplica | AH35: Sim | AI35: Os títulos serão extintos, permanente e em valor no mínimo correspondente ao saldo computado no Nível II do Patrimônio de Referência do BRB – Banco de Brasília S.A nas seguintes condições: 1. seja verificada a divulgação pelo BRB – Banco de Brasília S.A. de que seu Capital Principal está em patamar inferior a 4,5% (quatro inteiros e cinco décimos por cento) do montante RWA, estabelecida pela regulamentação vigente; ou 2. seja verificada, em lei específica, a assinatura de compromisso de aporte para o BRB – Banco de Brasília S.A.; 3. seja decretado pelo BACEN o regime de administração especial temporária ou intervenção do BRB – Banco de Brasília S.A.; ou 4. seja determinado pelo BACEN, segundo critérios estabelecidos em regulamento específico editado pelo Conselho Monetário Nacional,a extinção do instrumento. | AJ35: Totalmente | AK35: Permanente | AL35: Contratual | AM35: Não | AN35: Não | AO35: Não se aplica
B36: 27 | C36: BRB - BANCO DE BRASILIA S/A | D36: LFSN2200A1D | E36: Lei 12.249/2010 - Resolução 4.955/2021 do CMN | F36: Nível II | G36: Nível II | H36: Conglomerado | I36: Letra financeira | J36: 63159326.01 | K36: 50100000 | L36: passivo - custo amortizado | M36: 2022-08-12 | N36: Com vencimento | O36: 2029-08-13 | P36: Não | Q36: (1) Não há uma data específica, apenas quando for solicitado ao Bacen | R36: (2) Não há vinculação regulatória ou fiscal para resgate ou recompra | S36: (3) O valor pode ser parcial ou total, conforme autorização do Bacen | T36: Não se aplica | U36: Fixo | V36: 135% CDI | W36: Não | X36: Mandatório | Y36: Não | Z36: Cumulativo | AA36: Não conversível | AB36: Não se aplica | AC36: Não se aplica | AD36: Não se aplica | AE36: Não se aplica | AF36: Não se aplica | AG36: Não se aplica | AH36: Sim | AI36: Os títulos serão extintos, permanente e em valor no mínimo correspondente ao saldo computado no Nível II do Patrimônio de Referência do BRB – Banco de Brasília S.A nas seguintes condições: 1. seja verificada a divulgação pelo BRB – Banco de Brasília S.A. de que seu Capital Principal está em patamar inferior a 4,5% (quatro inteiros e cinco décimos por cento) do montante RWA, estabelecida pela regulamentação vigente; ou 2. seja verificada, em lei específica, a assinatura de compromisso de aporte para o BRB – Banco de Brasília S.A.; 3. seja decretado pelo BACEN o regime de administração especial temporária ou intervenção do BRB – Banco de Brasília S.A.; ou 4. seja determinado pelo BACEN, segundo critérios estabelecidos em regulamento específico editado pelo Conselho Monetário Nacional,a extinção do instrumento. | AJ36: Totalmente | AK36: Permanente | AL36: Contratual | AM36: Não | AN36: Não | AO36: Não se aplica
B37: 28 | C37: BRB - BANCO DE BRASILIA S/A | D37: LFSN2200A1E | E37: Lei 12.249/2010 - Resolução 4.955/2021 do CMN | F37: Nível II | G37: Nível II | H37: Conglomerado | I37: Letra financeira | J37: 126318652 | K37: 100200000 | L37: passivo - custo amortizado | M37: 2022-08-12 | N37: Com vencimento | O37: 2029-08-13 | P37: Não | Q37: (1) Não há uma data específica, apenas quando for solicitado ao Bacen | R37: (2) Não há vinculação regulatória ou fiscal para resgate ou recompra | S37: (3) O valor pode ser parcial ou total, conforme autorização do Bacen | T37: Não se aplica | U37: Fixo | V37: 135% CDI | W37: Não | X37: Mandatório | Y37: Não | Z37: Cumulativo | AA37: Não conversível | AB37: Não se aplica | AC37: Não se aplica | AD37: Não se aplica | AE37: Não se aplica | AF37: Não se aplica | AG37: Não se aplica | AH37: Sim | AI37: Os títulos serão extintos, permanente e em valor no mínimo correspondente ao saldo computado no Nível II do Patrimônio de Referência do BRB – Banco de Brasília S.A nas seguintes condições: 1. seja verificada a divulgação pelo BRB – Banco de Brasília S.A. de que seu Capital Principal está em patamar inferior a 4,5% (quatro inteiros e cinco décimos por cento) do montante RWA, estabelecida pela regulamentação vigente; ou 2. seja verificada, em lei específica, a assinatura de compromisso de aporte para o BRB – Banco de Brasília S.A.; 3. seja decretado pelo BACEN o regime de administração especial temporária ou intervenção do BRB – Banco de Brasília S.A.; ou 4. seja determinado pelo BACEN, segundo critérios estabelecidos em regulamento específico editado pelo Conselho Monetário Nacional,a extinção do instrumento. | AJ37: Totalmente | AK37: Permanente | AL37: Contratual | AM37: Não | AN37: Não | AO37: Não se aplica
B38: 29 | C38: BRB - BANCO DE BRASILIA S/A | D38: LFSN2200EZ3 | E38: Lei 12.249/2010 - Resolução 4.955/2021 do CMN | F38: Nível II | G38: Nível II | H38: Conglomerado | I38: Letra financeira | J38: 1879676.088 | K38: 2000000 | L38: passivo - custo amortizado | M38: 2022-12-08 | N38: Com vencimento | O38: 2028-11-06 | P38: Não | Q38: (1) Não há uma data específica, apenas quando for solicitado ao Bacen | R38: (2) Não há vinculação regulatória ou fiscal para resgate ou recompra | S38: (3) O valor pode ser parcial ou total, conforme autorização do Bacen | T38: Não se aplica | U38: Fixo | V38: 123% CDI | W38: Não | X38: Mandatório | Y38: Não | Z38: Cumulativo | AA38: Não conversível | AB38: Não se aplica | AC38: Não se aplica | AD38: Não se aplica | AE38: Não se aplica | AF38: Não se aplica | AG38: Não se aplica | AH38: Sim | AI38: Os títulos serão extintos, permanente e em valor no mínimo correspondente ao saldo computado no Nível II do Patrimônio de Referência do BRB – Banco de Brasília S.A nas seguintes condições: 1. seja verificada a divulgação pelo BRB – Banco de Brasília S.A. de que seu Capital Principal está em patamar inferior a 4,5% (quatro inteiros e cinco décimos por cento) do montante RWA, estabelecida pela regulamentação vigente; ou 2. seja verificada, em lei específica, a assinatura de compromisso de aporte para o BRB – Banco de Brasília S.A.; 3. seja decretado pelo BACEN o regime de administração especial temporária ou intervenção do BRB – Banco de Brasília S.A.; ou 4. seja determinado pelo BACEN, segundo critérios estabelecidos em regulamento específico editado pelo Conselho Monetário Nacional,a extinção do instrumento. | AJ38: Totalmente | AK38: Permanente | AL38: Contratual | AM38: Não | AN38: Não | AO38: Não se aplica
B39: 30 | C39: BRB - BANCO DE BRASILIA S/A | D39: LFSN2200A6R | E39: Lei 12.249/2010 - Resolução 4.955/2021 do CMN | F39: Nível II | G39: Nível II | H39: Conglomerado | I39: Letra financeira | J39: 63072806.07 | K39: 50100000 | L39: passivo - custo amortizado | M39: 2022-08-16 | N39: Com vencimento | O39: 2029-08-16 | P39: Não | Q39: (1) Não há uma data específica, apenas quando for solicitado ao Bacen | R39: (2) Não há vinculação regulatória ou fiscal para resgate ou recompra | S39: (3) O valor pode ser parcial ou total, conforme autorização do Bacen | T39: Não se aplica | U39: Fixo | V39: 135% CDI | W39: Não | X39: Mandatório | Y39: Não | Z39: Cumulativo | AA39: Não conversível | AB39: Não se aplica | AC39: Não se aplica | AD39: Não se aplica | AE39: Não se aplica | AF39: Não se aplica | AG39: Não se aplica | AH39: Sim | AI39: Os títulos serão extintos, permanente e em valor no mínimo correspondente ao saldo computado no Nível II do Patrimônio de Referência do BRB – Banco de Brasília S.A nas seguintes condições: 1. seja verificada a divulgação pelo BRB – Banco de Brasília S.A. de que seu Capital Principal está em patamar inferior a 4,5% (quatro inteiros e cinco décimos por cento) do montante RWA, estabelecida pela regulamentação vigente; ou 2. seja verificada, em lei específica, a assinatura de compromisso de aporte para o BRB – Banco de Brasília S.A.; 3. seja decretado pelo BACEN o regime de administração especial temporária ou intervenção do BRB – Banco de Brasília S.A.; ou 4. seja determinado pelo BACEN, segundo critérios estabelecidos em regulamento específico editado pelo Conselho Monetário Nacional,a extinção do instrumento. | AJ39: Totalmente | AK39: Permanente | AL39: Contratual | AM39: Não | AN39: Não | AO39: Não se aplica
B40: 31 | C40: BRB - BANCO DE BRASILIA S/A | D40: LFSN22009F0 | E40: Lei 12.249/2010 - Resolução 4.955/2021 do CMN | F40: Nível II | G40: Nível II | H40: Conglomerado | I40: Letra financeira | J40: 12442602.2 | K40: 12300000 | L40: passivo - custo amortizado | M40: 2022-07-19 | N40: Com vencimento | O40: 2028-07-19 | P40: Não | Q40: (1) Não há uma data específica, apenas quando for solicitado ao Bacen | R40: (2) Não há vinculação regulatória ou fiscal para resgate ou recompra | S40: (3) O valor pode ser parcial ou total, conforme autorização do Bacen | T40: Não se aplica | U40: Fixo | V40: 130% CDI | W40: Não | X40: Mandatório | Y40: Não | Z40: Cumulativo | AA40: Não conversível | AB40: Não se aplica | AC40: Não se aplica | AD40: Não se aplica | AE40: Não se aplica | AF40: Não se aplica | AG40: Não se aplica | AH40: Sim | AI40: Os títulos serão extintos, permanente e em valor no mínimo correspondente ao saldo computado no Nível II do Patrimônio de Referência do BRB – Banco de Brasília S.A nas seguintes condições: 1. seja verificada a divulgação pelo BRB – Banco de Brasília S.A. de que seu Capital Principal está em patamar inferior a 4,5% (quatro inteiros e cinco décimos por cento) do montante RWA, estabelecida pela regulamentação vigente; ou 2. seja verificada, em lei específica, a assinatura de compromisso de aporte para o BRB – Banco de Brasília S.A.; 3. seja decretado pelo BACEN o regime de administração especial temporária ou intervenção do BRB – Banco de Brasília S.A.; ou 4. seja determinado pelo BACEN, segundo critérios estabelecidos em regulamento específico editado pelo Conselho Monetário Nacional,a extinção do instrumento. | AJ40: Totalmente | AK40: Permanente | AL40: Contratual | AM40: Não | AN40: Não | AO40: Não se aplica
B41: 32 | C41: BRB - BANCO DE BRASILIA S/A | D41: LFSN2200ATC | E41: Lei 12.249/2010 - Resolução 4.955/2021 do CMN | F41: Nível II | G41: Nível II | H41: Conglomerado | I41: Letra financeira | J41: 3066903.88 | K41: 2500000 | L41: passivo - custo amortizado | M41: 2022-09-29 | N41: Com vencimento | O41: 2029-09-28 | P41: Não | Q41: (1) Não há uma data específica, apenas quando for solicitado ao Bacen | R41: (2) Não há vinculação regulatória ou fiscal para resgate ou recompra | S41: (3) O valor pode ser parcial ou total, conforme autorização do Bacen | T41: Não se aplica | U41: Fixo | V41: 132% CDI | W41: Não | X41: Mandatório | Y41: Não | Z41: Cumulativo | AA41: Não conversível | AB41: Não se aplica | AC41: Não se aplica | AD41: Não se aplica | AE41: Não se aplica | AF41: Não se aplica | AG41: Não se aplica | AH41: Sim | AI41: Os títulos serão extintos, permanente e em valor no mínimo correspondente ao saldo computado no Nível II do Patrimônio de Referência do BRB – Banco de Brasília S.A nas seguintes condições: 1. seja verificada a divulgação pelo BRB – Banco de Brasília S.A. de que seu Capital Principal está em patamar inferior a 4,5% (quatro inteiros e cinco décimos por cento) do montante RWA, estabelecida pela regulamentação vigente; ou 2. seja verificada, em lei específica, a assinatura de compromisso de aporte para o BRB – Banco de Brasília S.A.; 3. seja decretado pelo BACEN o regime de administração especial temporária ou intervenção do BRB – Banco de Brasília S.A.; ou 4. seja determinado pelo BACEN, segundo critérios estabelecidos em regulamento específico editado pelo Conselho Monetário Nacional,a extinção do instrumento. | AJ41: Totalmente | AK41: Permanente | AL41: Contratual | AM41: Não | AN41: Não | AO41: Não se aplica
B42: 33 | C42: BRB - BANCO DE BRASILIA S/A | D42: LFSN2200ATD | E42: Lei 12.249/2010 - Resolução 4.955/2021 do CMN | F42: Nível II | G42: Nível II | H42: Conglomerado | I42: Letra financeira | J42: 3066903.88 | K42: 2500000 | L42: passivo - custo amortizado | M42: 2022-09-29 | N42: Com vencimento | O42: 2029-09-28 | P42: Não | Q42: (1) Não há uma data específica, apenas quando for solicitado ao Bacen | R42: (2) Não há vinculação regulatória ou fiscal para resgate ou recompra | S42: (3) O valor pode ser parcial ou total, conforme autorização do Bacen | T42: Não se aplica | U42: Fixo | V42: 132% CDI | W42: Não | X42: Mandatório | Y42: Não | Z42: Cumulativo | AA42: Não conversível | AB42: Não se aplica | AC42: Não se aplica | AD42: Não se aplica | AE42: Não se aplica | AF42: Não se aplica | AG42: Não se aplica | AH42: Sim | AI42: Os títulos serão extintos, permanente e em valor no mínimo correspondente ao saldo computado no Nível II do Patrimônio de Referência do BRB – Banco de Brasília S.A nas seguintes condições: 1. seja verificada a divulgação pelo BRB – Banco de Brasília S.A. de que seu Capital Principal está em patamar inferior a 4,5% (quatro inteiros e cinco décimos por cento) do montante RWA, estabelecida pela regulamentação vigente; ou 2. seja verificada, em lei específica, a assinatura de compromisso de aporte para o BRB – Banco de Brasília S.A.; 3. seja decretado pelo BACEN o regime de administração especial temporária ou intervenção do BRB – Banco de Brasília S.A.; ou 4. seja determinado pelo BACEN, segundo critérios estabelecidos em regulamento específico editado pelo Conselho Monetário Nacional,a extinção do instrumento. | AJ42: Totalmente | AK42: Permanente | AL42: Contratual | AM42: Não | AN42: Não | AO42: Não se aplica
B43: 34 | C43: BRB - BANCO DE BRASILIA S/A | D43: LFSN2200DQM | E43: Lei 12.249/2010 - Resolução 4.955/2021 do CMN | F43: Nível II | G43: Nível II | H43: Conglomerado | I43: Letra financeira | J43: 12264812.89 | K43: 10200000 | L43: passivo - custo amortizado | M43: 2022-11-23 | N43: Com vencimento | O43: 2029-11-23 | P43: Não | Q43: (1) Não há uma data específica, apenas quando for solicitado ao Bacen | R43: (2) Não há vinculação regulatória ou fiscal para resgate ou recompra | S43: (3) O valor pode ser parcial ou total, conforme autorização do Bacen | T43: Não se aplica | U43: Fixo | V43: 135% CDI | W43: Não | X43: Mandatório | Y43: Não | Z43: Cumulativo | AA43: Não conversível | AB43: Não se aplica | AC43: Não se aplica | AD43: Não se aplica | AE43: Não se aplica | AF43: Não se aplica | AG43: Não se aplica | AH43: Sim | AI43: Os títulos serão extintos, permanente e em valor no mínimo correspondente ao saldo computado no Nível II do Patrimônio de Referência do BRB – Banco de Brasília S.A nas seguintes condições: 1. seja verificada a divulgação pelo BRB – Banco de Brasília S.A. de que seu Capital Principal está em patamar inferior a 4,5% (quatro inteiros e cinco décimos por cento) do montante RWA, estabelecida pela regulamentação vigente; ou 2. seja verificada, em lei específica, a assinatura de compromisso de aporte para o BRB – Banco de Brasília S.A.; 3. seja decretado pelo BACEN o regime de administração especial temporária ou intervenção do BRB – Banco de Brasília S.A.; ou 4. seja determinado pelo BACEN, segundo critérios estabelecidos em regulamento específico editado pelo Conselho Monetário Nacional,a extinção do instrumento. | AJ43: Totalmente | AK43: Permanente | AL43: Contratual | AM43: Não | AN43: Não | AO43: Não se aplica
B44: 35 | C44: BRB - BANCO DE BRASILIA S/A | D44: LFSN22008Z2 | E44: Lei 12.249/2010 - Resolução 4.955/2021 do CMN | F44: Nível II | G44: Nível II | H44: Conglomerado | I44: Letra financeira | J44: 3052237.016 | K44: 3000000 | L44: passivo - custo amortizado | M44: 2022-07-06 | N44: Com vencimento | O44: 2028-07-06 | P44: Não | Q44: (1) Não há uma data específica, apenas quando for solicitado ao Bacen | R44: (2) Não há vinculação regulatória ou fiscal para resgate ou recompra | S44: (3) O valor pode ser parcial ou total, conforme autorização do Bacen | T44: Não se aplica | U44: Fixo | V44: 130% CDI | W44: Não | X44: Mandatório | Y44: Não | Z44: Cumulativo | AA44: Não conversível | AB44: Não se aplica | AC44: Não se aplica | AD44: Não se aplica | AE44: Não se aplica | AF44: Não se aplica | AG44: Não se aplica | AH44: Sim | AI44: Os títulos serão extintos, permanente e em valor no mínimo correspondente ao saldo computado no Nível II do Patrimônio de Referência do BRB – Banco de Brasília S.A nas seguintes condições: 1. seja verificada a divulgação pelo BRB – Banco de Brasília S.A. de que seu Capital Principal está em patamar inferior a 4,5% (quatro inteiros e cinco décimos por cento) do montante RWA, estabelecida pela regulamentação vigente; ou 2. seja verificada, em lei específica, a assinatura de compromisso de aporte para o BRB – Banco de Brasília S.A.; 3. seja decretado pelo BACEN o regime de administração especial temporária ou intervenção do BRB – Banco de Brasília S.A.; ou 4. seja determinado pelo BACEN, segundo critérios estabelecidos em regulamento específico editado pelo Conselho Monetário Nacional,a extinção do instrumento. | AJ44: Totalmente | AK44: Permanente | AL44: Contratual | AM44: Não | AN44: Não | AO44: Não se aplica
B45: 36 | C45: BRB - BANCO DE BRASILIA S/A | D45: LFSN22009RR | E45: Lei 12.249/2010 - Resolução 4.955/2021 do CMN | F45: Nível II | G45: Nível II | H45: Conglomerado | I45: Letra financeira | J45: 7246436.184 | K45: 7200000 | L45: passivo - custo amortizado | M45: 2022-07-29 | N45: Com vencimento | O45: 2028-07-31 | P45: Não | Q45: (1) Não há uma data específica, apenas quando for solicitado ao Bacen | R45: (2) Não há vinculação regulatória ou fiscal para resgate ou recompra | S45: (3) O valor pode ser parcial ou total, conforme autorização do Bacen | T45: Não se aplica | U45: Fixo | V45: 130% CDI | W45: Não | X45: Mandatório | Y45: Não | Z45: Cumulativo | AA45: Não conversível | AB45: Não se aplica | AC45: Não se aplica | AD45: Não se aplica | AE45: Não se aplica | AF45: Não se aplica | AG45: Não se aplica | AH45: Sim | AI45: Os títulos serão extintos, permanente e em valor no mínimo correspondente ao saldo computado no Nível II do Patrimônio de Referência do BRB – Banco de Brasília S.A nas seguintes condições: 1. seja verificada a divulgação pelo BRB – Banco de Brasília S.A. de que seu Capital Principal está em patamar inferior a 4,5% (quatro inteiros e cinco décimos por cento) do montante RWA, estabelecida pela regulamentação vigente; ou 2. seja verificada, em lei específica, a assinatura de compromisso de aporte para o BRB – Banco de Brasília S.A.; 3. seja decretado pelo BACEN o regime de administração especial temporária ou intervenção do BRB – Banco de Brasília S.A.; ou 4. seja determinado pelo BACEN, segundo critérios estabelecidos em regulamento específico editado pelo Conselho Monetário Nacional,a extinção do instrumento. | AJ45: Totalmente | AK45: Permanente | AL45: Contratual | AM45: Não | AN45: Não | AO45: Não se aplica
B46: 37 | C46: BRB - BANCO DE BRASILIA S/A | D46: LFSN2200B9R | E46: Lei 12.249/2010 - Resolução 4.955/2021 do CMN | F46: Nível II | G46: Nível II | H46: Conglomerado | I46: Letra financeira | J46: 3648360.19 | K46: 3000000 | L46: passivo - custo amortizado | M46: 2022-10-19 | N46: Com vencimento | O46: 2029-10-19 | P46: Não | Q46: (1) Não há uma data específica, apenas quando for solicitado ao Bacen | R46: (2) Não há vinculação regulatória ou fiscal para resgate ou recompra | S46: (3) O valor pode ser parcial ou total, conforme autorização do Bacen | T46: Não se aplica | U46: Fixo | V46: 132% CDI | W46: Não | X46: Mandatório | Y46: Não | Z46: Cumulativo | AA46: Não conversível | AB46: Não se aplica | AC46: Não se aplica | AD46: Não se aplica | AE46: Não se aplica | AF46: Não se aplica | AG46: Não se aplica | AH46: Sim | AI46: Os títulos serão extintos, permanente e em valor no mínimo correspondente ao saldo computado no Nível II do Patrimônio de Referência do BRB – Banco de Brasília S.A nas seguintes condições: 1. seja verificada a divulgação pelo BRB – Banco de Brasília S.A. de que seu Capital Principal está em patamar inferior a 4,5% (quatro inteiros e cinco décimos por cento) do montante RWA, estabelecida pela regulamentação vigente; ou 2. seja verificada, em lei específica, a assinatura de compromisso de aporte para o BRB – Banco de Brasília S.A.; 3. seja decretado pelo BACEN o regime de administração especial temporária ou intervenção do BRB – Banco de Brasília S.A.; ou 4. seja determinado pelo BACEN, segundo critérios estabelecidos em regulamento específico editado pelo Conselho Monetário Nacional,a extinção do instrumento. | AJ46: Totalmente | AK46: Permanente | AL46: Contratual | AM46: Não | AN46: Não | AO46: Não se aplica
B47: 38 | C47: BRB - BANCO DE BRASILIA S/A | D47: LFSN2200B9U | E47: Lei 12.249/2010 - Resolução 4.955/2021 do CMN | F47: Nível II | G47: Nível II | H47: Conglomerado | I47: Letra financeira | J47: 33128118.87 | K47: 33900000 | L47: passivo - custo amortizado | M47: 2022-10-19 | N47: Com vencimento | O47: 2028-10-19 | P47: Não | Q47: (1) Não há uma data específica, apenas quando for solicitado ao Bacen | R47: (2) Não há vinculação regulatória ou fiscal para resgate ou recompra | S47: (3) O valor pode ser parcial ou total, conforme autorização do Bacen | T47: Não se aplica | U47: Fixo | V47: 135% CDI | W47: Não | X47: Mandatório | Y47: Não | Z47: Cumulativo | AA47: Não conversível | AB47: Não se aplica | AC47: Não se aplica | AD47: Não se aplica | AE47: Não se aplica | AF47: Não se aplica | AG47: Não se aplica | AH47: Sim | AI47: Os títulos serão extintos, permanente e em valor no mínimo correspondente ao saldo computado no Nível II do Patrimônio de Referência do BRB – Banco de Brasília S.A nas seguintes condições: 1. seja verificada a divulgação pelo BRB – Banco de Brasília S.A. de que seu Capital Principal está em patamar inferior a 4,5% (quatro inteiros e cinco décimos por cento) do montante RWA, estabelecida pela regulamentação vigente; ou 2. seja verificada, em lei específica, a assinatura de compromisso de aporte para o BRB – Banco de Brasília S.A.; 3. seja decretado pelo BACEN o regime de administração especial temporária ou intervenção do BRB – Banco de Brasília S.A.; ou 4. seja determinado pelo BACEN, segundo critérios estabelecidos em regulamento específico editado pelo Conselho Monetário Nacional,a extinção do instrumento. | AJ47: Totalmente | AK47: Permanente | AL47: Contratual | AM47: Não | AN47: Não | AO47: Não se aplica
B48: 39 | C48: BRB - BANCO DE BRASILIA S/A | D48: LFSN22002N6 | E48: Lei 12.249/2010 - Resolução 4.955/2021 do CMN | F48: Nível II | G48: Nível II | H48: Conglomerado | I48: Letra financeira | J48: 32725955.06 | K48: 24000000 | L48: passivo - custo amortizado | M48: 2022-03-11 | N48: Com vencimento | O48: 2029-03-12 | P48: Não | Q48: (1) Não há uma data específica, apenas quando for solicitado ao Bacen | R48: (2) Não há vinculação regulatória ou fiscal para resgate ou recompra | S48: (3) O valor pode ser parcial ou total, conforme autorização do Bacen | T48: Não se aplica | U48: Fixo | V48: 140% CDI | W48: Não | X48: Mandatório | Y48: Não | Z48: Cumulativo | AA48: Não conversível | AB48: Não se aplica | AC48: Não se aplica | AD48: Não se aplica | AE48: Não se aplica | AF48: Não se aplica | AG48: Não se aplica | AH48: Sim | AI48: Os títulos serão extintos, permanente e em valor no mínimo correspondente ao saldo computado no Nível II do Patrimônio de Referência do BRB – Banco de Brasília S.A nas seguintes condições: 1. seja verificada a divulgação pelo BRB – Banco de Brasília S.A. de que seu Capital Principal está em patamar inferior a 4,5% (quatro inteiros e cinco décimos por cento) do montante RWA, estabelecida pela regulamentação vigente; ou 2. seja verificada, em lei específica, a assinatura de compromisso de aporte para o BRB – Banco de Brasília S.A.; 3. seja decretado pelo BACEN o regime de administração especial temporária ou intervenção do BRB – Banco de Brasília S.A.; ou 4. seja determinado pelo BACEN, segundo critérios estabelecidos em regulamento específico editado pelo Conselho Monetário Nacional,a extinção do instrumento. | AJ48: Totalmente | AK48: Permanente | AL48: Contratual | AM48: Não | AN48: Não | AO48: Não se aplica
B49: 40 | C49: BRB - BANCO DE BRASILIA S/A | D49: LFSN22002N7 | E49: Lei 12.249/2010 - Resolução 4.955/2021 do CMN | F49: Nível II | G49: Nível II | H49: Conglomerado | I49: Letra financeira | J49: 25892493.14 | K49: 24000000 | L49: passivo - custo amortizado | M49: 2022-03-11 | N49: Com vencimento | O49: 2028-03-13 | P49: Não | Q49: (1) Não há uma data específica, apenas quando for solicitado ao Bacen | R49: (2) Não há vinculação regulatória ou fiscal para resgate ou recompra | S49: (3) O valor pode ser parcial ou total, conforme autorização do Bacen | T49: Não se aplica | U49: Fixo | V49: 135% CDI | W49: Não | X49: Mandatório | Y49: Não | Z49: Cumulativo | AA49: Não conversível | AB49: Não se aplica | AC49: Não se aplica | AD49: Não se aplica | AE49: Não se aplica | AF49: Não se aplica | AG49: Não se aplica | AH49: Sim | AI49: Os títulos serão extintos, permanente e em valor no mínimo correspondente ao saldo computado no Nível II do Patrimônio de Referência do BRB – Banco de Brasília S.A nas seguintes condições: 1. seja verificada a divulgação pelo BRB – Banco de Brasília S.A. de que seu Capital Principal está em patamar inferior a 4,5% (quatro inteiros e cinco décimos por cento) do montante RWA, estabelecida pela regulamentação vigente; ou 2. seja verificada, em lei específica, a assinatura de compromisso de aporte para o BRB – Banco de Brasília S.A.; 3. seja decretado pelo BACEN o regime de administração especial temporária ou intervenção do BRB – Banco de Brasília S.A.; ou 4. seja determinado pelo BACEN, segundo critérios estabelecidos em regulamento específico editado pelo Conselho Monetário Nacional,a extinção do instrumento. | AJ49: Totalmente | AK49: Permanente | AL49: Contratual | AM49: Não | AN49: Não | AO49: Não se aplica
B50: 41 | C50: BRB - BANCO DE BRASILIA S/A | D50: LFSN23005EH | E50: Lei 12.249/2010 - Resolução 4.955/2021 do CMN | F50: Nível II | G50: Nível II | H50: Conglomerado | I50: Letra financeira | J50: 3111430.13 | K50: 2700000 | L50: passivo - custo amortizado | M50: 2023-01-31 | N50: Com vencimento | O50: 2029-01-31 | P50: Não | Q50: (1) Não há uma data específica, apenas quando for solicitado ao Bacen | R50: (2) Não há vinculação regulatória ou fiscal para resgate ou recompra | S50: (3) O valor pode ser parcial ou total, conforme autorização do Bacen | T50: Não se aplica | U50: Fixo | V50: 127% CDI | W50: Não | X50: Mandatório | Y50: Não | Z50: Cumulativo | AA50: Não conversível | AB50: Não se aplica | AC50: Não se aplica | AD50: Não se aplica | AE50: Não se aplica | AF50: Não se aplica | AG50: Não se aplica | AH50: Sim | AI50: Os títulos serão extintos, permanente e em valor no mínimo correspondente ao saldo computado no Nível II do Patrimônio de Referência do BRB – Banco de Brasília S.A nas seguintes condições: 1. seja verificada a divulgação pelo BRB – Banco de Brasília S.A. de que seu Capital Principal está em patamar inferior a 4,5% (quatro inteiros e cinco décimos por cento) do montante RWA, estabelecida pela regulamentação vigente; ou 2. seja verificada, em lei específica, a assinatura de compromisso de aporte para o BRB – Banco de Brasília S.A.; 3. seja decretado pelo BACEN o regime de administração especial temporária ou intervenção do BRB – Banco de Brasília S.A.; ou 4. seja determinado pelo BACEN, segundo critérios estabelecidos em regulamento específico editado pelo Conselho Monetário Nacional,a extinção do instrumento. | AJ50: Totalmente | AK50: Permanente | AL50: Contratual | AM50: Não | AN50: Não | AO50: Não se aplica
B51: 42 | C51: BRB - BANCO DE BRASILIA S/A | D51: LFSN23005K1 | E51: Lei 12.249/2010 - Resolução 4.955/2021 do CMN | F51: Nível II | G51: Nível II | H51: Conglomerado | I51: Letra financeira | J51: 11780566.43 | K51: 10200000 | L51: passivo - custo amortizado | M51: 2023-01-31 | N51: Com vencimento | O51: 2030-01-31 | P51: Não | Q51: (1) Não há uma data específica, apenas quando for solicitado ao Bacen | R51: (2) Não há vinculação regulatória ou fiscal para resgate ou recompra | S51: (3) O valor pode ser parcial ou total, conforme autorização do Bacen | T51: Não se aplica | U51: Fixo | V51: 129% CDI | W51: Não | X51: Mandatório | Y51: Não | Z51: Cumulativo | AA51: Não conversível | AB51: Não se aplica | AC51: Não se aplica | AD51: Não se aplica | AE51: Não se aplica | AF51: Não se aplica | AG51: Não se aplica | AH51: Sim | AI51: Os títulos serão extintos, permanente e em valor no mínimo correspondente ao saldo computado no Nível II do Patrimônio de Referência do BRB – Banco de Brasília S.A nas seguintes condições: 1. seja verificada a divulgação pelo BRB – Banco de Brasília S.A. de que seu Capital Principal está em patamar inferior a 4,5% (quatro inteiros e cinco décimos por cento) do montante RWA, estabelecida pela regulamentação vigente; ou 2. seja verificada, em lei específica, a assinatura de compromisso de aporte para o BRB – Banco de Brasília S.A.; 3. seja decretado pelo BACEN o regime de administração especial temporária ou intervenção do BRB – Banco de Brasília S.A.; ou 4. seja determinado pelo BACEN, segundo critérios estabelecidos em regulamento específico editado pelo Conselho Monetário Nacional,a extinção do instrumento. | AJ51: Totalmente | AK51: Permanente | AL51: Contratual | AM51: Não | AN51: Não | AO51: Não se aplica
B52: 43 | C52: BRB - BANCO DE BRASILIA S/A | D52: LFSN2200ASZ | E52: Lei 12.249/2010 - Resolução 4.955/2021 do CMN | F52: Nível II | G52: Nível II | H52: Conglomerado | I52: Letra financeira | J52: 51094297.52 | K52: 41400000 | L52: passivo - custo amortizado | M52: 2022-09-27 | N52: Com vencimento | O52: 2029-09-27 | P52: Não | Q52: (1) Não há uma data específica, apenas quando for solicitado ao Bacen | R52: (2) Não há vinculação regulatória ou fiscal para resgate ou recompra | S52: (3) O valor pode ser parcial ou total, conforme autorização do Bacen | T52: Não se aplica | U52: Fixo | V52: 135% CDI | W52: Não | X52: Mandatório | Y52: Não | Z52: Cumulativo | AA52: Não conversível | AB52: Não se aplica | AC52: Não se aplica | AD52: Não se aplica | AE52: Não se aplica | AF52: Não se aplica | AG52: Não se aplica | AH52: Sim | AI52: Os títulos serão extintos, permanente e em valor no mínimo correspondente ao saldo computado no Nível II do Patrimônio de Referência do BRB – Banco de Brasília S.A nas seguintes condições: 1. seja verificada a divulgação pelo BRB – Banco de Brasília S.A. de que seu Capital Principal está em patamar inferior a 4,5% (quatro inteiros e cinco décimos por cento) do montante RWA, estabelecida pela regulamentação vigente; ou 2. seja verificada, em lei específica, a assinatura de compromisso de aporte para o BRB – Banco de Brasília S.A.; 3. seja decretado pelo BACEN o regime de administração especial temporária ou intervenção do BRB – Banco de Brasília S.A.; ou 4. seja determinado pelo BACEN, segundo critérios estabelecidos em regulamento específico editado pelo Conselho Monetário Nacional,a extinção do instrumento. | AJ52: Totalmente | AK52: Permanente | AL52: Contratual | AM52: Não | AN52: Não | AO52: Não se aplica
B53: 44 | C53: BRB - BANCO DE BRASILIA S/A | D53: LFSN2200AT0 | E53: Lei 12.249/2010 - Resolução 4.955/2021 do CMN | F53: Nível II | G53: Nível II | H53: Conglomerado | I53: Letra financeira | J53: 10687140.44 | K53: 8700000 | L53: passivo - custo amortizado | M53: 2022-09-27 | N53: Com vencimento | O53: 2029-09-27 | P53: Não | Q53: (1) Não há uma data específica, apenas quando for solicitado ao Bacen | R53: (2) Não há vinculação regulatória ou fiscal para resgate ou recompra | S53: (3) O valor pode ser parcial ou total, conforme autorização do Bacen | T53: Não se aplica | U53: Fixo | V53: 132% CDI | W53: Não | X53: Mandatório | Y53: Não | Z53: Cumulativo | AA53: Não conversível | AB53: Não se aplica | AC53: Não se aplica | AD53: Não se aplica | AE53: Não se aplica | AF53: Não se aplica | AG53: Não se aplica | AH53: Sim | AI53: Os títulos serão extintos, permanente e em valor no mínimo correspondente ao saldo computado no Nível II do Patrimônio de Referência do BRB – Banco de Brasília S.A nas seguintes condições: 1. seja verificada a divulgação pelo BRB – Banco de Brasília S.A. de que seu Capital Principal está em patamar inferior a 4,5% (quatro inteiros e cinco décimos por cento) do montante RWA, estabelecida pela regulamentação vigente; ou 2. seja verificada, em lei específica, a assinatura de compromisso de aporte para o BRB – Banco de Brasília S.A.; 3. seja decretado pelo BACEN o regime de administração especial temporária ou intervenção do BRB – Banco de Brasília S.A.; ou 4. seja determinado pelo BACEN, segundo critérios estabelecidos em regulamento específico editado pelo Conselho Monetário Nacional,a extinção do instrumento. | AJ53: Totalmente | AK53: Permanente | AL53: Contratual | AM53: Não | AN53: Não | AO53: Não se aplica
B54: 45 | C54: BRB - BANCO DE BRASILIA S/A | D54: LFSN22006SV | E54: Lei 12.249/2010 - Resolução 4.955/2021 do CMN | F54: Nível II | G54: Nível II | H54: Conglomerado | I54: Letra financeira | J54: 5078092.28 | K54: 5000000 | L54: passivo - custo amortizado | M54: 2022-05-25 | N54: Com vencimento | O54: 2028-05-25 | P54: Não | Q54: (1) Não há uma data específica, apenas quando for solicitado ao Bacen | R54: (2) Não há vinculação regulatória ou fiscal para resgate ou recompra | S54: (3) O valor pode ser parcial ou total, conforme autorização do Bacen | T54: Não se aplica | U54: Fixo | V54: 120% CDI | W54: Não | X54: Mandatório | Y54: Não | Z54: Cumulativo | AA54: Não conversível | AB54: Não se aplica | AC54: Não se aplica | AD54: Não se aplica | AE54: Não se aplica | AF54: Não se aplica | AG54: Não se aplica | AH54: Sim | AI54: Os títulos serão extintos, permanente e em valor no mínimo correspondente ao saldo computado no Nível II do Patrimônio de Referência do BRB – Banco de Brasília S.A nas seguintes condições: 1. seja verificada a divulgação pelo BRB – Banco de Brasília S.A. de que seu Capital Principal está em patamar inferior a 4,5% (quatro inteiros e cinco décimos por cento) do montante RWA, estabelecida pela regulamentação vigente; ou 2. seja verificada, em lei específica, a assinatura de compromisso de aporte para o BRB – Banco de Brasília S.A.; 3. seja decretado pelo BACEN o regime de administração especial temporária ou intervenção do BRB – Banco de Brasília S.A.; ou 4. seja determinado pelo BACEN, segundo critérios estabelecidos em regulamento específico editado pelo Conselho Monetário Nacional,a extinção do instrumento. | AJ54: Totalmente | AK54: Permanente | AL54: Contratual | AM54: Não | AN54: Não | AO54: Não se aplica
B55: 46 | C55: BRB - BANCO DE BRASILIA S/A | D55: LFSN2200C6Z | E55: Lei 12.249/2010 - Resolução 4.955/2021 do CMN | F55: Nível II | G55: Nível II | H55: Conglomerado | I55: Letra financeira | J55: 13441767.74 | K55: 14000000 | L55: passivo - custo amortizado | M55: 2022-11-01 | N55: Com vencimento | O55: 2028-11-01 | P55: Não | Q55: (1) Não há uma data específica, apenas quando for solicitado ao Bacen | R55: (2) Não há vinculação regulatória ou fiscal para resgate ou recompra | S55: (3) O valor pode ser parcial ou total, conforme autorização do Bacen | T55: Não se aplica | U55: Fixo | V55: 127% CDI | W55: Não | X55: Mandatório | Y55: Não | Z55: Cumulativo | AA55: Não conversível | AB55: Não se aplica | AC55: Não se aplica | AD55: Não se aplica | AE55: Não se aplica | AF55: Não se aplica | AG55: Não se aplica | AH55: Sim | AI55: Os títulos serão extintos, permanente e em valor no mínimo correspondente ao saldo computado no Nível II do Patrimônio de Referência do BRB – Banco de Brasília S.A nas seguintes condições: 1. seja verificada a divulgação pelo BRB – Banco de Brasília S.A. de que seu Capital Principal está em patamar inferior a 4,5% (quatro inteiros e cinco décimos por cento) do montante RWA, estabelecida pela regulamentação vigente; ou 2. seja verificada, em lei específica, a assinatura de compromisso de aporte para o BRB – Banco de Brasília S.A.; 3. seja decretado pelo BACEN o regime de administração especial temporária ou intervenção do BRB – Banco de Brasília S.A.; ou 4. seja determinado pelo BACEN, segundo critérios estabelecidos em regulamento específico editado pelo Conselho Monetário Nacional,a extinção do instrumento. | AJ55: Totalmente | AK55: Permanente | AL55: Contratual | AM55: Não | AN55: Não | AO55: Não se aplica
B56: 47 | C56: BRB - BANCO DE BRASILIA S/A | D56: LFSN20009F8 | E56: Lei 12.249/2010 - Resolução 4.955/2021 do CMN | F56: Nível II | G56: Nível II | H56: Conglomerado | I56: Letra financeira | J56: 8472036.63 | K56: 9495766.62 | L56: passivo - custo amortizado | M56: 2020-12-14 | N56: Com vencimento | O56: 2027-12-14 | P56: Não | Q56: (1) Não há uma data específica, apenas quando for solicitado ao Bacen | R56: (2) Não há vinculação regulatória ou fiscal para resgate ou recompra | S56: (3) O valor pode ser parcial ou total, conforme autorização do Bacen | T56: Não se aplica | U56: Fixo | V56: 140% CDI | W56: Não | X56: Mandatório | Y56: Não | Z56: Cumulativo | AA56: Não conversível | AB56: Não se aplica | AC56: Não se aplica | AD56: Não se aplica | AE56: Não se aplica | AF56: Não se aplica | AG56: Não se aplica | AH56: Sim | AI56: Os títulos serão extintos, permanente e em valor no mínimo correspondente ao saldo computado no Nível II do Patrimônio de Referência do BRB – Banco de Brasília S.A nas seguintes condições: 1. seja verificada a divulgação pelo BRB – Banco de Brasília S.A. de que seu Capital Principal está em patamar inferior a 4,5% (quatro inteiros e cinco décimos por cento) do montante RWA, estabelecida pela regulamentação vigente; ou 2. seja verificada, em lei específica, a assinatura de compromisso de aporte para o BRB – Banco de Brasília S.A.; 3. seja decretado pelo BACEN o regime de administração especial temporária ou intervenção do BRB – Banco de Brasília S.A.; ou 4. seja determinado pelo BACEN, segundo critérios estabelecidos em regulamento específico editado pelo Conselho Monetário Nacional,a extinção do instrumento. | AJ56: Totalmente | AK56: Permanente | AL56: Contratual | AM56: Não | AN56: Não | AO56: Não se aplica
B57: 48 | C57: BRB - BANCO DE BRASILIA S/A | D57: LFSN20009F9 | E57: Lei 12.249/2010 - Resolução 4.955/2021 do CMN | F57: Nível II | G57: Nível II | H57: Conglomerado | I57: Letra financeira | J57: 79121353.57 | K57: 88682089.16 | L57: passivo - custo amortizado | M57: 2020-12-14 | N57: Com vencimento | O57: 2027-12-14 | P57: Não | Q57: (1) Não há uma data específica, apenas quando for solicitado ao Bacen | R57: (2) Não há vinculação regulatória ou fiscal para resgate ou recompra | S57: (3) O valor pode ser parcial ou total, conforme autorização do Bacen | T57: Não se aplica | U57: Fixo | V57: 140% CDI | W57: Não | X57: Mandatório | Y57: Não | Z57: Cumulativo | AA57: Não conversível | AB57: Não se aplica | AC57: Não se aplica | AD57: Não se aplica | AE57: Não se aplica | AF57: Não se aplica | AG57: Não se aplica | AH57: Sim | AI57: Os títulos serão extintos, permanente e em valor no mínimo correspondente ao saldo computado no Nível II do Patrimônio de Referência do BRB – Banco de Brasília S.A nas seguintes condições: 1. seja verificada a divulgação pelo BRB – Banco de Brasília S.A. de que seu Capital Principal está em patamar inferior a 4,5% (quatro inteiros e cinco décimos por cento) do montante RWA, estabelecida pela regulamentação vigente; ou 2. seja verificada, em lei específica, a assinatura de compromisso de aporte para o BRB – Banco de Brasília S.A.; 3. seja decretado pelo BACEN o regime de administração especial temporária ou intervenção do BRB – Banco de Brasília S.A.; ou 4. seja determinado pelo BACEN, segundo critérios estabelecidos em regulamento específico editado pelo Conselho Monetário Nacional,a extinção do instrumento. | AJ57: Totalmente | AK57: Permanente | AL57: Contratual | AM57: Não | AN57: Não | AO57: Não se aplica
B58: 49 | C58: BRB - BANCO DE BRASILIA S/A | D58: LFSN23006SI | E58: Lei 12.249/2010 - Resolução 4.955/2021 do CMN | F58: Nível II | G58: Nível II | H58: Conglomerado | I58: Letra financeira | J58: 10008721.49 | K58: 8700000 | L58: passivo - custo amortizado | M58: 2023-02-08 | N58: Com vencimento | O58: 2030-02-08 | P58: Não | Q58: (1) Não há uma data específica, apenas quando for solicitado ao Bacen | R58: (2) Não há vinculação regulatória ou fiscal para resgate ou recompra | S58: (3) O valor pode ser parcial ou total, conforme autorização do Bacen | T58: Não se aplica | U58: Fixo | V58: 129% CDI | W58: Não | X58: Mandatório | Y58: Não | Z58: Cumulativo | AA58: Não conversível | AB58: Não se aplica | AC58: Não se aplica | AD58: Não se aplica | AE58: Não se aplica | AF58: Não se aplica | AG58: Não se aplica | AH58: Sim | AI58: Os títulos serão extintos, permanente e em valor no mínimo correspondente ao saldo computado no Nível II do Patrimônio de Referência do BRB – Banco de Brasília S.A nas seguintes condições: 1. seja verificada a divulgação pelo BRB – Banco de Brasília S.A. de que seu Capital Principal está em patamar inferior a 4,5% (quatro inteiros e cinco décimos por cento) do montante RWA, estabelecida pela regulamentação vigente; ou 2. seja verificada, em lei específica, a assinatura de compromisso de aporte para o BRB – Banco de Brasília S.A.; 3. seja decretado pelo BACEN o regime de administração especial temporária ou intervenção do BRB – Banco de Brasília S.A.; ou 4. seja determinado pelo BACEN, segundo critérios estabelecidos em regulamento específico editado pelo Conselho Monetário Nacional,a extinção do instrumento. | AJ58: Totalmente | AK58: Permanente | AL58: Contratual | AM58: Não | AN58: Não | AO58: Não se aplica
B59: 50 | C59: BRB - BANCO DE BRASILIA S/A | D59: LFSN2200B9Q | E59: Lei 12.249/2010 - Resolução 4.955/2021 do CMN | F59: Nível II | G59: Nível II | H59: Conglomerado | I59: Letra financeira | J59: 2432240.12 | K59: 2000000 | L59: passivo - custo amortizado | M59: 2022-10-19 | N59: Com vencimento | O59: 2029-10-19 | P59: Não | Q59: (1) Não há uma data específica, apenas quando for solicitado ao Bacen | R59: (2) Não há vinculação regulatória ou fiscal para resgate ou recompra | S59: (3) O valor pode ser parcial ou total, conforme autorização do Bacen | T59: Não se aplica | U59: Fixo | V59: 132% CDI | W59: Não | X59: Mandatório | Y59: Não | Z59: Cumulativo | AA59: Não conversível | AB59: Não se aplica | AC59: Não se aplica | AD59: Não se aplica | AE59: Não se aplica | AF59: Não se aplica | AG59: Não se aplica | AH59: Sim | AI59: Os títulos serão extintos, permanente e em valor no mínimo correspondente ao saldo computado no Nível II do Patrimônio de Referência do BRB – Banco de Brasília S.A nas seguintes condições: 1. seja verificada a divulgação pelo BRB – Banco de Brasília S.A. de que seu Capital Principal está em patamar inferior a 4,5% (quatro inteiros e cinco décimos por cento) do montante RWA, estabelecida pela regulamentação vigente; ou 2. seja verificada, em lei específica, a assinatura de compromisso de aporte para o BRB – Banco de Brasília S.A.; 3. seja decretado pelo BACEN o regime de administração especial temporária ou intervenção do BRB – Banco de Brasília S.A.; ou 4. seja determinado pelo BACEN, segundo critérios estabelecidos em regulamento específico editado pelo Conselho Monetário Nacional,a extinção do instrumento. | AJ59: Totalmente | AK59: Permanente | AL59: Contratual | AM59: Não | AN59: Não | AO59: Não se aplica
B60: 51 | C60: BRB - BANCO DE BRASILIA S/A | D60: LFSN210024S | E60: Lei 12.249/2010 - Resolução 4.955/2021 do CMN | F60: Nível II | G60: Nível II | H60: Conglomerado | I60: Letra financeira | J60: 27814794.74 | K60: 50000000 | L60: passivo - custo amortizado | M60: 2021-06-28 | N60: Com vencimento | O60: 2026-06-29 | P60: Não | Q60: (1) Não há uma data específica, apenas quando for solicitado ao Bacen | R60: (2) Não há vinculação regulatória ou fiscal para resgate ou recompra | S60: (3) O valor pode ser parcial ou total, conforme autorização do Bacen | T60: Não se aplica | U60: Fixo | V60: IPCA + 7% | W60: Não | X60: Mandatório | Y60: Não | Z60: Cumulativo | AA60: Não conversível | AB60: Não se aplica | AC60: Não se aplica | AD60: Não se aplica | AE60: Não se aplica | AF60: Não se aplica | AG60: Não se aplica | AH60: Sim | AI60: Os títulos serão extintos, permanente e em valor no mínimo correspondente ao saldo computado no Nível II do Patrimônio de Referência do BRB – Banco de Brasília S.A nas seguintes condições: 1. seja verificada a divulgação pelo BRB – Banco de Brasília S.A. de que seu Capital Principal está em patamar inferior a 4,5% (quatro inteiros e cinco décimos por cento) do montante RWA, estabelecida pela regulamentação vigente; ou 2. seja verificada, em lei específica, a assinatura de compromisso de aporte para o BRB – Banco de Brasília S.A.; 3. seja decretado pelo BACEN o regime de administração especial temporária ou intervenção do BRB – Banco de Brasília S.A.; ou 4. seja determinado pelo BACEN, segundo critérios estabelecidos em regulamento específico editado pelo Conselho Monetário Nacional,a extinção do instrumento. | AJ60: Totalmente | AK60: Permanente | AL60: Contratual | AM60: Não | AN60: Não | AO60: Não se aplica
B61: 52 | C61: BRB - BANCO DE BRASILIA S/A | D61: LFSN22009LL | E61: Lei 12.249/2010 - Resolução 4.955/2021 do CMN | F61: Nível II | G61: Nível II | H61: Conglomerado | I61: Letra financeira | J61: 8396220.584 | K61: 9000000 | L61: passivo - custo amortizado | M61: 2022-07-22 | N61: Com vencimento | O61: 2028-07-24 | P61: Não | Q61: (1) Não há uma data específica, apenas quando for solicitado ao Bacen | R61: (2) Não há vinculação regulatória ou fiscal para resgate ou recompra | S61: (3) O valor pode ser parcial ou total, conforme autorização do Bacen | T61: Não se aplica | U61: Fixo | V61: IPCA + 8% | W61: Não | X61: Mandatório | Y61: Não | Z61: Cumulativo | AA61: Não conversível | AB61: Não se aplica | AC61: Não se aplica | AD61: Não se aplica | AE61: Não se aplica | AF61: Não se aplica | AG61: Não se aplica | AH61: Sim | AI61: Os títulos serão extintos, permanente e em valor no mínimo correspondente ao saldo computado no Nível II do Patrimônio de Referência do BRB – Banco de Brasília S.A nas seguintes condições: 1. seja verificada a divulgação pelo BRB – Banco de Brasília S.A. de que seu Capital Principal está em patamar inferior a 4,5% (quatro inteiros e cinco décimos por cento) do montante RWA, estabelecida pela regulamentação vigente; ou 2. seja verificada, em lei específica, a assinatura de compromisso de aporte para o BRB – Banco de Brasília S.A.; 3. seja decretado pelo BACEN o regime de administração especial temporária ou intervenção do BRB – Banco de Brasília S.A.; ou 4. seja determinado pelo BACEN, segundo critérios estabelecidos em regulamento específico editado pelo Conselho Monetário Nacional,a extinção do instrumento. | AJ61: Totalmente | AK61: Permanente | AL61: Contratual | AM61: Não | AN61: Não | AO61: Não se aplica
B62: 53 | C62: BRB - BANCO DE BRASILIA S/A | D62: LFSN21003UM | E62: Lei 12.249/2010 - Resolução 4.955/2021 do CMN | F62: Nível II | G62: Nível II | H62: Conglomerado | I62: Letra financeira | J62: 159762.284 | K62: 300000 | L62: passivo - custo amortizado | M62: 2021-09-23 | N62: Com vencimento | O62: 2026-09-24 | P62: Não | Q62: (1) Não há uma data específica, apenas quando for solicitado ao Bacen | R62: (2) Não há vinculação regulatória ou fiscal para resgate ou recompra | S62: (3) O valor pode ser parcial ou total, conforme autorização do Bacen | T62: Não se aplica | U62: Fixo | V62: IPCA + 6,8% | W62: Não | X62: Mandatório | Y62: Não | Z62: Cumulativo | AA62: Não conversível | AB62: Não se aplica | AC62: Não se aplica | AD62: Não se aplica | AE62: Não se aplica | AF62: Não se aplica | AG62: Não se aplica | AH62: Sim | AI62: Os títulos serão extintos, permanente e em valor no mínimo correspondente ao saldo computado no Nível II do Patrimônio de Referência do BRB – Banco de Brasília S.A nas seguintes condições: 1. seja verificada a divulgação pelo BRB – Banco de Brasília S.A. de que seu Capital Principal está em patamar inferior a 4,5% (quatro inteiros e cinco décimos por cento) do montante RWA, estabelecida pela regulamentação vigente; ou 2. seja verificada, em lei específica, a assinatura de compromisso de aporte para o BRB – Banco de Brasília S.A.; 3. seja decretado pelo BACEN o regime de administração especial temporária ou intervenção do BRB – Banco de Brasília S.A.; ou 4. seja determinado pelo BACEN, segundo critérios estabelecidos em regulamento específico editado pelo Conselho Monetário Nacional,a extinção do instrumento. | AJ62: Totalmente | AK62: Permanente | AL62: Contratual | AM62: Não | AN62: Não | AO62: Não se aplica
B63: 54 | C63: BRB - BANCO DE BRASILIA S/A | D63: LFSN21003UL | E63: Lei 12.249/2010 - Resolução 4.955/2021 do CMN | F63: Nível II | G63: Nível II | H63: Conglomerado | I63: Letra financeira | J63: 159829.788 | K63: 300000 | L63: passivo - custo amortizado | M63: 2021-09-23 | N63: Com vencimento | O63: 2026-09-24 | P63: Não | Q63: (1) Não há uma data específica, apenas quando for solicitado ao Bacen | R63: (2) Não há vinculação regulatória ou fiscal para resgate ou recompra | S63: (3) O valor pode ser parcial ou total, conforme autorização do Bacen | T63: Não se aplica | U63: Fixo | V63: IPCA + 6,82% | W63: Não | X63: Mandatório | Y63: Não | Z63: Cumulativo | AA63: Não conversível | AB63: Não se aplica | AC63: Não se aplica | AD63: Não se aplica | AE63: Não se aplica | AF63: Não se aplica | AG63: Não se aplica | AH63: Sim | AI63: Os títulos serão extintos, permanente e em valor no mínimo correspondente ao saldo computado no Nível II do Patrimônio de Referência do BRB – Banco de Brasília S.A nas seguintes condições: 1. seja verificada a divulgação pelo BRB – Banco de Brasília S.A. de que seu Capital Principal está em patamar inferior a 4,5% (quatro inteiros e cinco décimos por cento) do montante RWA, estabelecida pela regulamentação vigente; ou 2. seja verificada, em lei específica, a assinatura de compromisso de aporte para o BRB – Banco de Brasília S.A.; 3. seja decretado pelo BACEN o regime de administração especial temporária ou intervenção do BRB – Banco de Brasília S.A.; ou 4. seja determinado pelo BACEN, segundo critérios estabelecidos em regulamento específico editado pelo Conselho Monetário Nacional,a extinção do instrumento. | AJ63: Totalmente | AK63: Permanente | AL63: Contratual | AM63: Não | AN63: Não | AO63: Não se aplica
B64: 55 | C64: BRB - BANCO DE BRASILIA S/A | D64: LFSN22008YO | E64: Lei 12.249/2010 - Resolução 4.955/2021 do CMN | F64: Nível II | G64: Nível II | H64: Conglomerado | I64: Letra financeira | J64: 1862522.544 | K64: 2000000 | L64: passivo - custo amortizado | M64: 2022-06-30 | N64: Com vencimento | O64: 2028-06-30 | P64: Não | Q64: (1) Não há uma data específica, apenas quando for solicitado ao Bacen | R64: (2) Não há vinculação regulatória ou fiscal para resgate ou recompra | S64: (3) O valor pode ser parcial ou total, conforme autorização do Bacen | T64: Não se aplica | U64: Fixo | V64: IPCA + 7,1% | W64: Não | X64: Mandatório | Y64: Não | Z64: Cumulativo | AA64: Não conversível | AB64: Não se aplica | AC64: Não se aplica | AD64: Não se aplica | AE64: Não se aplica | AF64: Não se aplica | AG64: Não se aplica | AH64: Sim | AI64: Os títulos serão extintos, permanente e em valor no mínimo correspondente ao saldo computado no Nível II do Patrimônio de Referência do BRB – Banco de Brasília S.A nas seguintes condições: 1. seja verificada a divulgação pelo BRB – Banco de Brasília S.A. de que seu Capital Principal está em patamar inferior a 4,5% (quatro inteiros e cinco décimos por cento) do montante RWA, estabelecida pela regulamentação vigente; ou 2. seja verificada, em lei específica, a assinatura de compromisso de aporte para o BRB – Banco de Brasília S.A.; 3. seja decretado pelo BACEN o regime de administração especial temporária ou intervenção do BRB – Banco de Brasília S.A.; ou 4. seja determinado pelo BACEN, segundo critérios estabelecidos em regulamento específico editado pelo Conselho Monetário Nacional,a extinção do instrumento. | AJ64: Totalmente | AK64: Permanente | AL64: Contratual | AM64: Não | AN64: Não | AO64: Não se aplica
B65: 56 | C65: BRB - BANCO DE BRASILIA S/A | D65: LFSN22006BY | E65: Lei 12.249/2010 - Resolução 4.955/2021 do CMN | F65: Nível II | G65: Nível II | H65: Conglomerado | I65: Letra financeira | J65: 9340171.89 | K65: 7800000 | L65: passivo - custo amortizado | M65: 2022-05-17 | N65: Com vencimento | O65: 2029-05-17 | P65: Não | Q65: (1) Não há uma data específica, apenas quando for solicitado ao Bacen | R65: (2) Não há vinculação regulatória ou fiscal para resgate ou recompra | S65: (3) O valor pode ser parcial ou total, conforme autorização do Bacen | T65: Não se aplica | U65: Fixo | V65: IPCA + 7,99% | W65: Não | X65: Mandatório | Y65: Não | Z65: Cumulativo | AA65: Não conversível | AB65: Não se aplica | AC65: Não se aplica | AD65: Não se aplica | AE65: Não se aplica | AF65: Não se aplica | AG65: Não se aplica | AH65: Sim | AI65: Os títulos serão extintos, permanente e em valor no mínimo correspondente ao saldo computado no Nível II do Patrimônio de Referência do BRB – Banco de Brasília S.A nas seguintes condições: 1. seja verificada a divulgação pelo BRB – Banco de Brasília S.A. de que seu Capital Principal está em patamar inferior a 4,5% (quatro inteiros e cinco décimos por cento) do montante RWA, estabelecida pela regulamentação vigente; ou 2. seja verificada, em lei específica, a assinatura de compromisso de aporte para o BRB – Banco de Brasília S.A.; 3. seja decretado pelo BACEN o regime de administração especial temporária ou intervenção do BRB – Banco de Brasília S.A.; ou 4. seja determinado pelo BACEN, segundo critérios estabelecidos em regulamento específico editado pelo Conselho Monetário Nacional,a extinção do instrumento. | AJ65: Totalmente | AK65: Permanente | AL65: Contratual | AM65: Não | AN65: Não | AO65: Não se aplica
B66: 57 | C66: BRB - BANCO DE BRASILIA S/A | D66: LFSN22003UX | E66: Lei 12.249/2010 - Resolução 4.955/2021 do CMN | F66: Nível II | G66: Nível II | H66: Conglomerado | I66: Letra financeira | J66: 9902636.512 | K66: 10000000 | L66: passivo - custo amortizado | M66: 2022-03-30 | N66: Com vencimento | O66: 2028-03-30 | P66: Não | Q66: (1) Não há uma data específica, apenas quando for solicitado ao Bacen | R66: (2) Não há vinculação regulatória ou fiscal para resgate ou recompra | S66: (3) O valor pode ser parcial ou total, conforme autorização do Bacen | T66: Não se aplica | U66: Fixo | V66: IPCA + 7,9% | W66: Não | X66: Mandatório | Y66: Não | Z66: Cumulativo | AA66: Não conversível | AB66: Não se aplica | AC66: Não se aplica | AD66: Não se aplica | AE66: Não se aplica | AF66: Não se aplica | AG66: Não se aplica | AH66: Sim | AI66: Os títulos serão extintos, permanente e em valor no mínimo correspondente ao saldo computado no Nível II do Patrimônio de Referência do BRB – Banco de Brasília S.A nas seguintes condições: 1. seja verificada a divulgação pelo BRB – Banco de Brasília S.A. de que seu Capital Principal está em patamar inferior a 4,5% (quatro inteiros e cinco décimos por cento) do montante RWA, estabelecida pela regulamentação vigente; ou 2. seja verificada, em lei específica, a assinatura de compromisso de aporte para o BRB – Banco de Brasília S.A.; 3. seja decretado pelo BACEN o regime de administração especial temporária ou intervenção do BRB – Banco de Brasília S.A.; ou 4. seja determinado pelo BACEN, segundo critérios estabelecidos em regulamento específico editado pelo Conselho Monetário Nacional,a extinção do instrumento. | AJ66: Totalmente | AK66: Permanente | AL66: Contratual | AM66: Não | AN66: Não | AO66: Não se aplica
B67: 58 | C67: BRB - BANCO DE BRASILIA S/A | D67: LFSN1900BZ6 | E67: Lei 12.249/2010 - Resolução 4.955/2021 do CMN | F67: Nível II | G67: Nível II | H67: Conglomerado | I67: Letra financeira | J67: 628447.008 | K67: 1000000 | L67: passivo - custo amortizado | M67: 2019-07-23 | N67: Com vencimento | O67: 2026-08-17 | P67: Não | Q67: (1) Não há uma data específica, apenas quando for solicitado ao Bacen | R67: (2) Não há vinculação regulatória ou fiscal para resgate ou recompra | S67: (3) O valor pode ser parcial ou total, conforme autorização do Bacen | T67: Não se aplica | U67: Fixo | V67: IPCA + 4,48% | W67: Não | X67: Mandatório | Y67: Não | Z67: Cumulativo | AA67: Não conversível | AB67: Não se aplica | AC67: Não se aplica | AD67: Não se aplica | AE67: Não se aplica | AF67: Não se aplica | AG67: Não se aplica | AH67: Sim | AI67: Os títulos serão extintos, permanente e em valor no mínimo correspondente ao saldo computado no Nível II do Patrimônio de Referência do BRB – Banco de Brasília S.A nas seguintes condições: 1. seja verificada a divulgação pelo BRB – Banco de Brasília S.A. de que seu Capital Principal está em patamar inferior a 4,5% (quatro inteiros e cinco décimos por cento) do montante RWA, estabelecida pela regulamentação vigente; ou 2. seja verificada, em lei específica, a assinatura de compromisso de aporte para o BRB – Banco de Brasília S.A.; 3. seja decretado pelo BACEN o regime de administração especial temporária ou intervenção do BRB – Banco de Brasília S.A.; ou 4. seja determinado pelo BACEN, segundo critérios estabelecidos em regulamento específico editado pelo Conselho Monetário Nacional,a extinção do instrumento. | AJ67: Totalmente | AK67: Permanente | AL67: Contratual | AM67: Não | AN67: Não | AO67: Não se aplica
B68: 59 | C68: BRB - BANCO DE BRASILIA S/A | D68: LFSN19000BA | E68: Lei 12.249/2010 - Resolução 4.955/2021 do CMN | F68: Nível II | G68: Nível II | H68: Conglomerado | I68: Letra financeira | J68: 2754547.168 | K68: 4000000 | L68: passivo - custo amortizado | M68: 2019-02-08 | N68: Com vencimento | O68: 2026-08-17 | P68: Não | Q68: (1) Não há uma data específica, apenas quando for solicitado ao Bacen | R68: (2) Não há vinculação regulatória ou fiscal para resgate ou recompra | S68: (3) O valor pode ser parcial ou total, conforme autorização do Bacen | T68: Não se aplica | U68: Fixo | V68: IPCA + 5,6% | W68: Não | X68: Mandatório | Y68: Não | Z68: Cumulativo | AA68: Não conversível | AB68: Não se aplica | AC68: Não se aplica | AD68: Não se aplica | AE68: Não se aplica | AF68: Não se aplica | AG68: Não se aplica | AH68: Sim | AI68: Os títulos serão extintos, permanente e em valor no mínimo correspondente ao saldo computado no Nível II do Patrimônio de Referência do BRB – Banco de Brasília S.A nas seguintes condições: 1. seja verificada a divulgação pelo BRB – Banco de Brasília S.A. de que seu Capital Principal está em patamar inferior a 4,5% (quatro inteiros e cinco décimos por cento) do montante RWA, estabelecida pela regulamentação vigente; ou 2. seja verificada, em lei específica, a assinatura de compromisso de aporte para o BRB – Banco de Brasília S.A.; 3. seja decretado pelo BACEN o regime de administração especial temporária ou intervenção do BRB – Banco de Brasília S.A.; ou 4. seja determinado pelo BACEN, segundo critérios estabelecidos em regulamento específico editado pelo Conselho Monetário Nacional,a extinção do instrumento. | AJ68: Totalmente | AK68: Permanente | AL68: Contratual | AM68: Não | AN68: Não | AO68: Não se aplica
B69: 60 | C69: BRB - BANCO DE BRASILIA S/A | D69: LFSN20008SR | E69: Lei 12.249/2010 - Resolução 4.955/2021 do CMN | F69: Nível II | G69: Nível II | H69: Conglomerado | I69: Letra financeira | J69: 23946236.03 | K69: 15000000 | L69: passivo - custo amortizado | M69: 2020-10-15 | N69: Com vencimento | O69: 2030-10-15 | P69: Não | Q69: (1) Não há uma data específica, apenas quando for solicitado ao Bacen | R69: (2) Não há vinculação regulatória ou fiscal para resgate ou recompra | S69: (3) O valor pode ser parcial ou total, conforme autorização do Bacen | T69: Não se aplica | U69: Fixo | V69: IPCA + 7,9% | W69: Não | X69: Mandatório | Y69: Não | Z69: Cumulativo | AA69: Não conversível | AB69: Não se aplica | AC69: Não se aplica | AD69: Não se aplica | AE69: Não se aplica | AF69: Não se aplica | AG69: Não se aplica | AH69: Sim | AI69: Os títulos serão extintos, permanente e em valor no mínimo correspondente ao saldo computado no Nível II do Patrimônio de Referência do BRB – Banco de Brasília S.A nas seguintes condições: 1. seja verificada a divulgação pelo BRB – Banco de Brasília S.A. de que seu Capital Principal está em patamar inferior a 4,5% (quatro inteiros e cinco décimos por cento) do montante RWA, estabelecida pela regulamentação vigente; ou 2. seja verificada, em lei específica, a assinatura de compromisso de aporte para o BRB – Banco de Brasília S.A.; 3. seja decretado pelo BACEN o regime de administração especial temporária ou intervenção do BRB – Banco de Brasília S.A.; ou 4. seja determinado pelo BACEN, segundo critérios estabelecidos em regulamento específico editado pelo Conselho Monetário Nacional,a extinção do instrumento. | AJ69: Totalmente | AK69: Permanente | AL69: Contratual | AM69: Não | AN69: Não | AO69: Não se aplica
B70: 61 | C70: BRB - BANCO DE BRASILIA S/A | D70: LFSN20008SS | E70: Lei 12.249/2010 - Resolução 4.955/2021 do CMN | F70: Nível II | G70: Nível II | H70: Conglomerado | I70: Letra financeira | J70: 95784944.15 | K70: 60000000 | L70: passivo - custo amortizado | M70: 2020-10-15 | N70: Com vencimento | O70: 2030-10-15 | P70: Não | Q70: (1) Não há uma data específica, apenas quando for solicitado ao Bacen | R70: (2) Não há vinculação regulatória ou fiscal para resgate ou recompra | S70: (3) O valor pode ser parcial ou total, conforme autorização do Bacen | T70: Não se aplica | U70: Fixo | V70: IPCA + 7,9% | W70: Não | X70: Mandatório | Y70: Não | Z70: Cumulativo | AA70: Não conversível | AB70: Não se aplica | AC70: Não se aplica | AD70: Não se aplica | AE70: Não se aplica | AF70: Não se aplica | AG70: Não se aplica | AH70: Sim | AI70: Os títulos serão extintos, permanente e em valor no mínimo correspondente ao saldo computado no Nível II do Patrimônio de Referência do BRB – Banco de Brasília S.A nas seguintes condições: 1. seja verificada a divulgação pelo BRB – Banco de Brasília S.A. de que seu Capital Principal está em patamar inferior a 4,5% (quatro inteiros e cinco décimos por cento) do montante RWA, estabelecida pela regulamentação vigente; ou 2. seja verificada, em lei específica, a assinatura de compromisso de aporte para o BRB – Banco de Brasília S.A.; 3. seja decretado pelo BACEN o regime de administração especial temporária ou intervenção do BRB – Banco de Brasília S.A.; ou 4. seja determinado pelo BACEN, segundo critérios estabelecidos em regulamento específico editado pelo Conselho Monetário Nacional,a extinção do instrumento. | AJ70: Totalmente | AK70: Permanente | AL70: Contratual | AM70: Não | AN70: Não | AO70: Não se aplica
B71: 62 | C71: BRB - BANCO DE BRASILIA S/A | D71: LFSN21002KE | E71: Lei 12.249/2010 - Resolução 4.955/2021 do CMN | F71: Nível II | G71: Nível II | H71: Conglomerado | I71: Letra financeira | J71: 55572293.33 | K71: 50000000 | L71: passivo - custo amortizado | M71: 2021-08-11 | N71: Com vencimento | O71: 2028-08-11 | P71: Não | Q71: (1) Não há uma data específica, apenas quando for solicitado ao Bacen | R71: (2) Não há vinculação regulatória ou fiscal para resgate ou recompra | S71: (3) O valor pode ser parcial ou total, conforme autorização do Bacen | T71: Não se aplica | U71: Fixo | V71: IPCA + 7,65% | W71: Não | X71: Mandatório | Y71: Não | Z71: Cumulativo | AA71: Não conversível | AB71: Não se aplica | AC71: Não se aplica | AD71: Não se aplica | AE71: Não se aplica | AF71: Não se aplica | AG71: Não se aplica | AH71: Sim | AI71: Os títulos serão extintos, permanente e em valor no mínimo correspondente ao saldo computado no Nível II do Patrimônio de Referência do BRB – Banco de Brasília S.A nas seguintes condições: 1. seja verificada a divulgação pelo BRB – Banco de Brasília S.A. de que seu Capital Principal está em patamar inferior a 4,5% (quatro inteiros e cinco décimos por cento) do montante RWA, estabelecida pela regulamentação vigente; ou 2. seja verificada, em lei específica, a assinatura de compromisso de aporte para o BRB – Banco de Brasília S.A.; 3. seja decretado pelo BACEN o regime de administração especial temporária ou intervenção do BRB – Banco de Brasília S.A.; ou 4. seja determinado pelo BACEN, segundo critérios estabelecidos em regulamento específico editado pelo Conselho Monetário Nacional,a extinção do instrumento. | AJ71: Totalmente | AK71: Permanente | AL71: Contratual | AM71: Não | AN71: Não | AO71: Não se aplica
B72: =B71+1 -> 63 | C72: BRB - BANCO DE BRASILIA S/A | D72: LFSN21003V1 | E72: Lei 12.249/2010 - Resolução 4.955/2021 do CMN | F72: Nível II | G72: Nível II | H72: Conglomerado | I72: Letra financeira | J72: 5313924.264 | K72: 9953469.1 | L72: passivo - custo amortizado | M72: 2021-09-28 | N72: Com vencimento | O72: 2026-09-28 | P72: Não | Q72: (1) Não há uma data específica, apenas quando for solicitado ao Bacen | R72: (2) Não há vinculação regulatória ou fiscal para resgate ou recompra | S72: (3) O valor pode ser parcial ou total, conforme autorização do Bacen | T72: Não se aplica | U72: Fixo | V72: IPCA + 7% | W72: Não | X72: Mandatório | Y72: Não | Z72: Cumulativo | AA72: Não conversível | AB72: Não se aplica | AC72: Não se aplica | AD72: Não se aplica | AE72: Não se aplica | AF72: Não se aplica | AG72: Não se aplica | AH72: Sim | AI72: Os títulos serão extintos, permanente e em valor no mínimo correspondente ao saldo computado no Nível II do Patrimônio de Referência do BRB – Banco de Brasília S.A nas seguintes condições: 1. seja verificada a divulgação pelo BRB – Banco de Brasília S.A. de que seu Capital Principal está em patamar inferior a 4,5% (quatro inteiros e cinco décimos por cento) do montante RWA, estabelecida pela regulamentação vigente; ou 2. seja verificada, em lei específica, a assinatura de compromisso de aporte para o BRB – Banco de Brasília S.A.; 3. seja decretado pelo BACEN o regime de administração especial temporária ou intervenção do BRB – Banco de Brasília S.A.; ou 4. seja determinado pelo BACEN, segundo critérios estabelecidos em regulamento específico editado pelo Conselho Monetário Nacional,a extinção do instrumento. | AJ72: Totalmente | AK72: Permanente | AL72: Contratual | AM72: Não | AN72: Não | AO72: Não se aplica
B73: =B72+1 -> 64 | C73: BRB - BANCO DE BRASILIA S/A | D73: LFSN220086L | E73: Lei 12.249/2010 - Resolução 4.955/2021 do CMN | F73: Nível II | G73: Nível II | H73: Conglomerado | I73: Letra financeira | J73: 26430796.66 | K73: 26235000 | L73: passivo - custo amortizado | M73: 2022-04-13 | N73: Com vencimento | O73: 2028-04-13 | P73: Não | Q73: (1) Não há uma data específica, apenas quando for solicitado ao Bacen | R73: (2) Não há vinculação regulatória ou fiscal para resgate ou recompra | S73: (3) O valor pode ser parcial ou total, conforme autorização do Bacen | T73: Não se aplica | U73: Fixo | V73: 14,41% | W73: Não | X73: Mandatório | Y73: Não | Z73: Cumulativo | AA73: Não conversível | AB73: Não se aplica | AC73: Não se aplica | AD73: Não se aplica | AE73: Não se aplica | AF73: Não se aplica | AG73: Não se aplica | AH73: Sim | AI73: Os títulos serão extintos, permanente e em valor no mínimo correspondente ao saldo computado no Nível II do Patrimônio de Referência do BRB – Banco de Brasília S.A nas seguintes condições: 1. seja verificada a divulgação pelo BRB – Banco de Brasília S.A. de que seu Capital Principal está em patamar inferior a 4,5% (quatro inteiros e cinco décimos por cento) do montante RWA, estabelecida pela regulamentação vigente; ou 2. seja verificada, em lei específica, a assinatura de compromisso de aporte para o BRB – Banco de Brasília S.A.; 3. seja decretado pelo BACEN o regime de administração especial temporária ou intervenção do BRB – Banco de Brasília S.A.; ou 4. seja determinado pelo BACEN, segundo critérios estabelecidos em regulamento específico editado pelo Conselho Monetário Nacional,a extinção do instrumento. | AJ73: Totalmente | AK73: Permanente | AL73: Contratual | AM73: Não | AN73: Não | AO73: Não se aplica
B74: 65 | C74: BRB - BANCO DE BRASILIA S/A | D74: LFSN220040V | E74: Lei 12.249/2010 - Resolução 4.955/2021 do CMN | F74: Nível II | G74: Nível II | H74: Conglomerado | I74: Letra financeira | J74: 10892759.67 | K74: 10749000 | L74: passivo - custo amortizado | M74: 2022-03-31 | N74: Com vencimento | O74: 2028-03-31 | P74: Não | Q74: (1) Não há uma data específica, apenas quando for solicitado ao Bacen | R74: (2) Não há vinculação regulatória ou fiscal para resgate ou recompra | S74: (3) O valor pode ser parcial ou total, conforme autorização do Bacen | T74: Não se aplica | U74: Fixo | V74: 14,48% | W74: Não | X74: Mandatório | Y74: Não | Z74: Cumulativo | AA74: Não conversível | AB74: Não se aplica | AC74: Não se aplica | AD74: Não se aplica | AE74: Não se aplica | AF74: Não se aplica | AG74: Não se aplica | AH74: Sim | AI74: Os títulos serão extintos, permanente e em valor no mínimo correspondente ao saldo computado no Nível II do Patrimônio de Referência do BRB – Banco de Brasília S.A nas seguintes condições: 1. seja verificada a divulgação pelo BRB – Banco de Brasília S.A. de que seu Capital Principal está em patamar inferior a 4,5% (quatro inteiros e cinco décimos por cento) do montante RWA, estabelecida pela regulamentação vigente; ou 2. seja verificada, em lei específica, a assinatura de compromisso de aporte para o BRB – Banco de Brasília S.A.; 3. seja decretado pelo BACEN o regime de administração especial temporária ou intervenção do BRB – Banco de Brasília S.A.; ou 4. seja determinado pelo BACEN, segundo critérios estabelecidos em regulamento específico editado pelo Conselho Monetário Nacional,a extinção do instrumento. | AJ74: Totalmente | AK74: Permanente | AL74: Contratual | AM74: Não | AN74: Não | AO74: Não se aplica
B75: 66 | C75: BRB - BANCO DE BRASILIA S/A | D75: LFSN2200795 | E75: Lei 12.249/2010 - Resolução 4.955/2021 do CMN | F75: Nível II | G75: Nível II | H75: Conglomerado | I75: Letra financeira | J75: 170446162 | K75: 170432403.9 | L75: passivo - custo amortizado | M75: 2022-05-30 | N75: Com vencimento | O75: 2028-05-30 | P75: Não | Q75: (1) Não há uma data específica, apenas quando for solicitado ao Bacen | R75: (2) Não há vinculação regulatória ou fiscal para resgate ou recompra | S75: (3) O valor pode ser parcial ou total, conforme autorização do Bacen | T75: Não se aplica | U75: Fixo | V75: 15,14% | W75: Não | X75: Mandatório | Y75: Não | Z75: Cumulativo | AA75: Não conversível | AB75: Não se aplica | AC75: Não se aplica | AD75: Não se aplica | AE75: Não se aplica | AF75: Não se aplica | AG75: Não se aplica | AH75: Sim | AI75: Os títulos serão extintos, permanente e em valor no mínimo correspondente ao saldo computado no Nível II do Patrimônio de Referência do BRB – Banco de Brasília S.A nas seguintes condições: 1. seja verificada a divulgação pelo BRB – Banco de Brasília S.A. de que seu Capital Principal está em patamar inferior a 4,5% (quatro inteiros e cinco décimos por cento) do montante RWA, estabelecida pela regulamentação vigente; ou 2. seja verificada, em lei específica, a assinatura de compromisso de aporte para o BRB – Banco de Brasília S.A.; 3. seja decretado pelo BACEN o regime de administração especial temporária ou intervenção do BRB – Banco de Brasília S.A.; ou 4. seja determinado pelo BACEN, segundo critérios estabelecidos em regulamento específico editado pelo Conselho Monetário Nacional,a extinção do instrumento. | AJ75: Totalmente | AK75: Permanente | AL75: Contratual | AM75: Não | AN75: Não | AO75: Não se aplica
B76: 67 | C76: BRB - BANCO DE BRASILIA S/A | D76: LFSN220086J | E76: Lei 12.249/2010 - Resolução 4.955/2021 do CMN | F76: Nível II | G76: Nível II | H76: Conglomerado | I76: Letra financeira | J76: 18987282.26 | K76: 18912000 | L76: passivo - custo amortizado | M76: 2022-04-20 | N76: Com vencimento | O76: 2028-04-20 | P76: Não | Q76: (1) Não há uma data específica, apenas quando for solicitado ao Bacen | R76: (2) Não há vinculação regulatória ou fiscal para resgate ou recompra | S76: (3) O valor pode ser parcial ou total, conforme autorização do Bacen | T76: Não se aplica | U76: Fixo | V76: 14,35% | W76: Não | X76: Mandatório | Y76: Não | Z76: Cumulativo | AA76: Não conversível | AB76: Não se aplica | AC76: Não se aplica | AD76: Não se aplica | AE76: Não se aplica | AF76: Não se aplica | AG76: Não se aplica | AH76: Sim | AI76: Os títulos serão extintos, permanente e em valor no mínimo correspondente ao saldo computado no Nível II do Patrimônio de Referência do BRB – Banco de Brasília S.A nas seguintes condições: 1. seja verificada a divulgação pelo BRB – Banco de Brasília S.A. de que seu Capital Principal está em patamar inferior a 4,5% (quatro inteiros e cinco décimos por cento) do montante RWA, estabelecida pela regulamentação vigente; ou 2. seja verificada, em lei específica, a assinatura de compromisso de aporte para o BRB – Banco de Brasília S.A.; 3. seja decretado pelo BACEN o regime de administração especial temporária ou intervenção do BRB – Banco de Brasília S.A.; ou 4. seja determinado pelo BACEN, segundo critérios estabelecidos em regulamento específico editado pelo Conselho Monetário Nacional,a extinção do instrumento. | AJ76: Totalmente | AK76: Permanente | AL76: Contratual | AM76: Não | AN76: Não | AO76: Não se aplica
B77: 68 | C77: BRB - BANCO DE BRASILIA S/A | D77: LFSN220086K | E77: Lei 12.249/2010 - Resolução 4.955/2021 do CMN | F77: Nível II | G77: Nível II | H77: Conglomerado | I77: Letra financeira | J77: 23040591.67 | K77: 22912000 | L77: passivo - custo amortizado | M77: 2022-04-18 | N77: Com vencimento | O77: 2028-04-18 | P77: Não | Q77: (1) Não há uma data específica, apenas quando for solicitado ao Bacen | R77: (2) Não há vinculação regulatória ou fiscal para resgate ou recompra | S77: (3) O valor pode ser parcial ou total, conforme autorização do Bacen | T77: Não se aplica | U77: Fixo | V77: 14,41% | W77: Não | X77: Mandatório | Y77: Não | Z77: Cumulativo | AA77: Não conversível | AB77: Não se aplica | AC77: Não se aplica | AD77: Não se aplica | AE77: Não se aplica | AF77: Não se aplica | AG77: Não se aplica | AH77: Sim | AI77: Os títulos serão extintos, permanente e em valor no mínimo correspondente ao saldo computado no Nível II do Patrimônio de Referência do BRB – Banco de Brasília S.A nas seguintes condições: 1. seja verificada a divulgação pelo BRB – Banco de Brasília S.A. de que seu Capital Principal está em patamar inferior a 4,5% (quatro inteiros e cinco décimos por cento) do montante RWA, estabelecida pela regulamentação vigente; ou 2. seja verificada, em lei específica, a assinatura de compromisso de aporte para o BRB – Banco de Brasília S.A.; 3. seja decretado pelo BACEN o regime de administração especial temporária ou intervenção do BRB – Banco de Brasília S.A.; ou 4. seja determinado pelo BACEN, segundo critérios estabelecidos em regulamento específico editado pelo Conselho Monetário Nacional,a extinção do instrumento. | AJ77: Totalmente | AK77: Permanente | AL77: Contratual | AM77: Não | AN77: Não | AO77: Não se aplica
B78: 69 | C78: BRB - BANCO DE BRASILIA S/A | D78: LFSC21001V3 | E78: Lei 12.249/2010 - Resolução 4.955/2021 do CMN | F78: Capital Complementar | G78: Capital Complementar | H78: Conglomerado | I78: Letra financeira | J78: 47437131.31 | K78: 30803000 | L78: passivo - custo amortizado | M78: 2021-09-02 | N78: Perpétuo | O78: 2050-01-05 | P78: Sim | Q78: Anual, a partir de 03/09/2026 | R78: (1) Não há vinculação regulatória ou fiscal para resgate ou recompra | S78: (2) Em parcela única na data da recompra | T78: Não se aplica | U78: Fixo | V78: 165% CDI | W78: Não | X78: Mandatório | Y78: Não | Z78: Cumulativo | AA78: Não conversível | AB78: Não se aplica | AC78: Não se aplica | AD78: Não se aplica | AE78: Não se aplica | AF78: Não se aplica | AG78: Não se aplica | AH78: Sim | AI78: Os títulos serão extintos, permanente e em valor no mínimo correspondente ao saldo computado no Nível I do Patrimônio de Referência do BRB – Banco de Brasília S.A nas seguintes condições: 1. seja verificada a divulgação pelo BRB – Banco de Brasília S.A. de que seu Capital Principal está em patamar inferior a 5,125% (cinco inteiros e cento e vinte e cinco milésimos por cento) do montante RWA, estabelecida pela Resolução 4.193, de 2013; ou 2. assinatura de compromisso de aporte para a instituição emitente, caso se configure a exceção prevista no caput do art. 28 da Lei Complementar no 101, de 4 de maio de 2000; ou 3. seja decretado pelo BACEN o regime de administração especial temporária ou intervenção do BRB – Banco de Brasília S.A.; ou 4. seja determinado pelo BACEN, segundo critérios estabelecidos em regulamento específico editado pelo Conselho Monetário Nacional,a extinção do instrumento. | AJ78: Totalmente | AK78: Permanente | AL78: Contratual | AM78: Não | AN78: Não | AO78: Não se aplica
B79: 70 | C79: BRB - BANCO DE BRASILIA S/A | D79: LFSC21001V4 | E79: Lei 12.249/2010 - Resolução 4.955/2021 do CMN | F79: Capital Complementar | G79: Capital Complementar | H79: Conglomerado | I79: Letra financeira | J79: 47437131.31 | K79: 30803000 | L79: passivo - custo amortizado | M79: 2021-09-02 | N79: Perpétuo | O79: 2050-01-05 | P79: Sim | Q79: Anual, a partir de 03/09/2026 | R79: (1) Não há vinculação regulatória ou fiscal para resgate ou recompra | S79: (2) Em parcela única na data da recompra | T79: Não se aplica | U79: Fixo | V79: 165% CDI | W79: Não | X79: Mandatório | Y79: Não | Z79: Cumulativo | AA79: Não conversível | AB79: Não se aplica | AC79: Não se aplica | AD79: Não se aplica | AE79: Não se aplica | AF79: Não se aplica | AG79: Não se aplica | AH79: Sim | AI79: Os títulos serão extintos, permanente e em valor no mínimo correspondente ao saldo computado no Nível I do Patrimônio de Referência do BRB – Banco de Brasília S.A nas seguintes condições: 1. seja verificada a divulgação pelo BRB – Banco de Brasília S.A. de que seu Capital Principal está em patamar inferior a 5,125% (cinco inteiros e cento e vinte e cinco milésimos por cento) do montante RWA, estabelecida pela Resolução 4.193, de 2013; ou 2. assinatura de compromisso de aporte para a instituição emitente, caso se configure a exceção prevista no caput do art. 28 da Lei Complementar no 101, de 4 de maio de 2000; ou 3. seja decretado pelo BACEN o regime de administração especial temporária ou intervenção do BRB – Banco de Brasília S.A.; ou 4. seja determinado pelo BACEN, segundo critérios estabelecidos em regulamento específico editado pelo Conselho Monetário Nacional,a extinção do instrumento. | AJ79: Totalmente | AK79: Permanente | AL79: Contratual | AM79: Não | AN79: Não | AO79: Não se aplica
B80: 71 | C80: BRB - BANCO DE BRASILIA S/A | D80: LFSC21001V5 | E80: Lei 12.249/2010 - Resolução 4.955/2021 do CMN | F80: Capital Complementar | G80: Capital Complementar | H80: Conglomerado | I80: Letra financeira | J80: 47437131.31 | K80: 30803000 | L80: passivo - custo amortizado | M80: 2021-09-02 | N80: Perpétuo | O80: 2050-01-05 | P80: Sim | Q80: Anual, a partir de 03/09/2026 | R80: (1) Não há vinculação regulatória ou fiscal para resgate ou recompra | S80: (2) Em parcela única na data da recompra | T80: Não se aplica | U80: Fixo | V80: 165% CDI | W80: Não | X80: Mandatório | Y80: Não | Z80: Cumulativo | AA80: Não conversível | AB80: Não se aplica | AC80: Não se aplica | AD80: Não se aplica | AE80: Não se aplica | AF80: Não se aplica | AG80: Não se aplica | AH80: Sim | AI80: Os títulos serão extintos, permanente e em valor no mínimo correspondente ao saldo computado no Nível I do Patrimônio de Referência do BRB – Banco de Brasília S.A nas seguintes condições: 1. seja verificada a divulgação pelo BRB – Banco de Brasília S.A. de que seu Capital Principal está em patamar inferior a 5,125% (cinco inteiros e cento e vinte e cinco milésimos por cento) do montante RWA, estabelecida pela Resolução 4.193, de 2013; ou 2. assinatura de compromisso de aporte para a instituição emitente, caso se configure a exceção prevista no caput do art. 28 da Lei Complementar no 101, de 4 de maio de 2000; ou 3. seja decretado pelo BACEN o regime de administração especial temporária ou intervenção do BRB – Banco de Brasília S.A.; ou 4. seja determinado pelo BACEN, segundo critérios estabelecidos em regulamento específico editado pelo Conselho Monetário Nacional,a extinção do instrumento. | AJ80: Totalmente | AK80: Permanente | AL80: Contratual | AM80: Não | AN80: Não | AO80: Não se aplica
B81: 72 | C81: BRB - BANCO DE BRASILIA S/A | D81: LFSC21001V6 | E81: Lei 12.249/2010 - Resolução 4.955/2021 do CMN | F81: Capital Complementar | G81: Capital Complementar | H81: Conglomerado | I81: Letra financeira | J81: 47437131.31 | K81: 30803000 | L81: passivo - custo amortizado | M81: 2021-09-02 | N81: Perpétuo | O81: 2050-01-05 | P81: Sim | Q81: Anual, a partir de 03/09/2026 | R81: (1) Não há vinculação regulatória ou fiscal para resgate ou recompra | S81: (2) Em parcela única na data da recompra | T81: Não se aplica | U81: Fixo | V81: 165% CDI | W81: Não | X81: Mandatório | Y81: Não | Z81: Cumulativo | AA81: Não conversível | AB81: Não se aplica | AC81: Não se aplica | AD81: Não se aplica | AE81: Não se aplica | AF81: Não se aplica | AG81: Não se aplica | AH81: Sim | AI81: Os títulos serão extintos, permanente e em valor no mínimo correspondente ao saldo computado no Nível I do Patrimônio de Referência do BRB – Banco de Brasília S.A nas seguintes condições: 1. seja verificada a divulgação pelo BRB – Banco de Brasília S.A. de que seu Capital Principal está em patamar inferior a 5,125% (cinco inteiros e cento e vinte e cinco milésimos por cento) do montante RWA, estabelecida pela Resolução 4.193, de 2013; ou 2. assinatura de compromisso de aporte para a instituição emitente, caso se configure a exceção prevista no caput do art. 28 da Lei Complementar no 101, de 4 de maio de 2000; ou 3. seja decretado pelo BACEN o regime de administração especial temporária ou intervenção do BRB – Banco de Brasília S.A.; ou 4. seja determinado pelo BACEN, segundo critérios estabelecidos em regulamento específico editado pelo Conselho Monetário Nacional,a extinção do instrumento. | AJ81: Totalmente | AK81: Permanente | AL81: Contratual | AM81: Não | AN81: Não | AO81: Não se aplica
B82: 73 | C82: BRB - BANCO DE BRASILIA S/A | D82: LFSC21001V7 | E82: Lei 12.249/2010 - Resolução 4.955/2021 do CMN | F82: Capital Complementar | G82: Capital Complementar | H82: Conglomerado | I82: Letra financeira | J82: 8417730.72 | K82: 5466000 | L82: passivo - custo amortizado | M82: 2021-09-02 | N82: Perpétuo | O82: 2050-01-05 | P82: Sim | Q82: Anual, a partir de 03/09/2026 | R82: (1) Não há vinculação regulatória ou fiscal para resgate ou recompra | S82: (2) Em parcela única na data da recompra | T82: Não se aplica | U82: Fixo | V82: 165% CDI | W82: Não | X82: Mandatório | Y82: Não | Z82: Cumulativo | AA82: Não conversível | AB82: Não se aplica | AC82: Não se aplica | AD82: Não se aplica | AE82: Não se aplica | AF82: Não se aplica | AG82: Não se aplica | AH82: Sim | AI82: Os títulos serão extintos, permanente e em valor no mínimo correspondente ao saldo computado no Nível I do Patrimônio de Referência do BRB – Banco de Brasília S.A nas seguintes condições: 1. seja verificada a divulgação pelo BRB – Banco de Brasília S.A. de que seu Capital Principal está em patamar inferior a 5,125% (cinco inteiros e cento e vinte e cinco milésimos por cento) do montante RWA, estabelecida pela Resolução 4.193, de 2013; ou 2. assinatura de compromisso de aporte para a instituição emitente, caso se configure a exceção prevista no caput do art. 28 da Lei Complementar no 101, de 4 de maio de 2000; ou 3. seja decretado pelo BACEN o regime de administração especial temporária ou intervenção do BRB – Banco de Brasília S.A.; ou 4. seja determinado pelo BACEN, segundo critérios estabelecidos em regulamento específico editado pelo Conselho Monetário Nacional,a extinção do instrumento. | AJ82: Totalmente | AK82: Permanente | AL82: Contratual | AM82: Não | AN82: Não | AO82: Não se aplica
B83: 74 | C83: BRB - BANCO DE BRASILIA S/A | D83: LFSC21001V8 | E83: Lei 12.249/2010 - Resolução 4.955/2021 do CMN | F83: Capital Complementar | G83: Capital Complementar | H83: Conglomerado | I83: Letra financeira | J83: 5709927.48 | K83: 3707705.16 | L83: passivo - custo amortizado | M83: 2021-09-02 | N83: Perpétuo | O83: 2050-01-05 | P83: Sim | Q83: Anual, a partir de 03/09/2026 | R83: (1) Não há vinculação regulatória ou fiscal para resgate ou recompra | S83: (2) Em parcela única na data da recompra | T83: Não se aplica | U83: Fixo | V83: 165% CDI | W83: Não | X83: Mandatório | Y83: Não | Z83: Cumulativo | AA83: Não conversível | AB83: Não se aplica | AC83: Não se aplica | AD83: Não se aplica | AE83: Não se aplica | AF83: Não se aplica | AG83: Não se aplica | AH83: Sim | AI83: Os títulos serão extintos, permanente e em valor no mínimo correspondente ao saldo computado no Nível I do Patrimônio de Referência do BRB – Banco de Brasília S.A nas seguintes condições: 1. seja verificada a divulgação pelo BRB – Banco de Brasília S.A. de que seu Capital Principal está em patamar inferior a 5,125% (cinco inteiros e cento e vinte e cinco milésimos por cento) do montante RWA, estabelecida pela Resolução 4.193, de 2013; ou 2. assinatura de compromisso de aporte para a instituição emitente, caso se configure a exceção prevista no caput do art. 28 da Lei Complementar no 101, de 4 de maio de 2000; ou 3. seja decretado pelo BACEN o regime de administração especial temporária ou intervenção do BRB – Banco de Brasília S.A.; ou 4. seja determinado pelo BACEN, segundo critérios estabelecidos em regulamento específico editado pelo Conselho Monetário Nacional,a extinção do instrumento. | AJ83: Totalmente | AK83: Permanente | AL83: Contratual | AM83: Não | AN83: Não | AO83: Não se aplica
B84: 75 | C84: BRB - BANCO DE BRASILIA S/A | D84: LFSC2200463 | E84: Lei 12.249/2010 - Resolução 4.955/2021 do CMN | F84: Capital Complementar | G84: Capital Complementar | H84: Conglomerado | I84: Letra financeira | J84: 933242.17 | K84: 766000 | L84: passivo - custo amortizado | M84: 2022-12-19 | N84: Perpétuo | O84: 2050-05-05 | P84: Sim | Q84: Anual, a partir de 20/12/2027 | R84: (1) Não há vinculação regulatória ou fiscal para resgate ou recompra | S84: (2) Em parcela única na data da recompra | T84: Não se aplica | U84: Fixo | V84: 155% CDI | W84: Não | X84: Mandatório | Y84: Não | Z84: Cumulativo | AA84: Não conversível | AB84: Não se aplica | AC84: Não se aplica | AD84: Não se aplica | AE84: Não se aplica | AF84: Não se aplica | AG84: Não se aplica | AH84: Sim | AI84: Os títulos serão extintos, permanente e em valor no mínimo correspondente ao saldo computado no Nível I do Patrimônio de Referência do BRB – Banco de Brasília S.A nas seguintes condições: 1. seja verificada a divulgação pelo BRB – Banco de Brasília S.A. de que seu Capital Principal está em patamar inferior a 5,125% (cinco inteiros e cento e vinte e cinco milésimos por cento) do montante RWA, estabelecida pela Resolução 4.193, de 2013; ou 2. assinatura de compromisso de aporte para a instituição emitente, caso se configure a exceção prevista no caput do art. 28 da Lei Complementar no 101, de 4 de maio de 2000; ou 3. seja decretado pelo BACEN o regime de administração especial temporária ou intervenção do BRB – Banco de Brasília S.A.; ou 4. seja determinado pelo BACEN, segundo critérios estabelecidos em regulamento específico editado pelo Conselho Monetário Nacional,a extinção do instrumento. | AJ84: Totalmente | AK84: Permanente | AL84: Contratual | AM84: Não | AN84: Não | AO84: Não se aplica
B85: 76 | C85: BRB - BANCO DE BRASILIA S/A | D85: LFSC2200462 | E85: Lei 12.249/2010 - Resolução 4.955/2021 do CMN | F85: Capital Complementar | G85: Capital Complementar | H85: Conglomerado | I85: Letra financeira | J85: 5568994.81 | K85: 4571000 | L85: passivo - custo amortizado | M85: 2022-12-19 | N85: Perpétuo | O85: 2050-05-05 | P85: Sim | Q85: Anual, a partir de 20/12/2027 | R85: (1) Não há vinculação regulatória ou fiscal para resgate ou recompra | S85: (2) Em parcela única na data da recompra | T85: Não se aplica | U85: Fixo | V85: 155% CDI | W85: Não | X85: Mandatório | Y85: Não | Z85: Cumulativo | AA85: Não conversível | AB85: Não se aplica | AC85: Não se aplica | AD85: Não se aplica | AE85: Não se aplica | AF85: Não se aplica | AG85: Não se aplica | AH85: Sim | AI85: Os títulos serão extintos, permanente e em valor no mínimo correspondente ao saldo computado no Nível I do Patrimônio de Referência do BRB – Banco de Brasília S.A nas seguintes condições: 1. seja verificada a divulgação pelo BRB – Banco de Brasília S.A. de que seu Capital Principal está em patamar inferior a 5,125% (cinco inteiros e cento e vinte e cinco milésimos por cento) do montante RWA, estabelecida pela Resolução 4.193, de 2013; ou 2. assinatura de compromisso de aporte para a instituição emitente, caso se configure a exceção prevista no caput do art. 28 da Lei Complementar no 101, de 4 de maio de 2000; ou 3. seja decretado pelo BACEN o regime de administração especial temporária ou intervenção do BRB – Banco de Brasília S.A.; ou 4. seja determinado pelo BACEN, segundo critérios estabelecidos em regulamento específico editado pelo Conselho Monetário Nacional,a extinção do instrumento. | AJ85: Totalmente | AK85: Permanente | AL85: Contratual | AM85: Não | AN85: Não | AO85: Não se aplica
B86: 77 | C86: BRB - BANCO DE BRASILIA S/A | D86: LFSC2200461 | E86: Lei 12.249/2010 - Resolução 4.955/2021 do CMN | F86: Capital Complementar | G86: Capital Complementar | H86: Conglomerado | I86: Letra financeira | J86: 2972729.67 | K86: 2440000 | L86: passivo - custo amortizado | M86: 2022-12-19 | N86: Perpétuo | O86: 2050-05-05 | P86: Sim | Q86: Anual, a partir de 20/12/2027 | R86: (1) Não há vinculação regulatória ou fiscal para resgate ou recompra | S86: (2) Em parcela única na data da recompra | T86: Não se aplica | U86: Fixo | V86: 155% CDI | W86: Não | X86: Mandatório | Y86: Não | Z86: Cumulativo | AA86: Não conversível | AB86: Não se aplica | AC86: Não se aplica | AD86: Não se aplica | AE86: Não se aplica | AF86: Não se aplica | AG86: Não se aplica | AH86: Sim | AI86: Os títulos serão extintos, permanente e em valor no mínimo correspondente ao saldo computado no Nível I do Patrimônio de Referência do BRB – Banco de Brasília S.A nas seguintes condições: 1. seja verificada a divulgação pelo BRB – Banco de Brasília S.A. de que seu Capital Principal está em patamar inferior a 5,125% (cinco inteiros e cento e vinte e cinco milésimos por cento) do montante RWA, estabelecida pela Resolução 4.193, de 2013; ou 2. assinatura de compromisso de aporte para a instituição emitente, caso se configure a exceção prevista no caput do art. 28 da Lei Complementar no 101, de 4 de maio de 2000; ou 3. seja decretado pelo BACEN o regime de administração especial temporária ou intervenção do BRB – Banco de Brasília S.A.; ou 4. seja determinado pelo BACEN, segundo critérios estabelecidos em regulamento específico editado pelo Conselho Monetário Nacional,a extinção do instrumento. | AJ86: Totalmente | AK86: Permanente | AL86: Contratual | AM86: Não | AN86: Não | AO86: Não se aplica
B87: 78 | C87: BRB - BANCO DE BRASILIA S/A | D87: LFSC22004BM | E87: Lei 12.249/2010 - Resolução 4.955/2021 do CMN | F87: Capital Complementar | G87: Capital Complementar | H87: Conglomerado | I87: Letra financeira | J87: 3609735.78 | K87: 3000000 | L87: passivo - custo amortizado | M87: 2022-12-29 | N87: Perpétuo | O87: 2050-05-16 | P87: Sim | Q87: Anual, a partir de 30/12/2027 | R87: (1) Não há vinculação regulatória ou fiscal para resgate ou recompra | S87: (2) Em parcela única na data da recompra | T87: Não se aplica | U87: Fixo | V87: 150% CDI | W87: Não | X87: Mandatório | Y87: Não | Z87: Cumulativo | AA87: Não conversível | AB87: Não se aplica | AC87: Não se aplica | AD87: Não se aplica | AE87: Não se aplica | AF87: Não se aplica | AG87: Não se aplica | AH87: Sim | AI87: Os títulos serão extintos, permanente e em valor no mínimo correspondente ao saldo computado no Nível I do Patrimônio de Referência do BRB – Banco de Brasília S.A nas seguintes condições: 1. seja verificada a divulgação pelo BRB – Banco de Brasília S.A. de que seu Capital Principal está em patamar inferior a 5,125% (cinco inteiros e cento e vinte e cinco milésimos por cento) do montante RWA, estabelecida pela Resolução 4.193, de 2013; ou 2. assinatura de compromisso de aporte para a instituição emitente, caso se configure a exceção prevista no caput do art. 28 da Lei Complementar no 101, de 4 de maio de 2000; ou 3. seja decretado pelo BACEN o regime de administração especial temporária ou intervenção do BRB – Banco de Brasília S.A.; ou 4. seja determinado pelo BACEN, segundo critérios estabelecidos em regulamento específico editado pelo Conselho Monetário Nacional,a extinção do instrumento. | AJ87: Totalmente | AK87: Permanente | AL87: Contratual | AM87: Não | AN87: Não | AO87: Não se aplica
B88: 79 | C88: BRB - BANCO DE BRASILIA S/A | D88: LFSC20002MO | E88: Lei 12.249/2010 - Resolução 4.955/2021 do CMN | F88: Capital Complementar | G88: Capital Complementar | H88: Conglomerado | I88: Letra financeira | J88: 5665804.15 | K88: 3750300 | L88: passivo - custo amortizado | M88: 2020-12-18 | N88: Perpétuo | O88: 2050-12-19 | P88: Sim | Q88: Anual, a partir de 19/12/2025 | R88: (1) Não há vinculação regulatória ou fiscal para resgate ou recompra | S88: (2) Em parcela única na data da recompra | T88: Não se aplica | U88: Fixo | V88: IPCA + 7,05% | W88: Não | X88: Mandatório | Y88: Não | Z88: Cumulativo | AA88: Não conversível | AB88: Não se aplica | AC88: Não se aplica | AD88: Não se aplica | AE88: Não se aplica | AF88: Não se aplica | AG88: Não se aplica | AH88: Sim | AI88: Os títulos serão extintos, permanente e em valor no mínimo correspondente ao saldo computado no Nível I do Patrimônio de Referência do BRB – Banco de Brasília S.A nas seguintes condições: 1. seja verificada a divulgação pelo BRB – Banco de Brasília S.A. de que seu Capital Principal está em patamar inferior a 5,125% (cinco inteiros e cento e vinte e cinco milésimos por cento) do montante RWA, estabelecida pela Resolução 4.193, de 2013; ou 2. assinatura de compromisso de aporte para a instituição emitente, caso se configure a exceção prevista no caput do art. 28 da Lei Complementar no 101, de 4 de maio de 2000; ou 3. seja decretado pelo BACEN o regime de administração especial temporária ou intervenção do BRB – Banco de Brasília S.A.; ou 4. seja determinado pelo BACEN, segundo critérios estabelecidos em regulamento específico editado pelo Conselho Monetário Nacional,a extinção do instrumento. | AJ88: Totalmente | AK88: Permanente | AL88: Contratual | AM88: Não | AN88: Não | AO88: Não se aplica
B89: 80 | C89: BRB - BANCO DE BRASILIA S/A | D89: LFSC23000GP | E89: Lei 12.249/2010 - Resolução 4.955/2021 do CMN | F89: Capital Complementar | G89: Capital Complementar | H89: Conglomerado | I89: Letra financeira | J89: 59429925.45 | K89: 52999999.36 | L89: passivo - custo amortizado | M89: 2023-02-06 | N89: Perpétuo | O89: 2050-06-23 | P89: Sim | Q89: Anual, a partir de 07/02/2028 | R89: (1) Não há vinculação regulatória ou fiscal para resgate ou recompra | S89: (2) Em parcela única na data da recompra | T89: Não se aplica | U89: Fixo | V89: IPCA + 9,01% | W89: Não | X89: Mandatório | Y89: Não | Z89: Cumulativo | AA89: Não conversível | AB89: Não se aplica | AC89: Não se aplica | AD89: Não se aplica | AE89: Não se aplica | AF89: Não se aplica | AG89: Não se aplica | AH89: Sim | AI89: Os títulos serão extintos, permanente e em valor no mínimo correspondente ao saldo computado no Nível I do Patrimônio de Referência do BRB – Banco de Brasília S.A nas seguintes condições: 1. seja verificada a divulgação pelo BRB – Banco de Brasília S.A. de que seu Capital Principal está em patamar inferior a 5,125% (cinco inteiros e cento e vinte e cinco milésimos por cento) do montante RWA, estabelecida pela Resolução 4.193, de 2013; ou 2. assinatura de compromisso de aporte para a instituição emitente, caso se configure a exceção prevista no caput do art. 28 da Lei Complementar no 101, de 4 de maio de 2000; ou 3. seja decretado pelo BACEN o regime de administração especial temporária ou intervenção do BRB – Banco de Brasília S.A.; ou 4. seja determinado pelo BACEN, segundo critérios estabelecidos em regulamento específico editado pelo Conselho Monetário Nacional,a extinção do instrumento. | AJ89: Totalmente | AK89: Permanente | AL89: Contratual | AM89: Não | AN89: Não | AO89: Não se aplica
B90: 81 | C90: BRB - BANCO DE BRASILIA S/A | D90: LFSC23000GQ | E90: Lei 12.249/2010 - Resolução 4.955/2021 do CMN | F90: Capital Complementar | G90: Capital Complementar | H90: Conglomerado | I90: Letra financeira | J90: 18389637.3 | K90: 16399999.8 | L90: passivo - custo amortizado | M90: 2023-02-06 | N90: Perpétuo | O90: 2050-06-23 | P90: Sim | Q90: Anual, a partir de 07/02/2028 | R90: (1) Não há vinculação regulatória ou fiscal para resgate ou recompra | S90: (2) Em parcela única na data da recompra | T90: Não se aplica | U90: Fixo | V90: IPCA + 9,01% | W90: Não | X90: Mandatório | Y90: Não | Z90: Cumulativo | AA90: Não conversível | AB90: Não se aplica | AC90: Não se aplica | AD90: Não se aplica | AE90: Não se aplica | AF90: Não se aplica | AG90: Não se aplica | AH90: Sim | AI90: Os títulos serão extintos, permanente e em valor no mínimo correspondente ao saldo computado no Nível I do Patrimônio de Referência do BRB – Banco de Brasília S.A nas seguintes condições: 1. seja verificada a divulgação pelo BRB – Banco de Brasília S.A. de que seu Capital Principal está em patamar inferior a 5,125% (cinco inteiros e cento e vinte e cinco milésimos por cento) do montante RWA, estabelecida pela Resolução 4.193, de 2013; ou 2. assinatura de compromisso de aporte para a instituição emitente, caso se configure a exceção prevista no caput do art. 28 da Lei Complementar no 101, de 4 de maio de 2000; ou 3. seja decretado pelo BACEN o regime de administração especial temporária ou intervenção do BRB – Banco de Brasília S.A.; ou 4. seja determinado pelo BACEN, segundo critérios estabelecidos em regulamento específico editado pelo Conselho Monetário Nacional,a extinção do instrumento. | AJ90: Totalmente | AK90: Permanente | AL90: Contratual | AM90: Não | AN90: Não | AO90: Não se aplica
B91: 82 | C91: BRB - BANCO DE BRASILIA S/A | D91: LFSC23000M9 | E91: Lei 12.249/2010 - Resolução 4.955/2021 do CMN | F91: Capital Complementar | G91: Capital Complementar | H91: Conglomerado | I91: Letra financeira | J91: 672791.61 | K91: 600000 | L91: passivo - custo amortizado | M91: 2023-02-06 | N91: Perpétuo | O91: 2050-06-23 | P91: Sim | Q91: Anual, a partir de 07/02/2028 | R91: (1) Não há vinculação regulatória ou fiscal para resgate ou recompra | S91: (2) Em parcela única na data da recompra | T91: Não se aplica | U91: Fixo | V91: IPCA + 9,01% | W91: Não | X91: Mandatório | Y91: Não | Z91: Cumulativo | AA91: Não conversível | AB91: Não se aplica | AC91: Não se aplica | AD91: Não se aplica | AE91: Não se aplica | AF91: Não se aplica | AG91: Não se aplica | AH91: Sim | AI91: Os títulos serão extintos, permanente e em valor no mínimo correspondente ao saldo computado no Nível I do Patrimônio de Referência do BRB – Banco de Brasília S.A nas seguintes condições: 1. seja verificada a divulgação pelo BRB – Banco de Brasília S.A. de que seu Capital Principal está em patamar inferior a 5,125% (cinco inteiros e cento e vinte e cinco milésimos por cento) do montante RWA, estabelecida pela Resolução 4.193, de 2013; ou 2. assinatura de compromisso de aporte para a instituição emitente, caso se configure a exceção prevista no caput do art. 28 da Lei Complementar no 101, de 4 de maio de 2000; ou 3. seja decretado pelo BACEN o regime de administração especial temporária ou intervenção do BRB – Banco de Brasília S.A.; ou 4. seja determinado pelo BACEN, segundo critérios estabelecidos em regulamento específico editado pelo Conselho Monetário Nacional,a extinção do instrumento. | AJ91: Totalmente | AK91: Permanente | AL91: Contratual | AM91: Não | AN91: Não | AO91: Não se aplica
B92: 83 | C92: BRB - BANCO DE BRASILIA S/A | D92: LFSC200020A | E92: Lei 12.249/2010 - Resolução 4.955/2021 do CMN | F92: Capital Complementar | G92: Capital Complementar | H92: Conglomerado | I92: Letra financeira | J92: 3256563.56 | K92: 2086000 | L92: passivo - custo amortizado | M92: 2020-10-14 | N92: Perpétuo | O92: 2050-10-10 | P92: Sim | Q92: Anual, a partir de 15/10/2025 | R92: (1) Não há vinculação regulatória ou fiscal para resgate ou recompra | S92: (2) Em parcela única na data da recompra | T92: Não se aplica | U92: Fixo | V92: IPCA + 7,05% | W92: Não | X92: Mandatório | Y92: Não | Z92: Cumulativo | AA92: Não conversível | AB92: Não se aplica | AC92: Não se aplica | AD92: Não se aplica | AE92: Não se aplica | AF92: Não se aplica | AG92: Não se aplica | AH92: Sim | AI92: Os títulos serão extintos, permanente e em valor no mínimo correspondente ao saldo computado no Nível I do Patrimônio de Referência do BRB – Banco de Brasília S.A nas seguintes condições: 1. seja verificada a divulgação pelo BRB – Banco de Brasília S.A. de que seu Capital Principal está em patamar inferior a 5,125% (cinco inteiros e cento e vinte e cinco milésimos por cento) do montante RWA, estabelecida pela Resolução 4.193, de 2013; ou 2. assinatura de compromisso de aporte para a instituição emitente, caso se configure a exceção prevista no caput do art. 28 da Lei Complementar no 101, de 4 de maio de 2000; ou 3. seja decretado pelo BACEN o regime de administração especial temporária ou intervenção do BRB – Banco de Brasília S.A.; ou 4. seja determinado pelo BACEN, segundo critérios estabelecidos em regulamento específico editado pelo Conselho Monetário Nacional,a extinção do instrumento. | AJ92: Totalmente | AK92: Permanente | AL92: Contratual | AM92: Não | AN92: Não | AO92: Não se aplica
B93: 84 | C93: BRB - BANCO DE BRASILIA S/A | D93: LFSC20001P5 | E93: Lei 12.249/2010 - Resolução 4.955/2021 do CMN | F93: Capital Complementar | G93: Capital Complementar | H93: Conglomerado | I93: Letra financeira | J93: 3039085.27 | K93: 1930000 | L93: passivo - custo amortizado | M93: 2020-09-16 | N93: Perpétuo | O93: 2050-09-16 | P93: Sim | Q93: Anual, a partir de 17/09/2025 | R93: (1) Não há vinculação regulatória ou fiscal para resgate ou recompra | S93: (2) Em parcela única na data da recompra | T93: Não se aplica | U93: Fixo | V93: IPCA + 7,05% | W93: Não | X93: Mandatório | Y93: Não | Z93: Cumulativo | AA93: Não conversível | AB93: Não se aplica | AC93: Não se aplica | AD93: Não se aplica | AE93: Não se aplica | AF93: Não se aplica | AG93: Não se aplica | AH93: Sim | AI93: Os títulos serão extintos, permanente e em valor no mínimo correspondente ao saldo computado no Nível I do Patrimônio de Referência do BRB – Banco de Brasília S.A nas seguintes condições: 1. seja verificada a divulgação pelo BRB – Banco de Brasília S.A. de que seu Capital Principal está em patamar inferior a 5,125% (cinco inteiros e cento e vinte e cinco milésimos por cento) do montante RWA, estabelecida pela Resolução 4.193, de 2013; ou 2. assinatura de compromisso de aporte para a instituição emitente, caso se configure a exceção prevista no caput do art. 28 da Lei Complementar no 101, de 4 de maio de 2000; ou 3. seja decretado pelo BACEN o regime de administração especial temporária ou intervenção do BRB – Banco de Brasília S.A.; ou 4. seja determinado pelo BACEN, segundo critérios estabelecidos em regulamento específico editado pelo Conselho Monetário Nacional,a extinção do instrumento. | AJ93: Totalmente | AK93: Permanente | AL93: Contratual | AM93: Não | AN93: Não | AO93: Não se aplica
B94: 85 | C94: BRB - BANCO DE BRASILIA S/A | D94: LFSC21000MH | E94: Lei 12.249/2010 - Resolução 4.955/2021 do CMN | F94: Capital Complementar | G94: Capital Complementar | H94: Conglomerado | I94: Letra financeira | J94: 44187795.83 | K94: 30000000 | L94: passivo - custo amortizado | M94: 2021-02-11 | N94: Perpétuo | O94: 2051-02-15 | P94: Sim | Q94: Anual, a partir de 12/02/2026 | R94: (1) Não há vinculação regulatória ou fiscal para resgate ou recompra | S94: (2) Em parcela única na data da recompra | T94: Não se aplica | U94: Fixo | V94: IPCA + 7,05% | W94: Não | X94: Mandatório | Y94: Não | Z94: Cumulativo | AA94: Não conversível | AB94: Não se aplica | AC94: Não se aplica | AD94: Não se aplica | AE94: Não se aplica | AF94: Não se aplica | AG94: Não se aplica | AH94: Sim | AI94: Os títulos serão extintos, permanente e em valor no mínimo correspondente ao saldo computado no Nível I do Patrimônio de Referência do BRB – Banco de Brasília S.A nas seguintes condições: 1. seja verificada a divulgação pelo BRB – Banco de Brasília S.A. de que seu Capital Principal está em patamar inferior a 5,125% (cinco inteiros e cento e vinte e cinco milésimos por cento) do montante RWA, estabelecida pela Resolução 4.193, de 2013; ou 2. assinatura de compromisso de aporte para a instituição emitente, caso se configure a exceção prevista no caput do art. 28 da Lei Complementar no 101, de 4 de maio de 2000; ou 3. seja decretado pelo BACEN o regime de administração especial temporária ou intervenção do BRB – Banco de Brasília S.A.; ou 4. seja determinado pelo BACEN, segundo critérios estabelecidos em regulamento específico editado pelo Conselho Monetário Nacional,a extinção do instrumento. | AJ94: Totalmente | AK94: Permanente | AL94: Contratual | AM94: Não | AN94: Não | AO94: Não se aplica
B95: 86 | C95: BRB - BANCO DE BRASILIA S/A | D95: LFSC21000MI | E95: Lei 12.249/2010 - Resolução 4.955/2021 do CMN | F95: Capital Complementar | G95: Capital Complementar | H95: Conglomerado | I95: Letra financeira | J95: 2661937.65 | K95: 1810000 | L95: passivo - custo amortizado | M95: 2021-02-18 | N95: Perpétuo | O95: 2050-02-18 | P95: Sim | Q95: Anual, a partir de 19/02/2026 | R95: (1) Não há vinculação regulatória ou fiscal para resgate ou recompra | S95: (2) Em parcela única na data da recompra | T95: Não se aplica | U95: Fixo | V95: IPCA + 7,05% | W95: Não | X95: Mandatório | Y95: Não | Z95: Cumulativo | AA95: Não conversível | AB95: Não se aplica | AC95: Não se aplica | AD95: Não se aplica | AE95: Não se aplica | AF95: Não se aplica | AG95: Não se aplica | AH95: Sim | AI95: Os títulos serão extintos, permanente e em valor no mínimo correspondente ao saldo computado no Nível I do Patrimônio de Referência do BRB – Banco de Brasília S.A nas seguintes condições: 1. seja verificada a divulgação pelo BRB – Banco de Brasília S.A. de que seu Capital Principal está em patamar inferior a 5,125% (cinco inteiros e cento e vinte e cinco milésimos por cento) do montante RWA, estabelecida pela Resolução 4.193, de 2013; ou 2. assinatura de compromisso de aporte para a instituição emitente, caso se configure a exceção prevista no caput do art. 28 da Lei Complementar no 101, de 4 de maio de 2000; ou 3. seja decretado pelo BACEN o regime de administração especial temporária ou intervenção do BRB – Banco de Brasília S.A.; ou 4. seja determinado pelo BACEN, segundo critérios estabelecidos em regulamento específico editado pelo Conselho Monetário Nacional,a extinção do instrumento. | AJ95: Totalmente | AK95: Permanente | AL95: Contratual | AM95: Não | AN95: Não | AO95: Não se aplica
B96: 87 | C96: BRB - BANCO DE BRASILIA S/A | D96: LFSC2100001 | E96: Lei 12.249/2010 - Resolução 4.955/2021 do CMN | F96: Capital Complementar | G96: Capital Complementar | H96: Conglomerado | I96: Letra financeira | J96: 1504232.37 | K96: 1000000 | L96: passivo - custo amortizado | M96: 2021-01-04 | N96: Perpétuo | O96: 2031-01-06 | P96: Sim | Q96: Anual, a partir de 05/01/2026 | R96: (1) Não há vinculação regulatória ou fiscal para resgate ou recompra | S96: (2) Em parcela única na data da recompra | T96: Não se aplica | U96: Fixo | V96: IPCA + 7,05% | W96: Não | X96: Mandatório | Y96: Não | Z96: Cumulativo | AA96: Não conversível | AB96: Não se aplica | AC96: Não se aplica | AD96: Não se aplica | AE96: Não se aplica | AF96: Não se aplica | AG96: Não se aplica | AH96: Sim | AI96: Os títulos serão extintos, permanente e em valor no mínimo correspondente ao saldo computado no Nível I do Patrimônio de Referência do BRB – Banco de Brasília S.A nas seguintes condições: 1. seja verificada a divulgação pelo BRB – Banco de Brasília S.A. de que seu Capital Principal está em patamar inferior a 5,125% (cinco inteiros e cento e vinte e cinco milésimos por cento) do montante RWA, estabelecida pela Resolução 4.193, de 2013; ou 2. assinatura de compromisso de aporte para a instituição emitente, caso se configure a exceção prevista no caput do art. 28 da Lei Complementar no 101, de 4 de maio de 2000; ou 3. seja decretado pelo BACEN o regime de administração especial temporária ou intervenção do BRB – Banco de Brasília S.A.; ou 4. seja determinado pelo BACEN, segundo critérios estabelecidos em regulamento específico editado pelo Conselho Monetário Nacional,a extinção do instrumento. | AJ96: Totalmente | AK96: Permanente | AL96: Contratual | AM96: Não | AN96: Não | AO96: Não se aplica
B97: 88 | C97: BRB - BANCO DE BRASILIA S/A | D97: LFSC21000RT | E97: Lei 12.249/2010 - Resolução 4.955/2021 do CMN | F97: Capital Complementar | G97: Capital Complementar | H97: Conglomerado | I97: Letra financeira | J97: 1459737.8 | K97: 1000000 | L97: passivo - custo amortizado | M97: 2021-03-12 | N97: Perpétuo | O97: 2051-03-13 | P97: Sim | Q97: Anual, a partir de 13/03/2026 | R97: (1) Não há vinculação regulatória ou fiscal para resgate ou recompra | S97: (2) Em parcela única na data da recompra | T97: Não se aplica | U97: Fixo | V97: IPCA + 7,05% | W97: Não | X97: Mandatório | Y97: Não | Z97: Cumulativo | AA97: Não conversível | AB97: Não se aplica | AC97: Não se aplica | AD97: Não se aplica | AE97: Não se aplica | AF97: Não se aplica | AG97: Não se aplica | AH97: Sim | AI97: Os títulos serão extintos, permanente e em valor no mínimo correspondente ao saldo computado no Nível I do Patrimônio de Referência do BRB – Banco de Brasília S.A nas seguintes condições: 1. seja verificada a divulgação pelo BRB – Banco de Brasília S.A. de que seu Capital Principal está em patamar inferior a 5,125% (cinco inteiros e cento e vinte e cinco milésimos por cento) do montante RWA, estabelecida pela Resolução 4.193, de 2013; ou 2. assinatura de compromisso de aporte para a instituição emitente, caso se configure a exceção prevista no caput do art. 28 da Lei Complementar no 101, de 4 de maio de 2000; ou 3. seja decretado pelo BACEN o regime de administração especial temporária ou intervenção do BRB – Banco de Brasília S.A.; ou 4. seja determinado pelo BACEN, segundo critérios estabelecidos em regulamento específico editado pelo Conselho Monetário Nacional,a extinção do instrumento. | AJ97: Totalmente | AK97: Permanente | AL97: Contratual | AM97: Não | AN97: Não | AO97: Não se aplica
B98: 89 | C98: BRB - BANCO DE BRASILIA S/A | D98: LFSC21000B5 | E98: Lei 12.249/2010 - Resolução 4.955/2021 do CMN | F98: Capital Complementar | G98: Capital Complementar | H98: Conglomerado | I98: Letra financeira | J98: 2212891.93 | K98: 1500000 | L98: passivo - custo amortizado | M98: 2021-02-02 | N98: Perpétuo | O98: 2050-02-02 | P98: Sim | Q98: Anual, a partir de 03/02/2026 | R98: (1) Não há vinculação regulatória ou fiscal para resgate ou recompra | S98: (2) Em parcela única na data da recompra | T98: Não se aplica | U98: Fixo | V98: IPCA + 7,05% | W98: Não | X98: Mandatório | Y98: Não | Z98: Cumulativo | AA98: Não conversível | AB98: Não se aplica | AC98: Não se aplica | AD98: Não se aplica | AE98: Não se aplica | AF98: Não se aplica | AG98: Não se aplica | AH98: Sim | AI98: Os títulos serão extintos, permanente e em valor no mínimo correspondente ao saldo computado no Nível I do Patrimônio de Referência do BRB – Banco de Brasília S.A nas seguintes condições: 1. seja verificada a divulgação pelo BRB – Banco de Brasília S.A. de que seu Capital Principal está em patamar inferior a 5,125% (cinco inteiros e cento e vinte e cinco milésimos por cento) do montante RWA, estabelecida pela Resolução 4.193, de 2013; ou 2. assinatura de compromisso de aporte para a instituição emitente, caso se configure a exceção prevista no caput do art. 28 da Lei Complementar no 101, de 4 de maio de 2000; ou 3. seja decretado pelo BACEN o regime de administração especial temporária ou intervenção do BRB – Banco de Brasília S.A.; ou 4. seja determinado pelo BACEN, segundo critérios estabelecidos em regulamento específico editado pelo Conselho Monetário Nacional,a extinção do instrumento. | AJ98: Totalmente | AK98: Permanente | AL98: Contratual | AM98: Não | AN98: Não | AO98: Não se aplica
B99: 90 | C99: BRB - BANCO DE BRASILIA S/A | D99: LFSC21001KV | E99: Lei 12.249/2010 - Resolução 4.955/2021 do CMN | F99: Capital Complementar | G99: Capital Complementar | H99: Conglomerado | I99: Letra financeira | J99: 2850682.21 | K99: 2050000 | L99: passivo - custo amortizado | M99: 2021-07-28 | N99: Perpétuo | O99: 2051-07-28 | P99: Sim | Q99: Anual, a partir de 29/07/2026 | R99: (1) Não há vinculação regulatória ou fiscal para resgate ou recompra | S99: (2) Em parcela única na data da recompra | T99: Não se aplica | U99: Fixo | V99: IPCA + 7,5% | W99: Não | X99: Mandatório | Y99: Não | Z99: Cumulativo | AA99: Não conversível | AB99: Não se aplica | AC99: Não se aplica | AD99: Não se aplica | AE99: Não se aplica | AF99: Não se aplica | AG99: Não se aplica | AH99: Sim | AI99: Os títulos serão extintos, permanente e em valor no mínimo correspondente ao saldo computado no Nível I do Patrimônio de Referência do BRB – Banco de Brasília S.A nas seguintes condições: 1. seja verificada a divulgação pelo BRB – Banco de Brasília S.A. de que seu Capital Principal está em patamar inferior a 5,125% (cinco inteiros e cento e vinte e cinco milésimos por cento) do montante RWA, estabelecida pela Resolução 4.193, de 2013; ou 2. assinatura de compromisso de aporte para a instituição emitente, caso se configure a exceção prevista no caput do art. 28 da Lei Complementar no 101, de 4 de maio de 2000; ou 3. seja decretado pelo BACEN o regime de administração especial temporária ou intervenção do BRB – Banco de Brasília S.A.; ou 4. seja determinado pelo BACEN, segundo critérios estabelecidos em regulamento específico editado pelo Conselho Monetário Nacional,a extinção do instrumento. | AJ99: Totalmente | AK99: Permanente | AL99: Contratual | AM99: Não | AN99: Não | AO99: Não se aplica
B100: 91 | C100: BRB - BANCO DE BRASILIA S/A | D100: LFSC20001UP | E100: Lei 12.249/2010 - Resolução 4.955/2021 do CMN | F100: Capital Complementar | G100: Capital Complementar | H100: Conglomerado | I100: Letra financeira | J100: 4029105.14 | K100: 2563000 | L100: passivo - custo amortizado | M100: 2020-09-21 | N100: Perpétuo | O100: 2050-09-21 | P100: Sim | Q100: Anual, a partir de 22/09/2025 | R100: (1) Não há vinculação regulatória ou fiscal para resgate ou recompra | S100: (2) Em parcela única na data da recompra | T100: Não se aplica | U100: Fixo | V100: IPCA + 7,05% | W100: Não | X100: Mandatório | Y100: Não | Z100: Cumulativo | AA100: Não conversível | AB100: Não se aplica | AC100: Não se aplica | AD100: Não se aplica | AE100: Não se aplica | AF100: Não se aplica | AG100: Não se aplica | AH100: Sim | AI100: Os títulos serão extintos, permanente e em valor no mínimo correspondente ao saldo computado no Nível I do Patrimônio de Referência do BRB – Banco de Brasília S.A nas seguintes condições: 1. seja verificada a divulgação pelo BRB – Banco de Brasília S.A. de que seu Capital Principal está em patamar inferior a 5,125% (cinco inteiros e cento e vinte e cinco milésimos por cento) do montante RWA, estabelecida pela Resolução 4.193, de 2013; ou 2. assinatura de compromisso de aporte para a instituição emitente, caso se configure a exceção prevista no caput do art. 28 da Lei Complementar no 101, de 4 de maio de 2000; ou 3. seja decretado pelo BACEN o regime de administração especial temporária ou intervenção do BRB – Banco de Brasília S.A.; ou 4. seja determinado pelo BACEN, segundo critérios estabelecidos em regulamento específico editado pelo Conselho Monetário Nacional,a extinção do instrumento. | AJ100: Totalmente | AK100: Permanente | AL100: Contratual | AM100: Não | AN100: Não | AO100: Não se aplica
B101: 92 | C101: BRB - BANCO DE BRASILIA S/A | D101: LFSC200020B | E101: Lei 12.249/2010 - Resolução 4.955/2021 do CMN | F101: Capital Complementar | G101: Capital Complementar | H101: Conglomerado | I101: Letra financeira | J101: 2138009.58 | K101: 1372000 | L101: passivo - custo amortizado | M101: 2020-10-19 | N101: Perpétuo | O101: 2050-10-10 | P101: Sim | Q101: Anual, a partir de 20/10/2025 | R101: (1) Não há vinculação regulatória ou fiscal para resgate ou recompra | S101: (2) Em parcela única na data da recompra | T101: Não se aplica | U101: Fixo | V101: IPCA + 7,05% | W101: Não | X101: Mandatório | Y101: Não | Z101: Cumulativo | AA101: Não conversível | AB101: Não se aplica | AC101: Não se aplica | AD101: Não se aplica | AE101: Não se aplica | AF101: Não se aplica | AG101: Não se aplica | AH101: Sim | AI101: Os títulos serão extintos, permanente e em valor no mínimo correspondente ao saldo computado no Nível I do Patrimônio de Referência do BRB – Banco de Brasília S.A nas seguintes condições: 1. seja verificada a divulgação pelo BRB – Banco de Brasília S.A. de que seu Capital Principal está em patamar inferior a 5,125% (cinco inteiros e cento e vinte e cinco milésimos por cento) do montante RWA, estabelecida pela Resolução 4.193, de 2013; ou 2. assinatura de compromisso de aporte para a instituição emitente, caso se configure a exceção prevista no caput do art. 28 da Lei Complementar no 101, de 4 de maio de 2000; ou 3. seja decretado pelo BACEN o regime de administração especial temporária ou intervenção do BRB – Banco de Brasília S.A.; ou 4. seja determinado pelo BACEN, segundo critérios estabelecidos em regulamento específico editado pelo Conselho Monetário Nacional,a extinção do instrumento. | AJ101: Totalmente | AK101: Permanente | AL101: Contratual | AM101: Não | AN101: Não | AO101: Não se aplica
B102: 93 | C102: BRB - BANCO DE BRASILIA S/A | D102: LFSC20002H2 | E102: Lei 12.249/2010 - Resolução 4.955/2021 do CMN | F102: Capital Complementar | G102: Capital Complementar | H102: Conglomerado | I102: Letra financeira | J102: 5606946.79 | K102: 3680000 | L102: passivo - custo amortizado | M102: 2020-12-07 | N102: Perpétuo | O102: 2050-12-07 | P102: Sim | Q102: Anual, a partir de 08/12/2025 | R102: (1) Não há vinculação regulatória ou fiscal para resgate ou recompra | S102: (2) Em parcela única na data da recompra | T102: Não se aplica | U102: Fixo | V102: IPCA + 7,05% | W102: Não | X102: Mandatório | Y102: Não | Z102: Cumulativo | AA102: Não conversível | AB102: Não se aplica | AC102: Não se aplica | AD102: Não se aplica | AE102: Não se aplica | AF102: Não se aplica | AG102: Não se aplica | AH102: Sim | AI102: Os títulos serão extintos, permanente e em valor no mínimo correspondente ao saldo computado no Nível I do Patrimônio de Referência do BRB – Banco de Brasília S.A nas seguintes condições: 1. seja verificada a divulgação pelo BRB – Banco de Brasília S.A. de que seu Capital Principal está em patamar inferior a 5,125% (cinco inteiros e cento e vinte e cinco milésimos por cento) do montante RWA, estabelecida pela Resolução 4.193, de 2013; ou 2. assinatura de compromisso de aporte para a instituição emitente, caso se configure a exceção prevista no caput do art. 28 da Lei Complementar no 101, de 4 de maio de 2000; ou 3. seja decretado pelo BACEN o regime de administração especial temporária ou intervenção do BRB – Banco de Brasília S.A.; ou 4. seja determinado pelo BACEN, segundo critérios estabelecidos em regulamento específico editado pelo Conselho Monetário Nacional,a extinção do instrumento. | AJ102: Totalmente | AK102: Permanente | AL102: Contratual | AM102: Não | AN102: Não | AO102: Não se aplica
B103: 94 | C103: BRB - BANCO DE BRASILIA S/A | D103: LFSC20002MQ | E103: Lei 12.249/2010 - Resolução 4.955/2021 do CMN | F103: Capital Complementar | G103: Capital Complementar | H103: Conglomerado | I103: Letra financeira | J103: 11371259.08 | K103: 7535000 | L103: passivo - custo amortizado | M103: 2020-12-21 | N103: Perpétuo | O103: 2050-12-21 | P103: Sim | Q103: Anual, a partir de 22/12/2025 | R103: (1) Não há vinculação regulatória ou fiscal para resgate ou recompra | S103: (2) Em parcela única na data da recompra | T103: Não se aplica | U103: Fixo | V103: IPCA + 7,05% | W103: Não | X103: Mandatório | Y103: Não | Z103: Cumulativo | AA103: Não conversível | AB103: Não se aplica | AC103: Não se aplica | AD103: Não se aplica | AE103: Não se aplica | AF103: Não se aplica | AG103: Não se aplica | AH103: Sim | AI103: Os títulos serão extintos, permanente e em valor no mínimo correspondente ao saldo computado no Nível I do Patrimônio de Referência do BRB – Banco de Brasília S.A nas seguintes condições: 1. seja verificada a divulgação pelo BRB – Banco de Brasília S.A. de que seu Capital Principal está em patamar inferior a 5,125% (cinco inteiros e cento e vinte e cinco milésimos por cento) do montante RWA, estabelecida pela Resolução 4.193, de 2013; ou 2. assinatura de compromisso de aporte para a instituição emitente, caso se configure a exceção prevista no caput do art. 28 da Lei Complementar no 101, de 4 de maio de 2000; ou 3. seja decretado pelo BACEN o regime de administração especial temporária ou intervenção do BRB – Banco de Brasília S.A.; ou 4. seja determinado pelo BACEN, segundo critérios estabelecidos em regulamento específico editado pelo Conselho Monetário Nacional,a extinção do instrumento. | AJ103: Totalmente | AK103: Permanente | AL103: Contratual | AM103: Não | AN103: Não | AO103: Não se aplica
B104: 95 | C104: BRB - BANCO DE BRASILIA S/A | D104: LFSC2000209 | E104: Lei 12.249/2010 - Resolução 4.955/2021 do CMN | F104: Capital Complementar | G104: Capital Complementar | H104: Conglomerado | I104: Letra financeira | J104: 3822230.17 | K104: 2445000 | L104: passivo - custo amortizado | M104: 2020-10-08 | N104: Perpétuo | O104: 2050-10-10 | P104: Sim | Q104: Anual, a partir de 09/10/2025 | R104: (1) Não há vinculação regulatória ou fiscal para resgate ou recompra | S104: (2) Em parcela única na data da recompra | T104: Não se aplica | U104: Fixo | V104: IPCA + 7,05% | W104: Não | X104: Mandatório | Y104: Não | Z104: Cumulativo | AA104: Não conversível | AB104: Não se aplica | AC104: Não se aplica | AD104: Não se aplica | AE104: Não se aplica | AF104: Não se aplica | AG104: Não se aplica | AH104: Sim | AI104: Os títulos serão extintos, permanente e em valor no mínimo correspondente ao saldo computado no Nível I do Patrimônio de Referência do BRB – Banco de Brasília S.A nas seguintes condições: 1. seja verificada a divulgação pelo BRB – Banco de Brasília S.A. de que seu Capital Principal está em patamar inferior a 5,125% (cinco inteiros e cento e vinte e cinco milésimos por cento) do montante RWA, estabelecida pela Resolução 4.193, de 2013; ou 2. assinatura de compromisso de aporte para a instituição emitente, caso se configure a exceção prevista no caput do art. 28 da Lei Complementar no 101, de 4 de maio de 2000; ou 3. seja decretado pelo BACEN o regime de administração especial temporária ou intervenção do BRB – Banco de Brasília S.A.; ou 4. seja determinado pelo BACEN, segundo critérios estabelecidos em regulamento específico editado pelo Conselho Monetário Nacional,a extinção do instrumento. | AJ104: Totalmente | AK104: Permanente | AL104: Contratual | AM104: Não | AN104: Não | AO104: Não se aplica
B105: 96 | C105: BRB - BANCO DE BRASILIA S/A | D105: LFSC20002MN | E105: Lei 12.249/2010 - Resolução 4.955/2021 do CMN | F105: Capital Complementar | G105: Capital Complementar | H105: Conglomerado | I105: Letra financeira | J105: 4034701.13 | K105: 2650000 | L105: passivo - custo amortizado | M105: 2020-12-09 | N105: Perpétuo | O105: 2050-12-09 | P105: Sim | Q105: Anual, a partir de 10/12/2025 | R105: (1) Não há vinculação regulatória ou fiscal para resgate ou recompra | S105: (2) Em parcela única na data da recompra | T105: Não se aplica | U105: Fixo | V105: IPCA + 7,05% | W105: Não | X105: Mandatório | Y105: Não | Z105: Cumulativo | AA105: Não conversível | AB105: Não se aplica | AC105: Não se aplica | AD105: Não se aplica | AE105: Não se aplica | AF105: Não se aplica | AG105: Não se aplica | AH105: Sim | AI105: Os títulos serão extintos, permanente e em valor no mínimo correspondente ao saldo computado no Nível I do Patrimônio de Referência do BRB – Banco de Brasília S.A nas seguintes condições: 1. seja verificada a divulgação pelo BRB – Banco de Brasília S.A. de que seu Capital Principal está em patamar inferior a 5,125% (cinco inteiros e cento e vinte e cinco milésimos por cento) do montante RWA, estabelecida pela Resolução 4.193, de 2013; ou 2. assinatura de compromisso de aporte para a instituição emitente, caso se configure a exceção prevista no caput do art. 28 da Lei Complementar no 101, de 4 de maio de 2000; ou 3. seja decretado pelo BACEN o regime de administração especial temporária ou intervenção do BRB – Banco de Brasília S.A.; ou 4. seja determinado pelo BACEN, segundo critérios estabelecidos em regulamento específico editado pelo Conselho Monetário Nacional,a extinção do instrumento. | AJ105: Totalmente | AK105: Permanente | AL105: Contratual | AM105: Não | AN105: Não | AO105: Não se aplica
B106: 97 | C106: BRB - BANCO DE BRASILIA S/A | D106: LFSC20002MM | E106: Lei 12.249/2010 - Resolução 4.955/2021 do CMN | F106: Capital Complementar | G106: Capital Complementar | H106: Conglomerado | I106: Letra financeira | J106: 2299018.37 | K106: 1510000 | L106: passivo - custo amortizado | M106: 2020-12-09 | N106: Perpétuo | O106: 2050-12-09 | P106: Sim | Q106: Anual, a partir de 10/12/2025 | R106: (1) Não há vinculação regulatória ou fiscal para resgate ou recompra | S106: (2) Em parcela única na data da recompra | T106: Não se aplica | U106: Fixo | V106: IPCA + 7,05% | W106: Não | X106: Mandatório | Y106: Não | Z106: Cumulativo | AA106: Não conversível | AB106: Não se aplica | AC106: Não se aplica | AD106: Não se aplica | AE106: Não se aplica | AF106: Não se aplica | AG106: Não se aplica | AH106: Sim | AI106: Os títulos serão extintos, permanente e em valor no mínimo correspondente ao saldo computado no Nível I do Patrimônio de Referência do BRB – Banco de Brasília S.A nas seguintes condições: 1. seja verificada a divulgação pelo BRB – Banco de Brasília S.A. de que seu Capital Principal está em patamar inferior a 5,125% (cinco inteiros e cento e vinte e cinco milésimos por cento) do montante RWA, estabelecida pela Resolução 4.193, de 2013; ou 2. assinatura de compromisso de aporte para a instituição emitente, caso se configure a exceção prevista no caput do art. 28 da Lei Complementar no 101, de 4 de maio de 2000; ou 3. seja decretado pelo BACEN o regime de administração especial temporária ou intervenção do BRB – Banco de Brasília S.A.; ou 4. seja determinado pelo BACEN, segundo critérios estabelecidos em regulamento específico editado pelo Conselho Monetário Nacional,a extinção do instrumento. | AJ106: Totalmente | AK106: Permanente | AL106: Contratual | AM106: Não | AN106: Não | AO106: Não se aplica
B107: 98 | C107: BRB - BANCO DE BRASILIA S/A | D107: LFSC21001KL | E107: Lei 12.249/2010 - Resolução 4.955/2021 do CMN | F107: Capital Complementar | G107: Capital Complementar | H107: Conglomerado | I107: Letra financeira | J107: 1396568.51 | K107: 1000000 | L107: passivo - custo amortizado | M107: 2021-07-16 | N107: Perpétuo | O107: 2031-07-17 | P107: Sim | Q107: Anual, a partir de 17/07/2026 | R107: (1) Não há vinculação regulatória ou fiscal para resgate ou recompra | S107: (2) Em parcela única na data da recompra | T107: Não se aplica | U107: Fixo | V107: IPCA + 7,5% | W107: Não | X107: Mandatório | Y107: Não | Z107: Cumulativo | AA107: Não conversível | AB107: Não se aplica | AC107: Não se aplica | AD107: Não se aplica | AE107: Não se aplica | AF107: Não se aplica | AG107: Não se aplica | AH107: Sim | AI107: Os títulos serão extintos, permanente e em valor no mínimo correspondente ao saldo computado no Nível I do Patrimônio de Referência do BRB – Banco de Brasília S.A nas seguintes condições: 1. seja verificada a divulgação pelo BRB – Banco de Brasília S.A. de que seu Capital Principal está em patamar inferior a 5,125% (cinco inteiros e cento e vinte e cinco milésimos por cento) do montante RWA, estabelecida pela Resolução 4.193, de 2013; ou 2. assinatura de compromisso de aporte para a instituição emitente, caso se configure a exceção prevista no caput do art. 28 da Lei Complementar no 101, de 4 de maio de 2000; ou 3. seja decretado pelo BACEN o regime de administração especial temporária ou intervenção do BRB – Banco de Brasília S.A.; ou 4. seja determinado pelo BACEN, segundo critérios estabelecidos em regulamento específico editado pelo Conselho Monetário Nacional,a extinção do instrumento. | AJ107: Totalmente | AK107: Permanente | AL107: Contratual | AM107: Não | AN107: Não | AO107: Não se aplica
B108: 99 | C108: BRB - BANCO DE BRASILIA S/A | D108: LFSC20001UQ | E108: Lei 12.249/2010 - Resolução 4.955/2021 do CMN | F108: Capital Complementar | G108: Capital Complementar | H108: Conglomerado | I108: Letra financeira | J108: 3153605.08 | K108: 2007000 | L108: passivo - custo amortizado | M108: 2020-09-22 | N108: Perpétuo | O108: 2050-09-22 | P108: Sim | Q108: Anual, a partir de 23/09/2025 | R108: (1) Não há vinculação regulatória ou fiscal para resgate ou recompra | S108: (2) Em parcela única na data da recompra | T108: Não se aplica | U108: Fixo | V108: IPCA + 7,05% | W108: Não | X108: Mandatório | Y108: Não | Z108: Cumulativo | AA108: Não conversível | AB108: Não se aplica | AC108: Não se aplica | AD108: Não se aplica | AE108: Não se aplica | AF108: Não se aplica | AG108: Não se aplica | AH108: Sim | AI108: Os títulos serão extintos, permanente e em valor no mínimo correspondente ao saldo computado no Nível I do Patrimônio de Referência do BRB – Banco de Brasília S.A nas seguintes condições: 1. seja verificada a divulgação pelo BRB – Banco de Brasília S.A. de que seu Capital Principal está em patamar inferior a 5,125% (cinco inteiros e cento e vinte e cinco milésimos por cento) do montante RWA, estabelecida pela Resolução 4.193, de 2013; ou 2. assinatura de compromisso de aporte para a instituição emitente, caso se configure a exceção prevista no caput do art. 28 da Lei Complementar no 101, de 4 de maio de 2000; ou 3. seja decretado pelo BACEN o regime de administração especial temporária ou intervenção do BRB – Banco de Brasília S.A.; ou 4. seja determinado pelo BACEN, segundo critérios estabelecidos em regulamento específico editado pelo Conselho Monetário Nacional,a extinção do instrumento. | AJ108: Totalmente | AK108: Permanente | AL108: Contratual | AM108: Não | AN108: Não | AO108: Não se aplica
B109: 100 | C109: BRB - BANCO DE BRASILIA S/A | D109: LFSC20001UR | E109: Lei 12.249/2010 - Resolução 4.955/2021 do CMN | F109: Capital Complementar | G109: Capital Complementar | H109: Conglomerado | I109: Letra financeira | J109: 1571302.98 | K109: 1000000 | L109: passivo - custo amortizado | M109: 2020-09-22 | N109: Perpétuo | O109: 2050-09-22 | P109: Sim | Q109: Anual, a partir de 23/09/2025 | R109: (1) Não há vinculação regulatória ou fiscal para resgate ou recompra | S109: (2) Em parcela única na data da recompra | T109: Não se aplica | U109: Fixo | V109: IPCA + 7,05% | W109: Não | X109: Mandatório | Y109: Não | Z109: Cumulativo | AA109: Não conversível | AB109: Não se aplica | AC109: Não se aplica | AD109: Não se aplica | AE109: Não se aplica | AF109: Não se aplica | AG109: Não se aplica | AH109: Sim | AI109: Os títulos serão extintos, permanente e em valor no mínimo correspondente ao saldo computado no Nível I do Patrimônio de Referência do BRB – Banco de Brasília S.A nas seguintes condições: 1. seja verificada a divulgação pelo BRB – Banco de Brasília S.A. de que seu Capital Principal está em patamar inferior a 5,125% (cinco inteiros e cento e vinte e cinco milésimos por cento) do montante RWA, estabelecida pela Resolução 4.193, de 2013; ou 2. assinatura de compromisso de aporte para a instituição emitente, caso se configure a exceção prevista no caput do art. 28 da Lei Complementar no 101, de 4 de maio de 2000; ou 3. seja decretado pelo BACEN o regime de administração especial temporária ou intervenção do BRB – Banco de Brasília S.A.; ou 4. seja determinado pelo BACEN, segundo critérios estabelecidos em regulamento específico editado pelo Conselho Monetário Nacional,a extinção do instrumento. | AJ109: Totalmente | AK109: Permanente | AL109: Contratual | AM109: Não | AN109: Não | AO109: Não se aplica | AQ109: NUM | AR109: NUM | AS109: NUM | AT109: NUM | AU109: NUM | AV109: NUM | AW109: NUM | AX109: NUM | AY109: NUM | AZ109: NUM | BA109: NUM | BB109: NUM | BC109: NUM | BD109: NUM | BE109: NUM | BF109: NUM | BG109: NUM | BH109: NUM | BI109: NUM | BJ109: NUM | BK109: NUM | BL109: NUM | BM109: NUM | BN109: TXT | BO109: TXT | BP109: TXT | BQ109: TXT | BR109: TXT | BS109: TXT | BT109: TXT | BU109: TXT | BV109: TXT | BW109: TXT | BX109: TXT | BY109: TXT | BZ109: TXT | CA109: TXT | CB109: TXT | CC109: TXT | CD109: TXT | CE109: TXT | CF109: TXT | CG109: TXT | CH109: TXT | CI109: TXT | CJ109: TXT | CK109: TXT | CL109: TXT | CM109: TXT | CN109: TXT | CO109: TXT | CP109: TXT | CQ109: TXT | CR109: TXT
B110: 101 | C110: BRB - BANCO DE BRASILIA S/A | D110: LFSC20002C9 | E110: Lei 12.249/2010 - Resolução 4.955/2021 do CMN | F110: Capital Complementar | G110: Capital Complementar | H110: Conglomerado | I110: Letra financeira | J110: 1797918.52 | K110: 1172000 | L110: passivo - custo amortizado | M110: 2020-11-24 | N110: Perpétuo | O110: 2050-10-10 | P110: Sim | Q110: Anual, a partir de 25/11/2025 | R110: (1) Não há vinculação regulatória ou fiscal para resgate ou recompra | S110: (2) Em parcela única na data da recompra | T110: Não se aplica | U110: Fixo | V110: IPCA + 7,05% | W110: Não | X110: Mandatório | Y110: Não | Z110: Cumulativo | AA110: Não conversível | AB110: Não se aplica | AC110: Não se aplica | AD110: Não se aplica | AE110: Não se aplica | AF110: Não se aplica | AG110: Não se aplica | AH110: Sim | AI110: Os títulos serão extintos, permanente e em valor no mínimo correspondente ao saldo computado no Nível I do Patrimônio de Referência do BRB – Banco de Brasília S.A nas seguintes condições: 1. seja verificada a divulgação pelo BRB – Banco de Brasília S.A. de que seu Capital Principal está em patamar inferior a 5,125% (cinco inteiros e cento e vinte e cinco milésimos por cento) do montante RWA, estabelecida pela Resolução 4.193, de 2013; ou 2. assinatura de compromisso de aporte para a instituição emitente, caso se configure a exceção prevista no caput do art. 28 da Lei Complementar no 101, de 4 de maio de 2000; ou 3. seja decretado pelo BACEN o regime de administração especial temporária ou intervenção do BRB – Banco de Brasília S.A.; ou 4. seja determinado pelo BACEN, segundo critérios estabelecidos em regulamento específico editado pelo Conselho Monetário Nacional,a extinção do instrumento. | AJ110: Totalmente | AK110: Permanente | AL110: Contratual | AM110: Não | AN110: Não | AO110: Não se aplica
B111: 102 | C111: BRB - BANCO DE BRASILIA S/A | D111: LFSC20002C8 | E111: Lei 12.249/2010 - Resolução 4.955/2021 do CMN | F111: Capital Complementar | G111: Capital Complementar | H111: Conglomerado | I111: Letra financeira | J111: 5676022.67 | K111: 3700000 | L111: passivo - custo amortizado | M111: 2020-11-24 | N111: Perpétuo | O111: 2050-10-10 | P111: Sim | Q111: Anual, a partir de 25/11/2025 | R111: (1) Não há vinculação regulatória ou fiscal para resgate ou recompra | S111: (2) Em parcela única na data da recompra | T111: Não se aplica | U111: Fixo | V111: IPCA + 7,05% | W111: Não | X111: Mandatório | Y111: Não | Z111: Cumulativo | AA111: Não conversível | AB111: Não se aplica | AC111: Não se aplica | AD111: Não se aplica | AE111: Não se aplica | AF111: Não se aplica | AG111: Não se aplica | AH111: Sim | AI111: Os títulos serão extintos, permanente e em valor no mínimo correspondente ao saldo computado no Nível I do Patrimônio de Referência do BRB – Banco de Brasília S.A nas seguintes condições: 1. seja verificada a divulgação pelo BRB – Banco de Brasília S.A. de que seu Capital Principal está em patamar inferior a 5,125% (cinco inteiros e cento e vinte e cinco milésimos por cento) do montante RWA, estabelecida pela Resolução 4.193, de 2013; ou 2. assinatura de compromisso de aporte para a instituição emitente, caso se configure a exceção prevista no caput do art. 28 da Lei Complementar no 101, de 4 de maio de 2000; ou 3. seja decretado pelo BACEN o regime de administração especial temporária ou intervenção do BRB – Banco de Brasília S.A.; ou 4. seja determinado pelo BACEN, segundo critérios estabelecidos em regulamento específico editado pelo Conselho Monetário Nacional,a extinção do instrumento. | AJ111: Totalmente | AK111: Permanente | AL111: Contratual | AM111: Não | AN111: Não | AO111: Não se aplica
B112: 103 | C112: BRB - BANCO DE BRASILIA S/A | D112: LFSC200025Z | E112: Lei 12.249/2010 - Resolução 4.955/2021 do CMN | F112: Capital Complementar | G112: Capital Complementar | H112: Conglomerado | I112: Letra financeira | J112: 15329153.07 | K112: 9910000 | L112: passivo - custo amortizado | M112: 2020-11-05 | N112: Perpétuo | O112: 2050-11-07 | P112: Sim | Q112: Anual, a partir de 06/11/2025 | R112: (1) Não há vinculação regulatória ou fiscal para resgate ou recompra | S112: (2) Em parcela única na data da recompra | T112: Não se aplica | U112: Fixo | V112: IPCA + 7,05% | W112: Não | X112: Mandatório | Y112: Não | Z112: Cumulativo | AA112: Não conversível | AB112: Não se aplica | AC112: Não se aplica | AD112: Não se aplica | AE112: Não se aplica | AF112: Não se aplica | AG112: Não se aplica | AH112: Sim | AI112: Os títulos serão extintos, permanente e em valor no mínimo correspondente ao saldo computado no Nível I do Patrimônio de Referência do BRB – Banco de Brasília S.A nas seguintes condições: 1. seja verificada a divulgação pelo BRB – Banco de Brasília S.A. de que seu Capital Principal está em patamar inferior a 5,125% (cinco inteiros e cento e vinte e cinco milésimos por cento) do montante RWA, estabelecida pela Resolução 4.193, de 2013; ou 2. assinatura de compromisso de aporte para a instituição emitente, caso se configure a exceção prevista no caput do art. 28 da Lei Complementar no 101, de 4 de maio de 2000; ou 3. seja decretado pelo BACEN o regime de administração especial temporária ou intervenção do BRB – Banco de Brasília S.A.; ou 4. seja determinado pelo BACEN, segundo critérios estabelecidos em regulamento específico editado pelo Conselho Monetário Nacional,a extinção do instrumento. | AJ112: Totalmente | AK112: Permanente | AL112: Contratual | AM112: Não | AN112: Não | AO112: Não se aplica
B113: 104 | C113: BRB - BANCO DE BRASILIA S/A | D113: LFSC200025Y | E113: Lei 12.249/2010 - Resolução 4.955/2021 do CMN | F113: Capital Complementar | G113: Capital Complementar | H113: Conglomerado | I113: Letra financeira | J113: 2861648.14 | K113: 1850000 | L113: passivo - custo amortizado | M113: 2020-11-05 | N113: Perpétuo | O113: 2050-11-07 | P113: Sim | Q113: Anual, a partir de 06/11/2025 | R113: (1) Não há vinculação regulatória ou fiscal para resgate ou recompra | S113: (2) Em parcela única na data da recompra | T113: Não se aplica | U113: Fixo | V113: IPCA + 7,05% | W113: Não | X113: Mandatório | Y113: Não | Z113: Cumulativo | AA113: Não conversível | AB113: Não se aplica | AC113: Não se aplica | AD113: Não se aplica | AE113: Não se aplica | AF113: Não se aplica | AG113: Não se aplica | AH113: Sim | AI113: Os títulos serão extintos, permanente e em valor no mínimo correspondente ao saldo computado no Nível I do Patrimônio de Referência do BRB – Banco de Brasília S.A nas seguintes condições: 1. seja verificada a divulgação pelo BRB – Banco de Brasília S.A. de que seu Capital Principal está em patamar inferior a 5,125% (cinco inteiros e cento e vinte e cinco milésimos por cento) do montante RWA, estabelecida pela Resolução 4.193, de 2013; ou 2. assinatura de compromisso de aporte para a instituição emitente, caso se configure a exceção prevista no caput do art. 28 da Lei Complementar no 101, de 4 de maio de 2000; ou 3. seja decretado pelo BACEN o regime de administração especial temporária ou intervenção do BRB – Banco de Brasília S.A.; ou 4. seja determinado pelo BACEN, segundo critérios estabelecidos em regulamento específico editado pelo Conselho Monetário Nacional,a extinção do instrumento. | AJ113: Totalmente | AK113: Permanente | AL113: Contratual | AM113: Não | AN113: Não | AO113: Não se aplica
B114: 105 | C114: BRB - BANCO DE BRASILIA S/A | D114: LFSC21001EF | E114: Lei 12.249/2010 - Resolução 4.955/2021 do CMN | F114: Capital Complementar | G114: Capital Complementar | H114: Conglomerado | I114: Letra financeira | J114: 2117240.26 | K114: 1510000 | L114: passivo - custo amortizado | M114: 2021-07-08 | N114: Perpétuo | O114: 2031-07-08 | P114: Sim | Q114: Anual, a partir de 09/07/2026 | R114: (1) Não há vinculação regulatória ou fiscal para resgate ou recompra | S114: (2) Em parcela única na data da recompra | T114: Não se aplica | U114: Fixo | V114: IPCA + 7,5% | W114: Não | X114: Mandatório | Y114: Não | Z114: Cumulativo | AA114: Não conversível | AB114: Não se aplica | AC114: Não se aplica | AD114: Não se aplica | AE114: Não se aplica | AF114: Não se aplica | AG114: Não se aplica | AH114: Sim | AI114: Os títulos serão extintos, permanente e em valor no mínimo correspondente ao saldo computado no Nível I do Patrimônio de Referência do BRB – Banco de Brasília S.A nas seguintes condições: 1. seja verificada a divulgação pelo BRB – Banco de Brasília S.A. de que seu Capital Principal está em patamar inferior a 5,125% (cinco inteiros e cento e vinte e cinco milésimos por cento) do montante RWA, estabelecida pela Resolução 4.193, de 2013; ou 2. assinatura de compromisso de aporte para a instituição emitente, caso se configure a exceção prevista no caput do art. 28 da Lei Complementar no 101, de 4 de maio de 2000; ou 3. seja decretado pelo BACEN o regime de administração especial temporária ou intervenção do BRB – Banco de Brasília S.A.; ou 4. seja determinado pelo BACEN, segundo critérios estabelecidos em regulamento específico editado pelo Conselho Monetário Nacional,a extinção do instrumento. | AJ114: Totalmente | AK114: Permanente | AL114: Contratual | AM114: Não | AN114: Não | AO114: Não se aplica
B115: 106 | C115: BRB - BANCO DE BRASILIA S/A | D115: LFSC21001EG | E115: Lei 12.249/2010 - Resolução 4.955/2021 do CMN | F115: Capital Complementar | G115: Capital Complementar | H115: Conglomerado | I115: Letra financeira | J115: 4210644.04 | K115: 3003000 | L115: passivo - custo amortizado | M115: 2021-07-08 | N115: Perpétuo | O115: 2031-07-08 | P115: Sim | Q115: Anual, a partir de 09/07/2026 | R115: (1) Não há vinculação regulatória ou fiscal para resgate ou recompra | S115: (2) Em parcela única na data da recompra | T115: Não se aplica | U115: Fixo | V115: IPCA + 7,5% | W115: Não | X115: Mandatório | Y115: Não | Z115: Cumulativo | AA115: Não conversível | AB115: Não se aplica | AC115: Não se aplica | AD115: Não se aplica | AE115: Não se aplica | AF115: Não se aplica | AG115: Não se aplica | AH115: Sim | AI115: Os títulos serão extintos, permanente e em valor no mínimo correspondente ao saldo computado no Nível I do Patrimônio de Referência do BRB – Banco de Brasília S.A nas seguintes condições: 1. seja verificada a divulgação pelo BRB – Banco de Brasília S.A. de que seu Capital Principal está em patamar inferior a 5,125% (cinco inteiros e cento e vinte e cinco milésimos por cento) do montante RWA, estabelecida pela Resolução 4.193, de 2013; ou 2. assinatura de compromisso de aporte para a instituição emitente, caso se configure a exceção prevista no caput do art. 28 da Lei Complementar no 101, de 4 de maio de 2000; ou 3. seja decretado pelo BACEN o regime de administração especial temporária ou intervenção do BRB – Banco de Brasília S.A.; ou 4. seja determinado pelo BACEN, segundo critérios estabelecidos em regulamento específico editado pelo Conselho Monetário Nacional,a extinção do instrumento. | AJ115: Totalmente | AK115: Permanente | AL115: Contratual | AM115: Não | AN115: Não | AO115: Não se aplica
B116: 107 | C116: BRB - BANCO DE BRASILIA S/A | D116: LFSC200020E | E116: Lei 12.249/2010 - Resolução 4.955/2021 do CMN | F116: Capital Complementar | G116: Capital Complementar | H116: Conglomerado | I116: Letra financeira | J116: 2892804.04 | K116: 1862000 | L116: passivo - custo amortizado | M116: 2020-10-26 | N116: Perpétuo | O116: 2050-10-10 | P116: Sim | Q116: Anual, a partir de 27/10/2025 | R116: (1) Não há vinculação regulatória ou fiscal para resgate ou recompra | S116: (2) Em parcela única na data da recompra | T116: Não se aplica | U116: Fixo | V116: IPCA + 7,05% | W116: Não | X116: Mandatório | Y116: Não | Z116: Cumulativo | AA116: Não conversível | AB116: Não se aplica | AC116: Não se aplica | AD116: Não se aplica | AE116: Não se aplica | AF116: Não se aplica | AG116: Não se aplica | AH116: Sim | AI116: Os títulos serão extintos, permanente e em valor no mínimo correspondente ao saldo computado no Nível I do Patrimônio de Referência do BRB – Banco de Brasília S.A nas seguintes condições: 1. seja verificada a divulgação pelo BRB – Banco de Brasília S.A. de que seu Capital Principal está em patamar inferior a 5,125% (cinco inteiros e cento e vinte e cinco milésimos por cento) do montante RWA, estabelecida pela Resolução 4.193, de 2013; ou 2. assinatura de compromisso de aporte para a instituição emitente, caso se configure a exceção prevista no caput do art. 28 da Lei Complementar no 101, de 4 de maio de 2000; ou 3. seja decretado pelo BACEN o regime de administração especial temporária ou intervenção do BRB – Banco de Brasília S.A.; ou 4. seja determinado pelo BACEN, segundo critérios estabelecidos em regulamento específico editado pelo Conselho Monetário Nacional,a extinção do instrumento. | AJ116: Totalmente | AK116: Permanente | AL116: Contratual | AM116: Não | AN116: Não | AO116: Não se aplica
B117: 108 | C117: BRB - BANCO DE BRASILIA S/A | D117: LFSC2100002 | E117: Lei 12.249/2010 - Resolução 4.955/2021 do CMN | F117: Capital Complementar | G117: Capital Complementar | H117: Conglomerado | I117: Letra financeira | J117: 2930135.33 | K117: 1950000 | L117: passivo - custo amortizado | M117: 2021-01-07 | N117: Perpétuo | O117: 2051-01-09 | P117: Sim | Q117: Anual, a partir de 08/01/2026 | R117: (1) Não há vinculação regulatória ou fiscal para resgate ou recompra | S117: (2) Em parcela única na data da recompra | T117: Não se aplica | U117: Fixo | V117: IPCA + 7,05% | W117: Não | X117: Mandatório | Y117: Não | Z117: Cumulativo | AA117: Não conversível | AB117: Não se aplica | AC117: Não se aplica | AD117: Não se aplica | AE117: Não se aplica | AF117: Não se aplica | AG117: Não se aplica | AH117: Sim | AI117: Os títulos serão extintos, permanente e em valor no mínimo correspondente ao saldo computado no Nível I do Patrimônio de Referência do BRB – Banco de Brasília S.A nas seguintes condições: 1. seja verificada a divulgação pelo BRB – Banco de Brasília S.A. de que seu Capital Principal está em patamar inferior a 5,125% (cinco inteiros e cento e vinte e cinco milésimos por cento) do montante RWA, estabelecida pela Resolução 4.193, de 2013; ou 2. assinatura de compromisso de aporte para a instituição emitente, caso se configure a exceção prevista no caput do art. 28 da Lei Complementar no 101, de 4 de maio de 2000; ou 3. seja decretado pelo BACEN o regime de administração especial temporária ou intervenção do BRB – Banco de Brasília S.A.; ou 4. seja determinado pelo BACEN, segundo critérios estabelecidos em regulamento específico editado pelo Conselho Monetário Nacional,a extinção do instrumento. | AJ117: Totalmente | AK117: Permanente | AL117: Contratual | AM117: Não | AN117: Não | AO117: Não se aplica
B118: 109 | C118: BRB - BANCO DE BRASILIA S/A | D118: LFSC20002MP | E118: Lei 12.249/2010 - Resolução 4.955/2021 do CMN | F118: Capital Complementar | G118: Capital Complementar | H118: Conglomerado | I118: Letra financeira | J118: 4169260.44 | K118: 2762700 | L118: passivo - custo amortizado | M118: 2020-12-21 | N118: Perpétuo | O118: 2050-12-21 | P118: Sim | Q118: Anual, a partir de 22/12/2025 | R118: (1) Não há vinculação regulatória ou fiscal para resgate ou recompra | S118: (2) Em parcela única na data da recompra | T118: Não se aplica | U118: Fixo | V118: IPCA + 7,05% | W118: Não | X118: Mandatório | Y118: Não | Z118: Cumulativo | AA118: Não conversível | AB118: Não se aplica | AC118: Não se aplica | AD118: Não se aplica | AE118: Não se aplica | AF118: Não se aplica | AG118: Não se aplica | AH118: Sim | AI118: Os títulos serão extintos, permanente e em valor no mínimo correspondente ao saldo computado no Nível I do Patrimônio de Referência do BRB – Banco de Brasília S.A nas seguintes condições: 1. seja verificada a divulgação pelo BRB – Banco de Brasília S.A. de que seu Capital Principal está em patamar inferior a 5,125% (cinco inteiros e cento e vinte e cinco milésimos por cento) do montante RWA, estabelecida pela Resolução 4.193, de 2013; ou 2. assinatura de compromisso de aporte para a instituição emitente, caso se configure a exceção prevista no caput do art. 28 da Lei Complementar no 101, de 4 de maio de 2000; ou 3. seja decretado pelo BACEN o regime de administração especial temporária ou intervenção do BRB – Banco de Brasília S.A.; ou 4. seja determinado pelo BACEN, segundo critérios estabelecidos em regulamento específico editado pelo Conselho Monetário Nacional,a extinção do instrumento. | AJ118: Totalmente | AK118: Permanente | AL118: Contratual | AM118: Não | AN118: Não | AO118: Não se aplica

Sheet csv_CCA
A1: DIV | B1: DIV | C1: DIV | D1: TXT | E1: DIV | F1: TXT | G1: DIV | H1: DIV | I1: TXT | J1: TXT | K1: NUM | L1: NUM | M1: TXT | N1: DIV | O1: TXT | P1: DIV | Q1: DIV | R1: TXT | S1: TXT | T1: TXT | U1: TXT | V1: TXT | W1: TXT | X1: TXT | Y1: TXT | Z1: TXT | AA1: TXT | AB1: TXT | AC1: TXT | AD1: TXT | AE1: TXT | AF1: TXT | AG1: TXT | AH1: TXT | AI1: TXT | AJ1: TXT | AK1: TXT | AL1: TXT | AM1: TXT | AN1: TXT | AO1: TXT | AP1: TXT | AQ1: TXT
A2: COD_TABELA | B2: COD_REFERENCIA | C2: DT_REFERENCIA_ARQ | D2: CAMPO_1 | E2: CAMPO_2 | F2: CAMPO_3 | G2: CAMPO_4 | H2: CAMPO_5 | I2: CAMPO_6 | J2: CAMPO_7 | K2: CAMPO_8 | L2: CAMPO_9 | M2: CAMPO_10 | N2: CAMPO_11 | O2: CAMPO_12 | P2: CAMPO_13 | Q2: CAMPO_14 | R2: CAMPO_15_1 | S2: CAMPO_15_2 | T2: CAMPO_15_3 | U2: CAMPO_16 | V2: CAMPO_17 | W2: CAMPO_18 | X2: CAMPO_19 | Y2: CAMPO_20 | Z2: CAMPO_21 | AA2: CAMPO_22 | AB2: CAMPO_23 | AC2: CAMPO_24 | AD2: CAMPO_25 | AE2: CAMPO_26 | AF2: CAMPO_27 | AG2: CAMPO_28 | AH2: CAMPO_29 | AI2: CAMPO_30 | AJ2: CAMPO_31 | AK2: CAMPO_32 | AL2: CAMPO_33 | AM2: CAMPO_34a | AN2: CAMPO_35 | AO2: CAMPO_36 | AP2: CAMPO_37 | AQ2: DS_COMENTÁRIO_TABELA
A3: CCA | B3: =YEAR(C3)&IF(MONTH(C3)>9,4,IF(MONTH(C3)>6,3,IF(MONTH(C3)>3,2,1)))&"T" -> 20234T | C3: =EOMONTH(CCA!$C$4,0) -> 2023-12-31 | D3: =CLEAN(CCA!C10) -> BRB - BANCO DE BRASILIA S/A | E3: =CLEAN(CCA!D10) -> LFSN2200A16 | F3: =CLEAN(CCA!E10) -> Lei 12.249/2010 - Resolução 4.955/2021 do CMN | G3: =CLEAN(CCA!F10) -> Nível II | H3: =CLEAN(CCA!G10) -> Nível II | I3: =CLEAN(CCA!H10) -> Conglomerado | J3: =CLEAN(CCA!I10) -> Letra financeira | K3: =CCA!J10 -> 25374129.54 | L3: =CCA!K10 -> 20100000 | M3: =CLEAN(CCA!L10) -> passivo - custo amortizado | N3: =CCA!M10 -> 2022-08-10 | O3: =CLEAN(CCA!N10) -> Com vencimento | P3: =CCA!O10 -> 2029-08-10 | Q3: =CLEAN(CCA!P10) -> Não | R3: =CLEAN(CCA!Q10) -> (1) Não há uma data específica, apenas quando for solicitado ao Bacen | S3: =CLEAN(CCA!R10) -> (2) Não há vinculação regulatória ou fiscal para resgate ou recompra | T3: =CLEAN(CCA!S10) -> (3) O valor pode ser parcial ou total, conforme autorização do Bacen | U3: =CLEAN(CCA!T10) -> Não se aplica | V3: =CLEAN(CCA!U10) -> Fixo | W3: =CLEAN(CCA!V10) -> 135% CDI | X3: =CLEAN(CCA!W10) -> Não | Y3: =CLEAN(CCA!X10) -> Mandatório | Z3: =CLEAN(CCA!Y10) -> Não | AA3: =CLEAN(CCA!Z10) -> Cumulativo | AB3: =CLEAN(CCA!AA10) -> Não conversível | AC3: =CLEAN(CCA!AB10) -> Não se aplica | AD3: =CLEAN(CCA!AC10) -> Não se aplica | AE3: =CLEAN(CCA!AD10) -> Não se aplica | AF3: =CLEAN(CCA!AE10) -> Não se aplica | AG3: =CLEAN(CCA!AF10) -> Não se aplica | AH3: =CLEAN(CCA!AG10) -> Não se aplica | AI3: =CLEAN(CCA!AH10) -> Sim | AJ3: =CLEAN(CCA!AI10) -> Os títulos serão extintos, permanente e em valor no mínimo correspondente ao saldo computado no Nível II do Patrimônio de Referência do BRB – Banco de Brasília S.A nas seguintes condições: 1. seja verificada a divulgação pelo BRB – Banco de Brasília S.A. de que seu Capital Principal está em patamar inferior a 4,5% (quatro inteiros e cinco décimos por cento) do montante RWA, estabelecida pela regulamentação vigente; ou2. seja verificada, em lei específica, a assinatura de compromisso de aporte para o BRB – Banco de Brasília S.A.;3. seja decretado pelo BACEN o regime de administração especial temporária ou intervenção do BRB – Banco de Brasília S.A.; ou4. seja determinado pelo BACEN, segundo critérios estabelecidos em regulamento específico editado pelo Conselho Monetário Nacional,a extinção do instrumento. | AK3: =CLEAN(CCA!AJ10) -> Totalmente | AL3: =CLEAN(CCA!AK10) -> Permanente | AM3: =CLEAN(CCA!AL10) -> Contratual | AN3: =CLEAN(CCA!AM10) -> Não | AO3: =CLEAN(CCA!AN10) -> Não | AP3: =CLEAN(CCA!AO10) -> Não se aplica | AQ3: sem comentários
A4: CCA | B4: =YEAR(C4)&IF(MONTH(C4)>9,4,IF(MONTH(C4)>6,3,IF(MONTH(C4)>3,2,1)))&"T" -> 20234T | C4: =EOMONTH(CCA!$C$4,0) -> 2023-12-31 | D4: =CLEAN(CCA!C11) -> BRB - BANCO DE BRASILIA S/A | E4: =CLEAN(CCA!D11) -> LFSN2200DFD | F4: =CLEAN(CCA!E11) -> Lei 12.249/2010 - Resolução 4.955/2021 do CMN | G4: =CLEAN(CCA!F11) -> Nível II | H4: =CLEAN(CCA!G11) -> Nível II | I4: =CLEAN(CCA!H11) -> Conglomerado | J4: =CLEAN(CCA!I11) -> Letra financeira | K4: =CCA!J11 -> 11221012.24 | L4: =CCA!K11 -> 9300000 | M4: =CLEAN(CCA!L11) -> passivo - custo amortizado | N4: =CCA!M11 -> 2022-11-16 | O4: =CLEAN(CCA!N11) -> Com vencimento | P4: =CCA!O11 -> 2029-11-16 | Q4: =CLEAN(CCA!P11) -> Não | R4: =CLEAN(CCA!Q11) -> (1) Não há uma data específica, apenas quando for solicitado ao Bacen | S4: =CLEAN(CCA!R11) -> (2) Não há vinculação regulatória ou fiscal para resgate ou recompra | T4: =CLEAN(CCA!S11) -> (3) O valor pode ser parcial ou total, conforme autorização do Bacen | U4: =CLEAN(CCA!T11) -> Não se aplica | V4: =CLEAN(CCA!U11) -> Fixo | W4: =CLEAN(CCA!V11) -> 135% CDI | X4: =CLEAN(CCA!W11) -> Não | Y4: =CLEAN(CCA!X11) -> Mandatório | Z4: =CLEAN(CCA!Y11) -> Não | AA4: =CLEAN(CCA!Z11) -> Cumulativo | AB4: =CLEAN(CCA!AA11) -> Não conversível | AC4: =CLEAN(CCA!AB11) -> Não se aplica | AD4: =CLEAN(CCA!AC11) -> Não se aplica | AE4: =CLEAN(CCA!AD11) -> Não se aplica | AF4: =CLEAN(CCA!AE11) -> Não se aplica | AG4: =CLEAN(CCA!AF11) -> Não se aplica | AH4: =CLEAN(CCA!AG11) -> Não se aplica | AI4: =CLEAN(CCA!AH11) -> Sim | AJ4: =CLEAN(CCA!AI11) -> Os títulos serão extintos, permanente e em valor no mínimo correspondente ao saldo computado no Nível II do Patrimônio de Referência do BRB – Banco de Brasília S.A nas seguintes condições: 1. seja verificada a divulgação pelo BRB – Banco de Brasília S.A. de que seu Capital Principal está em patamar inferior a 4,5% (quatro inteiros e cinco décimos por cento) do montante RWA, estabelecida pela regulamentação vigente; ou2. seja verificada, em lei específica, a assinatura de compromisso de aporte para o BRB – Banco de Brasília S.A.;3. seja decretado pelo BACEN o regime de administração especial temporária ou intervenção do BRB – Banco de Brasília S.A.; ou4. seja determinado pelo BACEN, segundo critérios estabelecidos em regulamento específico editado pelo Conselho Monetário Nacional,a extinção do instrumento. | AK4: =CLEAN(CCA!AJ11) -> Totalmente | AL4: =CLEAN(CCA!AK11) -> Permanente | AM4: =CLEAN(CCA!AL11) -> Contratual | AN4: =CLEAN(CCA!AM11) -> Não | AO4: =CLEAN(CCA!AN11) -> Não | AP4: =CLEAN(CCA!AO11) -> Não se aplica | AQ4: sem comentários
A5: CCA | B5: 20234T | C5: =EOMONTH(CCA!$C$4,0) -> 2023-12-31 | D5: =CLEAN(CCA!C12) -> BRB - BANCO DE BRASILIA S/A | E5: =CLEAN(CCA!D12) -> LFSN2200DFU | F5: =CLEAN(CCA!E12) -> Lei 12.249/2010 - Resolução 4.955/2021 do CMN | G5: =CLEAN(CCA!F12) -> Nível II | H5: =CLEAN(CCA!G12) -> Nível II | I5: =CLEAN(CCA!H12) -> Conglomerado | J5: =CLEAN(CCA!I12) -> Letra financeira | K5: =CCA!J12 -> 12651530.08 | L5: =CCA!K12 -> 10500000 | M5: =CLEAN(CCA!L12) -> passivo - custo amortizado | N5: =CCA!M12 -> 2022-11-18 | O5: =CLEAN(CCA!N12) -> Com vencimento | P5: =CCA!O12 -> 2029-11-19 | Q5: =CLEAN(CCA!P12) -> Não | R5: =CLEAN(CCA!Q12) -> (1) Não há uma data específica, apenas quando for solicitado ao Bacen | S5: =CLEAN(CCA!R12) -> (2) Não há vinculação regulatória ou fiscal para resgate ou recompra | T5: =CLEAN(CCA!S12) -> (3) O valor pode ser parcial ou total, conforme autorização do Bacen | U5: =CLEAN(CCA!T12) -> Não se aplica | V5: =CLEAN(CCA!U12) -> Fixo | W5: =CLEAN(CCA!V12) -> 135% CDI | X5: =CLEAN(CCA!W12) -> Não | Y5: =CLEAN(CCA!X12) -> Mandatório | Z5: =CLEAN(CCA!Y12) -> Não | AA5: =CLEAN(CCA!Z12) -> Cumulativo | AB5: =CLEAN(CCA!AA12) -> Não conversível | AC5: =CLEAN(CCA!AB12) -> Não se aplica | AD5: =CLEAN(CCA!AC12) -> Não se aplica | AE5: =CLEAN(CCA!AD12) -> Não se aplica | AF5: =CLEAN(CCA!AE12) -> Não se aplica | AG5: =CLEAN(CCA!AF12) -> Não se aplica | AH5: =CLEAN(CCA!AG12) -> Não se aplica | AI5: =CLEAN(CCA!AH12) -> Sim | AJ5: =CLEAN(CCA!AI12) -> Os títulos serão extintos, permanente e em valor no mínimo correspondente ao saldo computado no Nível II do Patrimônio de Referência do BRB – Banco de Brasília S.A nas seguintes condições: 1. seja verificada a divulgação pelo BRB – Banco de Brasília S.A. de que seu Capital Principal está em patamar inferior a 4,5% (quatro inteiros e cinco décimos por cento) do montante RWA, estabelecida pela regulamentação vigente; ou2. seja verificada, em lei específica, a assinatura de compromisso de aporte para o BRB – Banco de Brasília S.A.;3. seja decretado pelo BACEN o regime de administração especial temporária ou intervenção do BRB – Banco de Brasília S.A.; ou4. seja determinado pelo BACEN, segundo critérios estabelecidos em regulamento específico editado pelo Conselho Monetário Nacional,a extinção do instrumento. | AK5: =CLEAN(CCA!AJ12) -> Totalmente | AL5: =CLEAN(CCA!AK12) -> Permanente | AM5: =CLEAN(CCA!AL12) -> Contratual | AN5: =CLEAN(CCA!AM12) -> Não | AO5: =CLEAN(CCA!AN12) -> Não | AP5: =CLEAN(CCA!AO12) -> Não se aplica | AQ5: sem comentários
A6: CCA | B6: 20234T | C6: =EOMONTH(CCA!$C$4,0) -> 2023-12-31 | D6: =CLEAN(CCA!C13) -> BRB - BANCO DE BRASILIA S/A | E6: =CLEAN(CCA!D13) -> LFSN2200BF5 | F6: =CLEAN(CCA!E13) -> Lei 12.249/2010 - Resolução 4.955/2021 do CMN | G6: =CLEAN(CCA!F13) -> Nível II | H6: =CLEAN(CCA!G13) -> Nível II | I6: =CLEAN(CCA!H13) -> Conglomerado | J6: =CLEAN(CCA!I13) -> Letra financeira | K6: =CCA!J13 -> 2428982.24 | L6: =CCA!K13 -> 2000000 | M6: =CLEAN(CCA!L13) -> passivo - custo amortizado | N6: =CCA!M13 -> 2022-10-21 | O6: =CLEAN(CCA!N13) -> Com vencimento | P6: =CCA!O13 -> 2029-10-22 | Q6: =CLEAN(CCA!P13) -> Não | R6: =CLEAN(CCA!Q13) -> (1) Não há uma data específica, apenas quando for solicitado ao Bacen | S6: =CLEAN(CCA!R13) -> (2) Não há vinculação regulatória ou fiscal para resgate ou recompra | T6: =CLEAN(CCA!S13) -> (3) O valor pode ser parcial ou total, conforme autorização do Bacen | U6: =CLEAN(CCA!T13) -> Não se aplica | V6: =CLEAN(CCA!U13) -> Fixo | W6: =CLEAN(CCA!V13) -> 132% CDI | X6: =CLEAN(CCA!W13) -> Não | Y6: =CLEAN(CCA!X13) -> Mandatório | Z6: =CLEAN(CCA!Y13) -> Não | AA6: =CLEAN(CCA!Z13) -> Cumulativo | AB6: =CLEAN(CCA!AA13) -> Não conversível | AC6: =CLEAN(CCA!AB13) -> Não se aplica | AD6: =CLEAN(CCA!AC13) -> Não se aplica | AE6: =CLEAN(CCA!AD13) -> Não se aplica | AF6: =CLEAN(CCA!AE13) -> Não se aplica | AG6: =CLEAN(CCA!AF13) -> Não se aplica | AH6: =CLEAN(CCA!AG13) -> Não se aplica | AI6: =CLEAN(CCA!AH13) -> Sim | AJ6: =CLEAN(CCA!AI13) -> Os títulos serão extintos, permanente e em valor no mínimo correspondente ao saldo computado no Nível II do Patrimônio de Referência do BRB – Banco de Brasília S.A nas seguintes condições: 1. seja verificada a divulgação pelo BRB – Banco de Brasília S.A. de que seu Capital Principal está em patamar inferior a 4,5% (quatro inteiros e cinco décimos por cento) do montante RWA, estabelecida pela regulamentação vigente; ou2. seja verificada, em lei específica, a assinatura de compromisso de aporte para o BRB – Banco de Brasília S.A.;3. seja decretado pelo BACEN o regime de administração especial temporária ou intervenção do BRB – Banco de Brasília S.A.; ou4. seja determinado pelo BACEN, segundo critérios estabelecidos em regulamento específico editado pelo Conselho Monetário Nacional,a extinção do instrumento. | AK6: =CLEAN(CCA!AJ13) -> Totalmente | AL6: =CLEAN(CCA!AK13) -> Permanente | AM6: =CLEAN(CCA!AL13) -> Contratual | AN6: =CLEAN(CCA!AM13) -> Não | AO6: =CLEAN(CCA!AN13) -> Não | AP6: =CLEAN(CCA!AO13) -> Não se aplica | AQ6: sem comentários
A7: CCA | B7: 20234T | C7: =EOMONTH(CCA!$C$4,0) -> 2023-12-31 | D7: =CLEAN(CCA!C14) -> BRB - BANCO DE BRASILIA S/A | E7: =CLEAN(CCA!D14) -> LFSN23006SJ | F7: =CLEAN(CCA!E14) -> Lei 12.249/2010 - Resolução 4.955/2021 do CMN | G7: =CLEAN(CCA!F14) -> Nível II | H7: =CLEAN(CCA!G14) -> Nível II | I7: =CLEAN(CCA!H14) -> Conglomerado | J7: =CLEAN(CCA!I14) -> Letra financeira | K7: =CCA!J14 -> 688759.08 | L7: =CCA!K14 -> 600000 | M7: =CLEAN(CCA!L14) -> passivo - custo amortizado | N7: =CCA!M14 -> 2023-02-08 | O7: =CLEAN(CCA!N14) -> Com vencimento | P7: =CCA!O14 -> 2029-02-08 | Q7: =CLEAN(CCA!P14) -> Não | R7: =CLEAN(CCA!Q14) -> (1) Não há uma data específica, apenas quando for solicitado ao Bacen | S7: =CLEAN(CCA!R14) -> (2) Não há vinculação regulatória ou fiscal para resgate ou recompra | T7: =CLEAN(CCA!S14) -> (3) O valor pode ser parcial ou total, conforme autorização do Bacen | U7: =CLEAN(CCA!T14) -> Não se aplica | V7: =CLEAN(CCA!U14) -> Fixo | W7: =CLEAN(CCA!V14) -> 127% CDI | X7: =CLEAN(CCA!W14) -> Não | Y7: =CLEAN(CCA!X14) -> Mandatório | Z7: =CLEAN(CCA!Y14) -> Não | AA7: =CLEAN(CCA!Z14) -> Cumulativo | AB7: =CLEAN(CCA!AA14) -> Não conversível | AC7: =CLEAN(CCA!AB14) -> Não se aplica | AD7: =CLEAN(CCA!AC14) -> Não se aplica | AE7: =CLEAN(CCA!AD14) -> Não se aplica | AF7: =CLEAN(CCA!AE14) -> Não se aplica | AG7: =CLEAN(CCA!AF14) -> Não se aplica | AH7: =CLEAN(CCA!AG14) -> Não se aplica | AI7: =CLEAN(CCA!AH14) -> Sim | AJ7: =CLEAN(CCA!AI14) -> Os títulos serão extintos, permanente e em valor no mínimo correspondente ao saldo computado no Nível II do Patrimônio de Referência do BRB – Banco de Brasília S.A nas seguintes condições: 1. seja verificada a divulgação pelo BRB – Banco de Brasília S.A. de que seu Capital Principal está em patamar inferior a 4,5% (quatro inteiros e cinco décimos por cento) do montante RWA, estabelecida pela regulamentação vigente; ou2. seja verificada, em lei específica, a assinatura de compromisso de aporte para o BRB – Banco de Brasília S.A.;3. seja decretado pelo BACEN o regime de administração especial temporária ou intervenção do BRB – Banco de Brasília S.A.; ou4. seja determinado pelo BACEN, segundo critérios estabelecidos em regulamento específico editado pelo Conselho Monetário Nacional,a extinção do instrumento. | AK7: =CLEAN(CCA!AJ14) -> Totalmente | AL7: =CLEAN(CCA!AK14) -> Permanente | AM7: =CLEAN(CCA!AL14) -> Contratual | AN7: =CLEAN(CCA!AM14) -> Não | AO7: =CLEAN(CCA!AN14) -> Não | AP7: =CLEAN(CCA!AO14) -> Não se aplica | AQ7: sem comentários
A8: CCA | B8: 20234T | C8: =EOMONTH(CCA!$C$4,0) -> 2023-12-31 | D8: =CLEAN(CCA!C15) -> BRB - BANCO DE BRASILIA S/A | E8: =CLEAN(CCA!D15) -> LFSN2200D4A | F8: =CLEAN(CCA!E15) -> Lei 12.249/2010 - Resolução 4.955/2021 do CMN | G8: =CLEAN(CCA!F15) -> Nível II | H8: =CLEAN(CCA!G15) -> Nível II | I8: =CLEAN(CCA!H15) -> Conglomerado | J8: =CLEAN(CCA!I15) -> Letra financeira | K8: =CCA!J15 -> 22472809.27 | L8: =CCA!K15 -> 18600000 | M8: =CLEAN(CCA!L15) -> passivo - custo amortizado | N8: =CCA!M15 -> 2022-11-11 | O8: =CLEAN(CCA!N15) -> Com vencimento | P8: =CCA!O15 -> 2029-11-12 | Q8: =CLEAN(CCA!P15) -> Não | R8: =CLEAN(CCA!Q15) -> (1) Não há uma data específica, apenas quando for solicitado ao Bacen | S8: =CLEAN(CCA!R15) -> (2) Não há vinculação regulatória ou fiscal para resgate ou recompra | T8: =CLEAN(CCA!S15) -> (3) O valor pode ser parcial ou total, conforme autorização do Bacen | U8: =CLEAN(CCA!T15) -> Não se aplica | V8: =CLEAN(CCA!U15) -> Fixo | W8: =CLEAN(CCA!V15) -> 135% CDI | X8: =CLEAN(CCA!W15) -> Não | Y8: =CLEAN(CCA!X15) -> Mandatório | Z8: =CLEAN(CCA!Y15) -> Não | AA8: =CLEAN(CCA!Z15) -> Cumulativo | AB8: =CLEAN(CCA!AA15) -> Não conversível | AC8: =CLEAN(CCA!AB15) -> Não se aplica | AD8: =CLEAN(CCA!AC15) -> Não se aplica | AE8: =CLEAN(CCA!AD15) -> Não se aplica | AF8: =CLEAN(CCA!AE15) -> Não se aplica | AG8: =CLEAN(CCA!AF15) -> Não se aplica | AH8: =CLEAN(CCA!AG15) -> Não se aplica | AI8: =CLEAN(CCA!AH15) -> Sim | AJ8: =CLEAN(CCA!AI15) -> Os títulos serão extintos, permanente e em valor no mínimo correspondente ao saldo computado no Nível II do Patrimônio de Referência do BRB – Banco de Brasília S.A nas seguintes condições: 1. seja verificada a divulgação pelo BRB – Banco de Brasília S.A. de que seu Capital Principal está em patamar inferior a 4,5% (quatro inteiros e cinco décimos por cento) do montante RWA, estabelecida pela regulamentação vigente; ou2. seja verificada, em lei específica, a assinatura de compromisso de aporte para o BRB – Banco de Brasília S.A.;3. seja decretado pelo BACEN o regime de administração especial temporária ou intervenção do BRB – Banco de Brasília S.A.; ou4. seja determinado pelo BACEN, segundo critérios estabelecidos em regulamento específico editado pelo Conselho Monetário Nacional,a extinção do instrumento. | AK8: =CLEAN(CCA!AJ15) -> Totalmente | AL8: =CLEAN(CCA!AK15) -> Permanente | AM8: =CLEAN(CCA!AL15) -> Contratual | AN8: =CLEAN(CCA!AM15) -> Não | AO8: =CLEAN(CCA!AN15) -> Não | AP8: =CLEAN(CCA!AO15) -> Não se aplica | AQ8: sem comentários
A9: CCA | B9: 20234T | C9: =EOMONTH(CCA!$C$4,0) -> 2023-12-31 | D9: =CLEAN(CCA!C16) -> BRB - BANCO DE BRASILIA S/A | E9: =CLEAN(CCA!D16) -> LFSN2200ENT | F9: =CLEAN(CCA!E16) -> Lei 12.249/2010 - Resolução 4.955/2021 do CMN | G9: =CLEAN(CCA!F16) -> Nível II | H9: =CLEAN(CCA!G16) -> Nível II | I9: =CLEAN(CCA!H16) -> Conglomerado | J9: =CLEAN(CCA!I16) -> Letra financeira | K9: =CCA!J16 -> 6462057.94 | L9: =CCA!K16 -> 5400000 | M9: =CLEAN(CCA!L16) -> passivo - custo amortizado | N9: =CCA!M16 -> 2022-12-02 | O9: =CLEAN(CCA!N16) -> Com vencimento | P9: =CCA!O16 -> 2029-12-03 | Q9: =CLEAN(CCA!P16) -> Não | R9: =CLEAN(CCA!Q16) -> (1) Não há uma data específica, apenas quando for solicitado ao Bacen | S9: =CLEAN(CCA!R16) -> (2) Não há vinculação regulatória ou fiscal para resgate ou recompra | T9: =CLEAN(CCA!S16) -> (3) O valor pode ser parcial ou total, conforme autorização do Bacen | U9: =CLEAN(CCA!T16) -> Não se aplica | V9: =CLEAN(CCA!U16) -> Fixo | W9: =CLEAN(CCA!V16) -> 135% CDI | X9: =CLEAN(CCA!W16) -> Não | Y9: =CLEAN(CCA!X16) -> Mandatório | Z9: =CLEAN(CCA!Y16) -> Não | AA9: =CLEAN(CCA!Z16) -> Cumulativo | AB9: =CLEAN(CCA!AA16) -> Não conversível | AC9: =CLEAN(CCA!AB16) -> Não se aplica | AD9: =CLEAN(CCA!AC16) -> Não se aplica | AE9: =CLEAN(CCA!AD16) -> Não se aplica | AF9: =CLEAN(CCA!AE16) -> Não se aplica | AG9: =CLEAN(CCA!AF16) -> Não se aplica | AH9: =CLEAN(CCA!AG16) -> Não se aplica | AI9: =CLEAN(CCA!AH16) -> Sim | AJ9: =CLEAN(CCA!AI16) -> Os títulos serão extintos, permanente e em valor no mínimo correspondente ao saldo computado no Nível II do Patrimônio de Referência do BRB – Banco de Brasília S.A nas seguintes condições: 1. seja verificada a divulgação pelo BRB – Banco de Brasília S.A. de que seu Capital Principal está em patamar inferior a 4,5% (quatro inteiros e cinco décimos por cento) do montante RWA, estabelecida pela regulamentação vigente; ou2. seja verificada, em lei específica, a assinatura de compromisso de aporte para o BRB – Banco de Brasília S.A.;3. seja decretado pelo BACEN o regime de administração especial temporária ou intervenção do BRB – Banco de Brasília S.A.; ou4. seja determinado pelo BACEN, segundo critérios estabelecidos em regulamento específico editado pelo Conselho Monetário Nacional,a extinção do instrumento. | AK9: =CLEAN(CCA!AJ16) -> Totalmente | AL9: =CLEAN(CCA!AK16) -> Permanente | AM9: =CLEAN(CCA!AL16) -> Contratual | AN9: =CLEAN(CCA!AM16) -> Não | AO9: =CLEAN(CCA!AN16) -> Não | AP9: =CLEAN(CCA!AO16) -> Não se aplica | AQ9: sem comentários
A10: CCA | B10: 20234T | C10: =EOMONTH(CCA!$C$4,0) -> 2023-12-31 | D10: =CLEAN(CCA!C17) -> BRB - BANCO DE BRASILIA S/A | E10: =CLEAN(CCA!D17) -> LFSN2200DW7 | F10: =CLEAN(CCA!E17) -> Lei 12.249/2010 - Resolução 4.955/2021 do CMN | G10: =CLEAN(CCA!F17) -> Nível II | H10: =CLEAN(CCA!G17) -> Nível II | I10: =CLEAN(CCA!H17) -> Conglomerado | J10: =CLEAN(CCA!I17) -> Letra financeira | K10: =CCA!J17 -> 16570839.38 | L10: =CCA!K17 -> 13800000 | M10: =CLEAN(CCA!L17) -> passivo - custo amortizado | N10: =CCA!M17 -> 2022-11-25 | O10: =CLEAN(CCA!N17) -> Com vencimento | P10: =CCA!O17 -> 2029-11-26 | Q10: =CLEAN(CCA!P17) -> Não | R10: =CLEAN(CCA!Q17) -> (1) Não há uma data específica, apenas quando for solicitado ao Bacen | S10: =CLEAN(CCA!R17) -> (2) Não há vinculação regulatória ou fiscal para resgate ou recompra | T10: =CLEAN(CCA!S17) -> (3) O valor pode ser parcial ou total, conforme autorização do Bacen | U10: =CLEAN(CCA!T17) -> Não se aplica | V10: =CLEAN(CCA!U17) -> Fixo | W10: =CLEAN(CCA!V17) -> 135% CDI | X10: =CLEAN(CCA!W17) -> Não | Y10: =CLEAN(CCA!X17) -> Mandatório | Z10: =CLEAN(CCA!Y17) -> Não | AA10: =CLEAN(CCA!Z17) -> Cumulativo | AB10: =CLEAN(CCA!AA17) -> Não conversível | AC10: =CLEAN(CCA!AB17) -> Não se aplica | AD10: =CLEAN(CCA!AC17) -> Não se aplica | AE10: =CLEAN(CCA!AD17) -> Não se aplica | AF10: =CLEAN(CCA!AE17) -> Não se aplica | AG10: =CLEAN(CCA!AF17) -> Não se aplica | AH10: =CLEAN(CCA!AG17) -> Não se aplica | AI10: =CLEAN(CCA!AH17) -> Sim | AJ10: =CLEAN(CCA!AI17) -> Os títulos serão extintos, permanente e em valor no mínimo correspondente ao saldo computado no Nível II do Patrimônio de Referência do BRB – Banco de Brasília S.A nas seguintes condições: 1. seja verificada a divulgação pelo BRB – Banco de Brasília S.A. de que seu Capital Principal está em patamar inferior a 4,5% (quatro inteiros e cinco décimos por cento) do montante RWA, estabelecida pela regulamentação vigente; ou2. seja verificada, em lei específica, a assinatura de compromisso de aporte para o BRB – Banco de Brasília S.A.;3. seja decretado pelo BACEN o regime de administração especial temporária ou intervenção do BRB – Banco de Brasília S.A.; ou4. seja determinado pelo BACEN, segundo critérios estabelecidos em regulamento específico editado pelo Conselho Monetário Nacional,a extinção do instrumento. | AK10: =CLEAN(CCA!AJ17) -> Totalmente | AL10: =CLEAN(CCA!AK17) -> Permanente | AM10: =CLEAN(CCA!AL17) -> Contratual | AN10: =CLEAN(CCA!AM17) -> Não | AO10: =CLEAN(CCA!AN17) -> Não | AP10: =CLEAN(CCA!AO17) -> Não se aplica | AQ10: sem comentários
